﻿Department Family,Entity,Date,Expense Type,Expense Area,Supplier,Transaction Number,Amount,Item Description
BEIS,UKRI - AHRC,01/06/2021,Fees (Including College Members),New Programme Development,Unspecified,98971148,115.00,Fees (Including College Members)
BEIS,UKRI - AHRC,01/06/2021,Fees (Including College Members),New Programme Development,Unspecified,98971149,85.00,Fees (Including College Members)
BEIS,UKRI - AHRC,01/06/2021,Fees (Including College Members),New Programme Development,Unspecified,98971150,85.00,Fees (Including College Members)
BEIS,UKRI - AHRC,01/06/2021,Other Programme Costs,"History, Heritage, Languages and Literature",DA Languages Ltd,98971580,384.19,Other Programme Costs
BEIS,UKRI - AHRC,01/06/2021,Fees (Including College Members),Infrastruture Roadmap,Unspecified,98971626,340.00,Fees (Including College Members)
BEIS,UKRI - AHRC,03/06/2021,Other Programme Costs,"History, Heritage, Languages and Literature",DA Languages Ltd,98974255,399.00,Other Programme Costs
BEIS,UKRI - AHRC,03/06/2021,T&S UK - Mileage,AHRC - Creative Industries,Unspecified,98974402,99.00,T&S UK - Mileage
BEIS,UKRI - AHRC,03/06/2021,T&S UK - Parking Tolls Congestion Charges,AHRC - Creative Industries,Unspecified,98974402,6.00,T&S UK - Parking Tolls Congestion Charges
BEIS,UKRI - AHRC,03/06/2021,T&S UK - Subsistence,AHRC - Creative Industries,Unspecified,98974402,18.00,T&S UK - Subsistence
BEIS,UKRI - AHRC,03/06/2021,T&S UK - Other Charges,International Partnership and Engagement,Unspecified,98974403,192.00,T&S UK - Other Charges
BEIS,UKRI - AHRC,07/06/2021,Fees (Including College Members),New Programme Development,Unspecified,98977992,170.00,Fees (Including College Members)
BEIS,UKRI - AHRC,07/06/2021,Research Grant Expenditure,Public Engagement,University of London,98978112,5000.00,Research Grant Expenditure
BEIS,UKRI - AHRC,08/06/2021,Fellowships,Public Policy,UKRI - Economic & Social Research Council,98956240,-4287.65,Fellowships
BEIS,UKRI - AHRC,08/06/2021,Research Grant Expenditure,Cross Council Responsive Mode Awards,UKRI - Economic & Social Research Council,98973324,41431.16,Research Grant Expenditure
BEIS,UKRI - AHRC,08/06/2021,Research Grant Expenditure,Cross Council Responsive Mode Awards,UKRI - Economic & Social Research Council,98973324,29262.68,Research Grant Expenditure
BEIS,UKRI - AHRC,08/06/2021,Research Grant Expenditure,Cross Council Responsive Mode Awards,UKRI - Economic & Social Research Council,98973324,9075.49,Research Grant Expenditure
BEIS,UKRI - AHRC,08/06/2021,Fees (Including College Members),Infrastruture Roadmap,Unspecified,98979421,680.00,Fees (Including College Members)
BEIS,UKRI - AHRC,08/06/2021,Fees (Including College Members),New Programme Development,Unspecified,98979422,170.00,Fees (Including College Members)
BEIS,UKRI - AHRC,08/06/2021,Fees (Including College Members),Industrial Strategy Challenge Fund (ISCF) - Creative Clusters,Unspecified,98979423,170.00,Fees (Including College Members)
BEIS,UKRI - AHRC,08/06/2021,Fees (Including College Members),Infrastruture Roadmap,Unspecified,98979424,170.00,Fees (Including College Members)
BEIS,UKRI - AHRC,09/06/2021,T&S UK - Public Transport,International,Unspecified,98983378,13.40,T&S UK - Public Transport
BEIS,UKRI - AHRC,10/06/2021,Unspecified,Infrastruture Roadmap,Alexander Mann Solutions Ltd,98975706,1386.12,Contract Staff
BEIS,UKRI - AHRC,10/06/2021,Advertising & Promotion,Infrastruture Roadmap,Monika Flakowska T/A MF Studio,98982233,3000.00,Advertising & Promotion
BEIS,UKRI - AHRC,10/06/2021,Research Grant Expenditure,Public Engagement,Open University,98982451,9986.98,Research Grant Expenditure
BEIS,UKRI - AHRC,10/06/2021,Conferences & Seminars,Health and Environmental Humanities,Unspecified,98982703,200.00,Conferences & Seminars
BEIS,UKRI - AHRC,10/06/2021,Fees (Including College Members),New Programme Development,Unspecified,98983443,170.00,Fees (Including College Members)
BEIS,UKRI - AHRC,10/06/2021,Fees (Including College Members),New Programme Development,Unspecified,98983444,170.00,Fees (Including College Members)
BEIS,UKRI - AHRC,10/06/2021,Fees (Including College Members),New Programme Development,Unspecified,98983445,170.00,Fees (Including College Members)
BEIS,UKRI - AHRC,10/06/2021,Fees (Including College Members),Executive Office,Unspecified,98983446,170.00,Fees (Including College Members)
BEIS,UKRI - AHRC,11/06/2021,Financial Services,Corporate Services,CCI Credit Management Ltd,98986433,1.32,Financial Services
BEIS,UKRI - AHRC,14/06/2021,Unspecified,Balance Sheet,HM Revenue & Customs,98972809,61233.94,NI Payable Salaries
BEIS,UKRI - AHRC,14/06/2021,Unspecified,Balance Sheet,HM Revenue & Customs,98972810,42827.39,PAYE Payable Salaries
BEIS,UKRI - AHRC,14/06/2021,Unspecified,Balance Sheet,HM Revenue & Customs,98972811,5250.00,Student Loans
BEIS,UKRI - AHRC,14/06/2021,Unspecified,Corporate Services,HM Revenue & Customs,98972812,1599.00,Apprenticeship Levy
BEIS,UKRI - AHRC,15/06/2021,Voluntary Deductions,Balance Sheet,Swindon Office Sports and Social Club,98972818,28.00,Voluntary Deductions
BEIS,UKRI - AHRC,15/06/2021,Union Deductions,Balance Sheet,PCS Union,98972819,68.77,Union Deductions
BEIS,UKRI - AHRC,15/06/2021,Unspecified,Balance Sheet,Unspecified,98972820,10061.64,Ees Pension Deductions - JSS
BEIS,UKRI - AHRC,15/06/2021,Unspecified,Balance Sheet,Unspecified,98972821,43959.05,Ers Pension Deductions - JSS
BEIS,UKRI - AHRC,15/06/2021,Unspecified,Balance Sheet,Scottish Widows,98972822,384.68,Partnership Pension Deductions
BEIS,UKRI - AHRC,15/06/2021,Unspecified,Balance Sheet,Cabinet Office RM Shared Services,98972823,13.35,Ers Pension Deductions - JSS
BEIS,UKRI - AHRC,15/06/2021,Unspecified,Balance Sheet,Cabinet Office RM Shared Services,98972824,8916.60,Ees Pension Deductions - MyCSP
BEIS,UKRI - AHRC,15/06/2021,Unspecified,Balance Sheet,Cabinet Office RM Shared Services,98972825,42986.20,Ers Pension Deductions - MyCSP
BEIS,UKRI - AHRC,15/06/2021,Ees Pension Deductions - MRC,Balance Sheet,Unspecified,98972826,173.51,Ees Pension Deductions - MRC
BEIS,UKRI - AHRC,15/06/2021,Ers Pension Deductions - MRC,Balance Sheet,Unspecified,98972827,427.09,Ers Pension Deductions - MRC
BEIS,UKRI - AHRC,15/06/2021,Nursery Deductions,Balance Sheet,UKRI - Engineering & Physical Sciences Research Council,98972828,891.00,Nursery Deductions
BEIS,UKRI - AHRC,15/06/2021,Fees (Including College Members),New Programme Development,Unspecified,98987648,170.00,Fees (Including College Members)
BEIS,UKRI - AHRC,15/06/2021,Fees (Including College Members),New Programme Development,Unspecified,98987649,170.00,Fees (Including College Members)
BEIS,UKRI - AHRC,15/06/2021,Fees (Including College Members),New Programme Development,Unspecified,98987650,230.00,Fees (Including College Members)
BEIS,UKRI - AHRC,15/06/2021,T&S UK - Mileage,AHRC - Creative Industries,Unspecified,98988234,73.35,T&S UK - Mileage
BEIS,UKRI - AHRC,15/06/2021,T&S UK - Subsistence,AHRC - Creative Industries,Unspecified,98988234,15.60,T&S UK - Subsistence
BEIS,UKRI - AHRC,15/06/2021,T&S UK - Subsistence,AHRC - Creative Industries,Unspecified,98988234,13.50,T&S UK - Subsistence
BEIS,UKRI - AHRC,17/06/2021,Research Grant Expenditure,Commissioned Research,The British Museum,98979777,14052.92,Research Grant Expenditure
BEIS,UKRI - AHRC,17/06/2021,Research Grant Expenditure,COVID-19 (AHRC funded),University of Leicester,98979778,60553.47,Research Grant Expenditure
BEIS,UKRI - AHRC,17/06/2021,Research Grant Expenditure,COVID-19 (AHRC funded),University of Leicester,98979778,60553.47,Research Grant Expenditure
BEIS,UKRI - AHRC,17/06/2021,Research Grant Expenditure,COVID-19 (AHRC funded),Loughborough University,98979779,45429.66,Research Grant Expenditure
BEIS,UKRI - AHRC,17/06/2021,Research Grant Expenditure,COVID-19 (AHRC funded),Loughborough University,98979779,45429.66,Research Grant Expenditure
BEIS,UKRI - AHRC,17/06/2021,Research Grant Expenditure,COVID-19,Nottingham Trent University,98979780,30303.26,Research Grant Expenditure
BEIS,UKRI - AHRC,17/06/2021,Research Grant Expenditure,COVID-19,University of Exeter,98982145,-0.02,Research Grant Expenditure
BEIS,UKRI - AHRC,17/06/2021,Research Grant Expenditure,Newton Programme,University of Brighton,98982146,-8060.16,Research Grant Expenditure
BEIS,UKRI - AHRC,17/06/2021,Research Grant Expenditure,Global Challenges Research Fund (GCRF),University of Sheffield,98982147,-2967.81,Research Grant Expenditure
BEIS,UKRI - AHRC,17/06/2021,Research Grant Expenditure,Arts and Health,University College London,98982148,-96.01,Research Grant Expenditure
BEIS,UKRI - AHRC,17/06/2021,Research Grant Expenditure,Follow-on Fund,Royal College of Music,98982149,-4085.16,Research Grant Expenditure
BEIS,UKRI - AHRC,17/06/2021,Research Grant Expenditure,Global Challenges Research Fund (GCRF),University of York,98982150,-278.12,Research Grant Expenditure
BEIS,UKRI - AHRC,17/06/2021,Research Grant Expenditure,Follow-on Fund,Bournemouth University,98982151,-4884.28,Research Grant Expenditure
BEIS,UKRI - AHRC,17/06/2021,Research Grant Expenditure,Follow-on Fund,University of Leeds,98982152,-2526.60,Research Grant Expenditure
BEIS,UKRI - AHRC,17/06/2021,Research Grant Expenditure,Funds for International Collaboration (FIC 20 US),University of Sheffield,98982153,-5444.01,Research Grant Expenditure
BEIS,UKRI - AHRC,17/06/2021,Research Grant Expenditure,Funds for International Collaboration (FIC 20 US),University of Oxford,98982154,-0.75,Research Grant Expenditure
BEIS,UKRI - AHRC,17/06/2021,Research Grant Expenditure,Follow-on Fund,University of Kent,98982155,-76.02,Research Grant Expenditure
BEIS,UKRI - AHRC,17/06/2021,Research Grant Expenditure,Newton Programme,University of Durham,98982156,-9190.92,Research Grant Expenditure
BEIS,UKRI - AHRC,17/06/2021,Research Grant Expenditure,Global Challenges Research Fund (GCRF),University of Bristol GRANT,98982157,-0.02,Research Grant Expenditure
BEIS,UKRI - AHRC,17/06/2021,Research Grant Expenditure,Global Challenges Research Fund (GCRF),University of Edinburgh,98982158,-5821.68,Research Grant Expenditure
BEIS,UKRI - AHRC,17/06/2021,Research Grant Expenditure,Global Challenges Research Fund (GCRF),"SOAS, University of London",98982159,-0.26,Research Grant Expenditure
BEIS,UKRI - AHRC,17/06/2021,Research Grant Expenditure,Global Challenges Research Fund (GCRF),University of Newcastle Upon Tyne,98982160,-453.09,Research Grant Expenditure
BEIS,UKRI - AHRC,17/06/2021,Research Grant Expenditure,COVID-19 (AHRC funded),University of Leeds,98982162,57994.43,Research Grant Expenditure
BEIS,UKRI - AHRC,17/06/2021,Research Grant Expenditure,AHRC - DFG Collaborative Research Grant,University of Oxford,98982163,-85250.70,Research Grant Expenditure
BEIS,UKRI - AHRC,17/06/2021,Research Grant Expenditure,Funds for International Collaboration (FIC 20 US),University of Leicester,98982164,-530.82,Research Grant Expenditure
BEIS,UKRI - AHRC,17/06/2021,Research Grant Expenditure,Follow-on Fund,University of Nottingham,98982165,-2859.81,Research Grant Expenditure
BEIS,UKRI - AHRC,17/06/2021,Research Grant Expenditure,Global Challenges Research Fund (GCRF),University of Stirling,98982166,-6257.47,Research Grant Expenditure
BEIS,UKRI - AHRC,17/06/2021,Research Grant Expenditure,Follow-on Fund,University of Leeds,98982167,-0.16,Research Grant Expenditure
BEIS,UKRI - AHRC,17/06/2021,Research Grant Expenditure,Funds for International Collaboration (FIC 20 US),"Royal Holloway, University of London",98982168,-6267.04,Research Grant Expenditure
BEIS,UKRI - AHRC,17/06/2021,Research Grant Expenditure,Follow-on Fund,University of York,98982169,-794.11,Research Grant Expenditure
BEIS,UKRI - AHRC,17/06/2021,Research Grant Expenditure,Global Challenges Research Fund (GCRF),University of East Anglia,98982170,-690.79,Research Grant Expenditure
BEIS,UKRI - AHRC,17/06/2021,Research Grant Expenditure,Global Challenges Research Fund (GCRF),University of East Anglia,98982171,-0.01,Research Grant Expenditure
BEIS,UKRI - AHRC,17/06/2021,Research Grant Expenditure,Global Challenges Research Fund (GCRF),University of Brighton,98982172,59.28,Research Grant Expenditure
BEIS,UKRI - AHRC,17/06/2021,Research Grant Expenditure,Networks & Workshops,Birkbeck College,98982173,-4874.61,Research Grant Expenditure
BEIS,UKRI - AHRC,17/06/2021,Research Grant Expenditure,Networks & Workshops,University of Stirling,98982174,-13838.87,Research Grant Expenditure
BEIS,UKRI - AHRC,17/06/2021,Research Grant Expenditure,Follow-on Fund,University College London,98982175,-12197.36,Research Grant Expenditure
BEIS,UKRI - AHRC,17/06/2021,Research Grant Expenditure,Networks & Workshops,University of the Arts London,98982176,-7224.32,Research Grant Expenditure
BEIS,UKRI - AHRC,17/06/2021,Research Grant Expenditure,RCUK Newton Programme,"Royal Holloway, University of London",98982177,-0.20,Research Grant Expenditure
BEIS,UKRI - AHRC,17/06/2021,Research Grant Expenditure,Follow-on Fund,King's College London,98982178,11131.19,Research Grant Expenditure
BEIS,UKRI - AHRC,17/06/2021,Research Grant Expenditure,Global Challenges Research Fund (GCRF),University of Leeds,98982179,-9487.42,Research Grant Expenditure
BEIS,UKRI - AHRC,17/06/2021,Research Grant Expenditure,Research Grants,British Institute Of International And Comparative Law,98982180,24686.30,Research Grant Expenditure
BEIS,UKRI - AHRC,17/06/2021,Research Grant Expenditure,Follow-on Fund,University of Bradford,98982181,19972.04,Research Grant Expenditure
BEIS,UKRI - AHRC,17/06/2021,Research Grant Expenditure,Research Grants,University of York,98982182,14676.55,Research Grant Expenditure
BEIS,UKRI - AHRC,17/06/2021,Research Grant Expenditure,Research Grants,Queen Mary University of London,98982183,17074.32,Research Grant Expenditure
BEIS,UKRI - AHRC,17/06/2021,Research Grant Expenditure,Research Grants,Queen's University Belfast GRANT,98982184,38323.59,Research Grant Expenditure
BEIS,UKRI - AHRC,17/06/2021,Research Grant Expenditure,Research Grants,University of Exeter,98982185,12340.73,Research Grant Expenditure
BEIS,UKRI - AHRC,17/06/2021,Research Grant Expenditure,Research Grants,National Museums of Scotland,98982186,32776.55,Research Grant Expenditure
BEIS,UKRI - AHRC,17/06/2021,Research Grant Expenditure,Research Grants,Manchester Metropolitan University,98982187,41822.31,Research Grant Expenditure
BEIS,UKRI - AHRC,17/06/2021,Research Grant Expenditure,Global Challenges Research Fund (GCRF),Institute of Development Studies,98982188,53564.07,Research Grant Expenditure
BEIS,UKRI - AHRC,17/06/2021,Research Grant Expenditure,Research Grants,University of Leeds,98982189,47631.18,Research Grant Expenditure
BEIS,UKRI - AHRC,17/06/2021,Research Grant Expenditure,Research Grants,University College London,98982190,42015.60,Research Grant Expenditure
BEIS,UKRI - AHRC,17/06/2021,Research Grant Expenditure,Research Grants,Queen's University Belfast GRANT,98982191,33680.14,Research Grant Expenditure
BEIS,UKRI - AHRC,17/06/2021,Research Grant Expenditure,Research Grants,University of York,98982192,-36.99,Research Grant Expenditure
BEIS,UKRI - AHRC,17/06/2021,Research Grant Expenditure,Newton Programme,Loughborough University,98982193,-5.46,Research Grant Expenditure
BEIS,UKRI - AHRC,17/06/2021,Research Grant Expenditure,Research Grants,University of Leicester,98982194,28501.31,Research Grant Expenditure
BEIS,UKRI - AHRC,17/06/2021,Research Grant Expenditure,Research Grants,University of Sussex,98982195,53449.30,Research Grant Expenditure
BEIS,UKRI - AHRC,17/06/2021,Research Grant Expenditure,Research Grants,UNIVERSITY OF ULSTER,98982196,16111.09,Research Grant Expenditure
BEIS,UKRI - AHRC,17/06/2021,Research Grant Expenditure,Newton Programme,University of Salford,98982197,-0.02,Research Grant Expenditure
BEIS,UKRI - AHRC,17/06/2021,Research Grant Expenditure,Research Grants,The University of Manchester,98982198,16196.08,Research Grant Expenditure
BEIS,UKRI - AHRC,17/06/2021,Research Grant Expenditure,Networks & Workshops,The Open University,98982199,-6479.62,Research Grant Expenditure
BEIS,UKRI - AHRC,17/06/2021,Research Grant Expenditure,Research Grants,University of Sheffield,98982200,-23744.09,Research Grant Expenditure
BEIS,UKRI - AHRC,17/06/2021,Research Grant Expenditure,Global Challenges Research Fund (GCRF),"SOAS, University of London",98982201,-5654.33,Research Grant Expenditure
BEIS,UKRI - AHRC,17/06/2021,Research Grant Expenditure,Research Grants,University of Dundee,98982202,28645.73,Research Grant Expenditure
BEIS,UKRI - AHRC,17/06/2021,Research Grant Expenditure,Global Challenges Research Fund (GCRF),University College London,98982203,16861.47,Research Grant Expenditure
BEIS,UKRI - AHRC,17/06/2021,Research Grant Expenditure,Research Grants,University College London,98982204,18074.78,Research Grant Expenditure
BEIS,UKRI - AHRC,17/06/2021,Research Grant Expenditure,Research Grants,University of East Anglia,98982205,-1235.72,Research Grant Expenditure
BEIS,UKRI - AHRC,17/06/2021,Research Grant Expenditure,Design: Strategic Initiatives,Lancaster University,98982206,-140427.96,Research Grant Expenditure
BEIS,UKRI - AHRC,17/06/2021,Research Grant Expenditure,Research Grants,Lancaster University,98982207,55254.87,Research Grant Expenditure
BEIS,UKRI - AHRC,17/06/2021,Research Grant Expenditure,Research Grants,University of Leeds,98982208,40600.60,Research Grant Expenditure
BEIS,UKRI - AHRC,17/06/2021,Research Grant Expenditure,Global Challenges Research Fund (GCRF),King's College London,98982209,6081.78,Research Grant Expenditure
BEIS,UKRI - AHRC,17/06/2021,Research Grant Expenditure,Research Grants,Royal College of Music,98982210,40720.68,Research Grant Expenditure
BEIS,UKRI - AHRC,17/06/2021,Research Grant Expenditure,Global Challenges Research Fund (GCRF),London School of Economics and Political Science,98982211,-4087.22,Research Grant Expenditure
BEIS,UKRI - AHRC,17/06/2021,Research Grant Expenditure,Research Grants,The University of Manchester,98982212,23585.55,Research Grant Expenditure
BEIS,UKRI - AHRC,17/06/2021,Research Grant Expenditure,Research Grants,"Royal Holloway, University of London",98982213,35757.91,Research Grant Expenditure
BEIS,UKRI - AHRC,17/06/2021,Research Grant Expenditure,Care for the Future,University of Nottingham,98982214,-22028.91,Research Grant Expenditure
BEIS,UKRI - AHRC,17/06/2021,Research Grant Expenditure,Connected Communities Programme,University of Nottingham,98982214,14685.94,Research Grant Expenditure
BEIS,UKRI - AHRC,17/06/2021,Research Grant Expenditure,COVID-19 (AHRC funded),University of York,98982781,29918.22,Research Grant Expenditure
BEIS,UKRI - AHRC,17/06/2021,Research Grant Expenditure,COVID-19 (AHRC funded),University of York,98982781,29918.22,Research Grant Expenditure
BEIS,UKRI - AHRC,17/06/2021,Research Grant Expenditure,COVID-19 (AHRC funded),University of Strathclyde,98982782,40002.58,Research Grant Expenditure
BEIS,UKRI - AHRC,17/06/2021,Research Grant Expenditure,COVID-19 (AHRC funded),University of Exeter,98982783,22401.14,Research Grant Expenditure
BEIS,UKRI - AHRC,17/06/2021,Research Grant Expenditure,COVID-19,University of the West of England,98982784,39571.62,Research Grant Expenditure
BEIS,UKRI - AHRC,17/06/2021,Research Grant Expenditure,COVID-19 (AHRC funded),University of Edinburgh,98982785,62379.72,Research Grant Expenditure
BEIS,UKRI - AHRC,17/06/2021,Research Grant Expenditure,COVID-19 (AHRC funded),University of Glasgow,98982786,48036.54,Research Grant Expenditure
BEIS,UKRI - AHRC,17/06/2021,Research Grant Expenditure,COVID-19 (AHRC funded),University of Nottingham,98982787,60854.36,Research Grant Expenditure
BEIS,UKRI - AHRC,17/06/2021,Research Grant Expenditure,COVID-19,University of Leicester,98982788,49354.69,Research Grant Expenditure
BEIS,UKRI - AHRC,17/06/2021,Research Grant Expenditure,COVID-19 (AHRC funded),Birkbeck College,98982789,25351.96,Research Grant Expenditure
BEIS,UKRI - AHRC,17/06/2021,Research Grant Expenditure,COVID-19 (AHRC funded),University of Southampton GRANT,98982790,28194.05,Research Grant Expenditure
BEIS,UKRI - AHRC,17/06/2021,Research Grant Expenditure,COVID-19 (AHRC funded),King's College London,98982791,55598.56,Research Grant Expenditure
BEIS,UKRI - AHRC,17/06/2021,Research Grant Expenditure,COVID-19,Queen Mary University of London,98982792,22229.73,Research Grant Expenditure
BEIS,UKRI - AHRC,17/06/2021,Research Grant Expenditure,COVID-19,Queen Mary University of London,98982793,83111.17,Research Grant Expenditure
BEIS,UKRI - AHRC,17/06/2021,Research Grant Expenditure,COVID-19,Royal College of Music,98982794,66285.46,Research Grant Expenditure
BEIS,UKRI - AHRC,17/06/2021,Research Grant Expenditure,COVID-19,University of St Andrews,98982795,22091.43,Research Grant Expenditure
BEIS,UKRI - AHRC,17/06/2021,Research Grant Expenditure,COVID-19,Northumbria University,98982796,20293.28,Research Grant Expenditure
BEIS,UKRI - AHRC,17/06/2021,Research Grant Expenditure,COVID-19,University of Exeter,98982797,41883.48,Research Grant Expenditure
BEIS,UKRI - AHRC,17/06/2021,Research Grant Expenditure,Follow-on Fund,University of Oxford,98982798,50164.87,Research Grant Expenditure
BEIS,UKRI - AHRC,17/06/2021,Research Grant Expenditure,COVID-19 (AHRC funded),University of Strathclyde,98982799,19379.01,Research Grant Expenditure
BEIS,UKRI - AHRC,17/06/2021,Research Grant Expenditure,COVID-19,UNIVERSITY OF ULSTER,98982800,33535.93,Research Grant Expenditure
BEIS,UKRI - AHRC,17/06/2021,Research Grant Expenditure,COVID-19,Northumbria University,98982801,88680.66,Research Grant Expenditure
BEIS,UKRI - AHRC,17/06/2021,Research Grant Expenditure,COVID-19,University of London,98982802,24024.35,Research Grant Expenditure
BEIS,UKRI - AHRC,17/06/2021,Research Grant Expenditure,COVID-19,University of Birmingham GRANT,98982803,37520.57,Research Grant Expenditure
BEIS,UKRI - AHRC,17/06/2021,Research Grant Expenditure,Funds for International Collaboration (FIC 20 US),Nottingham Trent University,98982804,16797.06,Research Grant Expenditure
BEIS,UKRI - AHRC,17/06/2021,Research Grant Expenditure,Funds for International Collaboration (FIC 20 US),"City, University of London",98982805,14991.21,Research Grant Expenditure
BEIS,UKRI - AHRC,17/06/2021,Research Grant Expenditure,Funds for International Collaboration (FIC 20 US),University of Reading,98982806,18674.71,Research Grant Expenditure
BEIS,UKRI - AHRC,17/06/2021,Research Grant Expenditure,Funds for International Collaboration (FIC 20 US),University of Reading,98982806,18674.71,Research Grant Expenditure
BEIS,UKRI - AHRC,17/06/2021,Research Grant Expenditure,Funds for International Collaboration (FIC 20 US),University of Exeter,98982807,23044.36,Research Grant Expenditure
BEIS,UKRI - AHRC,17/06/2021,Research Grant Expenditure,Funds for International Collaboration (FIC 20 US),Lancaster University,98982808,19261.80,Research Grant Expenditure
BEIS,UKRI - AHRC,17/06/2021,Research Grant Expenditure,Funds for International Collaboration (FIC 20 US),University of Cambridge,98982809,24543.85,Research Grant Expenditure
BEIS,UKRI - AHRC,17/06/2021,Research Grant Expenditure,Funds for International Collaboration (FIC 20 US),The Alan Turing Institute,98982810,30224.77,Research Grant Expenditure
BEIS,UKRI - AHRC,17/06/2021,Research Grant Expenditure,COVID-19,The University of Manchester,98982811,153995.01,Research Grant Expenditure
BEIS,UKRI - AHRC,17/06/2021,Research Grant Expenditure,COVID-19,Sheffield Hallam University,98982812,45773.22,Research Grant Expenditure
BEIS,UKRI - AHRC,17/06/2021,Research Grant Expenditure,Networks & Workshops,Cardiff University,98982813,9069.28,Research Grant Expenditure
BEIS,UKRI - AHRC,17/06/2021,Research Grant Expenditure,Global Challenges Research Fund (GCRF),King's College London,98982814,29221.04,Research Grant Expenditure
BEIS,UKRI - AHRC,17/06/2021,Research Grant Expenditure,Global Challenges Research Fund (GCRF),University of Edinburgh,98982815,23264.43,Research Grant Expenditure
BEIS,UKRI - AHRC,17/06/2021,Research Grant Expenditure,COVID-19,Keele University,98982816,21312.28,Research Grant Expenditure
BEIS,UKRI - AHRC,17/06/2021,Research Grant Expenditure,Global Challenges Research Fund (GCRF),University of Leicester,98982817,67762.95,Research Grant Expenditure
BEIS,UKRI - AHRC,17/06/2021,Research Grant Expenditure,Global Challenges Research Fund (GCRF),University of Warwick,98982818,33922.29,Research Grant Expenditure
BEIS,UKRI - AHRC,17/06/2021,Research Grant Expenditure,Global Challenges Research Fund (GCRF),University of Salford,98982819,12516.84,Research Grant Expenditure
BEIS,UKRI - AHRC,17/06/2021,Research Grant Expenditure,Global Challenges Research Fund (GCRF),Royal Botanic Gardens Edinburgh,98982820,23923.40,Research Grant Expenditure
BEIS,UKRI - AHRC,17/06/2021,Research Grant Expenditure,Global Challenges Research Fund (GCRF),University of Edinburgh,98982821,13070.79,Research Grant Expenditure
BEIS,UKRI - AHRC,17/06/2021,Research Grant Expenditure,Global Challenges Research Fund (GCRF),Queen Mary University of London,98982822,12981.45,Research Grant Expenditure
BEIS,UKRI - AHRC,17/06/2021,Research Grant Expenditure,Global Challenges Research Fund (GCRF),"City, University of London",98982823,60414.74,Research Grant Expenditure
BEIS,UKRI - AHRC,17/06/2021,Research Grant Expenditure,Commissioned Research,University of Southampton GRANT,98982824,20524.56,Research Grant Expenditure
BEIS,UKRI - AHRC,17/06/2021,Research Grant Expenditure,Commissioned Research,University of Durham,98982825,20162.10,Research Grant Expenditure
BEIS,UKRI - AHRC,17/06/2021,Research Grant Expenditure,Commissioned Research,University of Sheffield,98982826,20368.55,Research Grant Expenditure
BEIS,UKRI - AHRC,17/06/2021,Research Grant Expenditure,Research Grants,Oxford Brookes University,98982827,66436.40,Research Grant Expenditure
BEIS,UKRI - AHRC,17/06/2021,Research Grant Expenditure,Follow-on Fund,"Royal Holloway, University of London",98982828,26726.93,Research Grant Expenditure
BEIS,UKRI - AHRC,17/06/2021,Research Grant Expenditure,Follow-on Fund,"Royal Holloway, University of London",98982828,26726.93,Research Grant Expenditure
BEIS,UKRI - AHRC,17/06/2021,Research Grant Expenditure,Research Grants,University College London,98982829,30864.62,Research Grant Expenditure
BEIS,UKRI - AHRC,17/06/2021,Research Grant Expenditure,Networks & Workshops,University of Glasgow,98982830,5635.92,Research Grant Expenditure
BEIS,UKRI - AHRC,17/06/2021,Research Grant Expenditure,Climate Resilience (SPF w1),University of Liverpool,98982831,40325.12,Research Grant Expenditure
BEIS,UKRI - AHRC,17/06/2021,Research Grant Expenditure,Research Grants,Birmingham City University,98982832,21042.73,Research Grant Expenditure
BEIS,UKRI - AHRC,17/06/2021,Research Grant Expenditure,AHRC - DFG Collaborative Research Grant,University of Edinburgh,98982833,82957.59,Research Grant Expenditure
BEIS,UKRI - AHRC,17/06/2021,Research Grant Expenditure,Funds for International Collaboration (FIC 20 US),University of Glasgow,98982834,0.01,Research Grant Expenditure
BEIS,UKRI - AHRC,17/06/2021,Research Grant Expenditure,Research Grants,Lancaster University,98982835,73340.61,Research Grant Expenditure
BEIS,UKRI - AHRC,17/06/2021,Research Grant Expenditure,Research Grants,Lancaster University,98982835,70794.41,Research Grant Expenditure
BEIS,UKRI - AHRC,17/06/2021,Research Grant Expenditure,Global Challenges Research Fund (GCRF),University of York,98982836,31822.92,Research Grant Expenditure
BEIS,UKRI - AHRC,17/06/2021,Research Grant Expenditure,Networks & Workshops,University of Sussex,98982837,8929.97,Research Grant Expenditure
BEIS,UKRI - AHRC,17/06/2021,Research Grant Expenditure,Networks & Workshops,Aberystwyth University,98982838,5771.99,Research Grant Expenditure
BEIS,UKRI - AHRC,17/06/2021,Research Grant Expenditure,JPI Cultural Heritage,University of York,98982839,16514.90,Research Grant Expenditure
BEIS,UKRI - AHRC,17/06/2021,Research Grant Expenditure,Follow-on Fund,University of Derby,98982840,20117.06,Research Grant Expenditure
BEIS,UKRI - AHRC,17/06/2021,Research Grant Expenditure,Towards a National Collection (SPF),Historic Environment Scotland (GRANT),98982841,90312.24,Research Grant Expenditure
BEIS,UKRI - AHRC,17/06/2021,Research Grant Expenditure,RCUK Global Challenges Research Fund (RCUK GCRF),University of Liverpool,98982842,25920.34,Research Grant Expenditure
BEIS,UKRI - AHRC,17/06/2021,Research Grant Expenditure,RCUK Global Challenges Research Fund (RCUK GCRF),Institute of Development Studies,98982843,21215.52,Research Grant Expenditure
BEIS,UKRI - AHRC,17/06/2021,Research Grant Expenditure,Creative Economy,Loughborough University,98982844,68035.47,Research Grant Expenditure
BEIS,UKRI - AHRC,17/06/2021,Research Grant Expenditure,Research Grants,University of Cambridge,98982845,79498.89,Research Grant Expenditure
BEIS,UKRI - AHRC,17/06/2021,Research Grant Expenditure,Networks & Workshops,University of Lincoln,98982846,4676.43,Research Grant Expenditure
BEIS,UKRI - AHRC,17/06/2021,Research Grant Expenditure,Research Grants,"Royal Holloway, University of London",98982847,50574.37,Research Grant Expenditure
BEIS,UKRI - AHRC,17/06/2021,Research Grant Expenditure,Research Grants,"Royal Holloway, University of London",98982847,50574.37,Research Grant Expenditure
BEIS,UKRI - AHRC,17/06/2021,Research Grant Expenditure,Landscape Decisions (SPF),University of Reading,98982848,28332.16,Research Grant Expenditure
BEIS,UKRI - AHRC,17/06/2021,Research Grant Expenditure,Modern Slavery and Human Rights (SPF),British Institute Of International And Comparative Law,98982849,216182.64,Research Grant Expenditure
BEIS,UKRI - AHRC,17/06/2021,Research Grant Expenditure,Modern Slavery and Human Rights (SPF),British Institute Of International And Comparative Law,98982849,286413.35,Research Grant Expenditure
BEIS,UKRI - AHRC,17/06/2021,Research Grant Expenditure,Landscape Decisions (SPF),University of Exeter,98982850,27417.08,Research Grant Expenditure
BEIS,UKRI - AHRC,17/06/2021,Research Grant Expenditure,Landscape Decisions (SPF),Edge Hill University College,98982851,28356.46,Research Grant Expenditure
BEIS,UKRI - AHRC,17/06/2021,Research Grant Expenditure,Follow-on Fund,University of Reading,98982852,19912.24,Research Grant Expenditure
BEIS,UKRI - AHRC,17/06/2021,Research Grant Expenditure,Funds for International Collaboration (FIC 20 US),University of Liverpool,98982853,97058.50,Research Grant Expenditure
BEIS,UKRI - AHRC,17/06/2021,Research Grant Expenditure,Networks & Workshops,Coventry University,98982854,2968.06,Research Grant Expenditure
BEIS,UKRI - AHRC,17/06/2021,Research Grant Expenditure,Towards a National Collection (SPF),The British Library,98982855,20981.12,Research Grant Expenditure
BEIS,UKRI - AHRC,17/06/2021,Research Grant Expenditure,Towards a National Collection (SPF),The British Library,98982856,22660.87,Research Grant Expenditure
BEIS,UKRI - AHRC,17/06/2021,Research Grant Expenditure,Towards a National Collection (SPF),Tate Galleries,98982857,53503.77,Research Grant Expenditure
BEIS,UKRI - AHRC,17/06/2021,Research Grant Expenditure,Research Grants,University of Huddersfield,98982858,16524.16,Research Grant Expenditure
BEIS,UKRI - AHRC,17/06/2021,Research Grant Expenditure,Research Grants,University of Edinburgh,98982859,24943.72,Research Grant Expenditure
BEIS,UKRI - AHRC,17/06/2021,Research Grant Expenditure,Networks & Workshops,University of Stirling,98982860,6517.35,Research Grant Expenditure
BEIS,UKRI - AHRC,17/06/2021,Research Grant Expenditure,Follow-on Fund,University of Leicester,98982861,59522.86,Research Grant Expenditure
BEIS,UKRI - AHRC,17/06/2021,Research Grant Expenditure,Networks & Workshops,University of Leeds,98982862,6521.63,Research Grant Expenditure
BEIS,UKRI - AHRC,17/06/2021,Research Grant Expenditure,RCUK Global Challenges Research Fund (RCUK GCRF),University of Lincoln,98982863,116879.65,Research Grant Expenditure
BEIS,UKRI - AHRC,17/06/2021,Research Grant Expenditure,RCUK Global Challenges Research Fund (RCUK GCRF),UNIVERSITY OF ULSTER,98982864,131480.15,Research Grant Expenditure
BEIS,UKRI - AHRC,17/06/2021,Research Grant Expenditure,RCUK Global Challenges Research Fund (RCUK GCRF),Aberystwyth University,98982865,116538.39,Research Grant Expenditure
BEIS,UKRI - AHRC,17/06/2021,Research Grant Expenditure,RCUK Global Challenges Research Fund (RCUK GCRF),University of Glasgow,98982866,135808.76,Research Grant Expenditure
BEIS,UKRI - AHRC,17/06/2021,Research Grant Expenditure,RCUK Global Challenges Research Fund (RCUK GCRF),University of Birmingham GRANT,98982867,108221.37,Research Grant Expenditure
BEIS,UKRI - AHRC,17/06/2021,Research Grant Expenditure,Networks & Workshops,University of Edinburgh,98982868,4943.43,Research Grant Expenditure
BEIS,UKRI - AHRC,17/06/2021,Research Grant Expenditure,DFID Collaborative Humanitarian Protection Research Programme (CHPRP),London School of Economics and Political Science,98982869,61037.41,Research Grant Expenditure
BEIS,UKRI - AHRC,17/06/2021,Research Grant Expenditure,DFID Collaborative Humanitarian Protection Research Programme (CHPRP),University of Bath,98982870,86100.39,Research Grant Expenditure
BEIS,UKRI - AHRC,17/06/2021,Research Grant Expenditure,DFID Collaborative Humanitarian Protection Research Programme (CHPRP),University of Durham,98982871,49904.09,Research Grant Expenditure
BEIS,UKRI - AHRC,17/06/2021,Research Grant Expenditure,DFID Collaborative Humanitarian Protection Research Programme (CHPRP),University of Portsmouth,98982874,64538.89,Research Grant Expenditure
BEIS,UKRI - AHRC,17/06/2021,Research Grant Expenditure,Research Grants,University of Glasgow,98982875,64577.67,Research Grant Expenditure
BEIS,UKRI - AHRC,17/06/2021,Research Grant Expenditure,Research Grants,Anglia Ruskin University,98982876,74351.21,Research Grant Expenditure
BEIS,UKRI - AHRC,17/06/2021,Research Grant Expenditure,Research Grants,University of Nottingham,98982877,61118.82,Research Grant Expenditure
BEIS,UKRI - AHRC,17/06/2021,Research Grant Expenditure,Networks & Workshops,University of Portsmouth,98982878,6019.16,Research Grant Expenditure
BEIS,UKRI - AHRC,17/06/2021,Research Grant Expenditure,Research Grants,The University of Manchester,98982879,27333.71,Research Grant Expenditure
BEIS,UKRI - AHRC,17/06/2021,Research Grant Expenditure,Research Grants,The University of Manchester,98982879,27333.71,Research Grant Expenditure
BEIS,UKRI - AHRC,17/06/2021,Research Grant Expenditure,Research Grants,Loughborough University,98982880,28878.57,Research Grant Expenditure
BEIS,UKRI - AHRC,17/06/2021,Research Grant Expenditure,Landscape Decisions (SPF),University of Exeter,98982881,12727.30,Research Grant Expenditure
BEIS,UKRI - AHRC,17/06/2021,Research Grant Expenditure,Landscape Decisions (SPF),Middlesex University,98982882,12319.96,Research Grant Expenditure
BEIS,UKRI - AHRC,17/06/2021,Research Grant Expenditure,Landscape Decisions (SPF),University of Reading,98982884,11761.97,Research Grant Expenditure
BEIS,UKRI - AHRC,17/06/2021,Research Grant Expenditure,Research Grants,University of Hull,98982885,55079.27,Research Grant Expenditure
BEIS,UKRI - AHRC,17/06/2021,Research Grant Expenditure,Landscape Decisions (SPF),University of Leicester,98982886,12735.63,Research Grant Expenditure
BEIS,UKRI - AHRC,17/06/2021,Research Grant Expenditure,Landscape Decisions (SPF),University of Newcastle Upon Tyne,98982887,12716.35,Research Grant Expenditure
BEIS,UKRI - AHRC,17/06/2021,Research Grant Expenditure,Networks & Workshops,University of Leeds,98982888,4626.38,Research Grant Expenditure
BEIS,UKRI - AHRC,17/06/2021,Research Grant Expenditure,Networks & Workshops,University of Leeds,98982889,6024.63,Research Grant Expenditure
BEIS,UKRI - AHRC,17/06/2021,Research Grant Expenditure,Networks & Workshops,Leeds Beckett University,98982890,3015.48,Research Grant Expenditure
BEIS,UKRI - AHRC,17/06/2021,Research Grant Expenditure,Research Grants,University of Bristol GRANT,98982891,64998.01,Research Grant Expenditure
BEIS,UKRI - AHRC,17/06/2021,Research Grant Expenditure,Research Grants,Keele University,98982892,33274.72,Research Grant Expenditure
BEIS,UKRI - AHRC,17/06/2021,Research Grant Expenditure,RCUK Global Challenges Research Fund (RCUK GCRF),University of Bristol GRANT,98982893,0.01,Research Grant Expenditure
BEIS,UKRI - AHRC,17/06/2021,Research Grant Expenditure,RCUK Global Challenges Research Fund (RCUK GCRF),University of Exeter,98982894,44698.56,Research Grant Expenditure
BEIS,UKRI - AHRC,17/06/2021,Research Grant Expenditure,Research Grants,University of Durham,98982895,62621.96,Research Grant Expenditure
BEIS,UKRI - AHRC,17/06/2021,Research Grant Expenditure,Research Grants,University of Sussex,98982896,12462.28,Research Grant Expenditure
BEIS,UKRI - AHRC,17/06/2021,Research Grant Expenditure,Research Grants,Liverpool John Moores University,98982897,24652.02,Research Grant Expenditure
BEIS,UKRI - AHRC,17/06/2021,Research Grant Expenditure,Research Grants,Loughborough University,98982898,27426.66,Research Grant Expenditure
BEIS,UKRI - AHRC,17/06/2021,Research Grant Expenditure,Research Grants,Loughborough University,98982899,33707.01,Research Grant Expenditure
BEIS,UKRI - AHRC,17/06/2021,Research Grant Expenditure,Research Grants,University of Leicester,98982900,43407.43,Research Grant Expenditure
BEIS,UKRI - AHRC,17/06/2021,Research Grant Expenditure,Networks & Workshops,"Royal Holloway, University of London",98982901,3073.89,Research Grant Expenditure
BEIS,UKRI - AHRC,17/06/2021,Research Grant Expenditure,Research Grants,The British Museum,98982902,51260.48,Research Grant Expenditure
BEIS,UKRI - AHRC,17/06/2021,Research Grant Expenditure,Audience of the Future (ISCF 2),Digital Catapult Services Ltd,98982903,65000.00,Research Grant Expenditure
BEIS,UKRI - AHRC,17/06/2021,Research Grant Expenditure,Research Grants,University of Leicester,98982904,76633.44,Research Grant Expenditure
BEIS,UKRI - AHRC,17/06/2021,Research Grant Expenditure,Research Grants,University College London,98982905,36554.31,Research Grant Expenditure
BEIS,UKRI - AHRC,17/06/2021,Research Grant Expenditure,Research Grants,University of Oxford,98982906,55896.63,Research Grant Expenditure
BEIS,UKRI - AHRC,17/06/2021,Research Grant Expenditure,Research Grants,University of Leeds,98982907,49183.07,Research Grant Expenditure
BEIS,UKRI - AHRC,17/06/2021,Research Grant Expenditure,Research Grants,University of Newcastle Upon Tyne,98982908,62228.59,Research Grant Expenditure
BEIS,UKRI - AHRC,17/06/2021,Research Grant Expenditure,Research Grants,The University of Manchester,98982909,30557.07,Research Grant Expenditure
BEIS,UKRI - AHRC,17/06/2021,Research Grant Expenditure,Research Grants,Queen Mary University of London,98982910,38148.89,Research Grant Expenditure
BEIS,UKRI - AHRC,17/06/2021,Research Grant Expenditure,Cultural Values Project,University of Leeds,98982911,101626.42,Research Grant Expenditure
BEIS,UKRI - AHRC,17/06/2021,Research Grant Expenditure,Research Grants,University of Glasgow,98982912,57712.93,Research Grant Expenditure
BEIS,UKRI - AHRC,17/06/2021,Research Grant Expenditure,Networks & Workshops,University of Edinburgh,98982913,4538.41,Research Grant Expenditure
BEIS,UKRI - AHRC,17/06/2021,Research Grant Expenditure,Research Grants,University of Oxford,98982914,31574.90,Research Grant Expenditure
BEIS,UKRI - AHRC,17/06/2021,Research Grant Expenditure,Research Grants,University of Southampton GRANT,98982915,55582.93,Research Grant Expenditure
BEIS,UKRI - AHRC,17/06/2021,Research Grant Expenditure,Research Grants,University of Liverpool,98982916,44212.25,Research Grant Expenditure
BEIS,UKRI - AHRC,17/06/2021,Research Grant Expenditure,Research Grants,The University of Manchester,98982917,69634.12,Research Grant Expenditure
BEIS,UKRI - AHRC,17/06/2021,Research Grant Expenditure,Networks & Workshops,University of Warwick,98982918,4558.55,Research Grant Expenditure
BEIS,UKRI - AHRC,17/06/2021,Research Grant Expenditure,Research Grants,University of Cambridge,98982919,53029.47,Research Grant Expenditure
BEIS,UKRI - AHRC,17/06/2021,Research Grant Expenditure,JPI Cultural Heritage,University of Lincoln,98982920,9901.63,Research Grant Expenditure
BEIS,UKRI - AHRC,17/06/2021,Research Grant Expenditure,Research Grants,University of Oxford,98982921,55475.76,Research Grant Expenditure
BEIS,UKRI - AHRC,17/06/2021,Research Grant Expenditure,Research Grants,University of York,98982922,63719.19,Research Grant Expenditure
BEIS,UKRI - AHRC,17/06/2021,Research Grant Expenditure,Research Grants,Cardiff University,98982923,57063.67,Research Grant Expenditure
BEIS,UKRI - AHRC,17/06/2021,Research Grant Expenditure,Research Grants,Anglia Ruskin University,98982924,29255.65,Research Grant Expenditure
BEIS,UKRI - AHRC,17/06/2021,Research Grant Expenditure,Research Grants,University of Bristol GRANT,98982925,65067.67,Research Grant Expenditure
BEIS,UKRI - AHRC,17/06/2021,Research Grant Expenditure,Research Grants,University College London,98982926,58914.82,Research Grant Expenditure
BEIS,UKRI - AHRC,17/06/2021,Research Grant Expenditure,Research Grants,University of Oxford,98982927,72301.30,Research Grant Expenditure
BEIS,UKRI - AHRC,17/06/2021,Research Grant Expenditure,Research Grants,Birmingham City University,98982928,14466.65,Research Grant Expenditure
BEIS,UKRI - AHRC,17/06/2021,Research Grant Expenditure,Research Grants,Lancaster University,98982929,51078.28,Research Grant Expenditure
BEIS,UKRI - AHRC,17/06/2021,Research Grant Expenditure,Global Challenges Research Fund (GCRF),Cardiff University,98982930,13065.33,Research Grant Expenditure
BEIS,UKRI - AHRC,17/06/2021,Research Grant Expenditure,Research Grants,University of Oxford,98982931,25403.00,Research Grant Expenditure
BEIS,UKRI - AHRC,17/06/2021,Research Grant Expenditure,Research Grants,University of Exeter,98982932,40199.74,Research Grant Expenditure
BEIS,UKRI - AHRC,17/06/2021,Research Grant Expenditure,Newton Programme,Brunel University London,98982933,14602.70,Research Grant Expenditure
BEIS,UKRI - AHRC,17/06/2021,Research Grant Expenditure,COVID-19 (AHRC funded),University of Exeter,98982934,25197.70,Research Grant Expenditure
BEIS,UKRI - AHRC,17/06/2021,Research Grant Expenditure,COVID-19 (AHRC funded),University of Exeter,98982934,25197.74,Research Grant Expenditure
BEIS,UKRI - AHRC,17/06/2021,Research Grant Expenditure,COVID-19 (AHRC funded),University of Exeter,98982935,6262.48,Research Grant Expenditure
BEIS,UKRI - AHRC,17/06/2021,Research Grant Expenditure,COVID-19 (AHRC funded),University of Exeter,98982935,6262.48,Research Grant Expenditure
BEIS,UKRI - AHRC,17/06/2021,Research Grant Expenditure,COVID-19 (AHRC funded),Queen Mary University of London,98982936,33616.83,Research Grant Expenditure
BEIS,UKRI - AHRC,17/06/2021,Research Grant Expenditure,COVID-19 (AHRC funded),Queen Mary University of London,98982937,47696.58,Research Grant Expenditure
BEIS,UKRI - AHRC,17/06/2021,Research Grant Expenditure,COVID-19 (AHRC funded),University of Durham,98982938,30374.39,Research Grant Expenditure
BEIS,UKRI - AHRC,17/06/2021,Research Grant Expenditure,COVID-19 (AHRC funded),National Centre for Social Research,98982939,19429.88,Research Grant Expenditure
BEIS,UKRI - AHRC,17/06/2021,Research Grant Expenditure,COVID-19,British Institute Of International And Comparative Law,98982940,136348.12,Research Grant Expenditure
BEIS,UKRI - AHRC,17/06/2021,Research Grant Expenditure,COVID-19,Royal College of Art,98982941,53759.95,Research Grant Expenditure
BEIS,UKRI - AHRC,17/06/2021,Research Grant Expenditure,COVID-19 (AHRC funded),Bournemouth University,98982942,46776.60,Research Grant Expenditure
BEIS,UKRI - AHRC,17/06/2021,Research Grant Expenditure,COVID-19 (AHRC funded),University of Salford,98982943,35767.00,Research Grant Expenditure
BEIS,UKRI - AHRC,17/06/2021,Research Grant Expenditure,COVID-19,The Open University,98982944,10714.87,Research Grant Expenditure
BEIS,UKRI - AHRC,17/06/2021,Research Grant Expenditure,COVID-19 (AHRC funded),Queen Mary University of London,98982945,32518.42,Research Grant Expenditure
BEIS,UKRI - AHRC,17/06/2021,Research Grant Expenditure,COVID-19 (AHRC funded),University of Reading,98982946,17343.60,Research Grant Expenditure
BEIS,UKRI - AHRC,17/06/2021,Research Grant Expenditure,COVID-19,University of Newcastle Upon Tyne,98982947,73971.02,Research Grant Expenditure
BEIS,UKRI - AHRC,17/06/2021,Research Grant Expenditure,COVID-19,University of Strathclyde,98982948,44915.18,Research Grant Expenditure
BEIS,UKRI - AHRC,17/06/2021,Research Grant Expenditure,COVID-19 (AHRC funded),University of Oxford,98982949,101450.25,Research Grant Expenditure
BEIS,UKRI - AHRC,17/06/2021,Research Grant Expenditure,COVID-19,University of Brighton,98982950,32514.90,Research Grant Expenditure
BEIS,UKRI - AHRC,17/06/2021,Research Grant Expenditure,COVID-19,University College London,98982951,61813.98,Research Grant Expenditure
BEIS,UKRI - AHRC,17/06/2021,Research Grant Expenditure,COVID-19,"SOAS, University of London",98982952,97965.18,Research Grant Expenditure
BEIS,UKRI - AHRC,17/06/2021,Research Grant Expenditure,Global Challenges Research Fund (GCRF),King's College London,98982953,0.40,Research Grant Expenditure
BEIS,UKRI - AHRC,17/06/2021,Research Grant Expenditure,COVID-19 (AHRC funded),"Royal Holloway, University of London",98982954,32857.01,Research Grant Expenditure
BEIS,UKRI - AHRC,17/06/2021,Research Grant Expenditure,COVID-19,University of Brighton,98982955,26510.04,Research Grant Expenditure
BEIS,UKRI - AHRC,17/06/2021,Research Grant Expenditure,COVID-19,University of Kent,98982956,40022.22,Research Grant Expenditure
BEIS,UKRI - AHRC,17/06/2021,Research Grant Expenditure,COVID-19,University of Glasgow,98982957,44188.67,Research Grant Expenditure
BEIS,UKRI - AHRC,17/06/2021,Research Grant Expenditure,COVID-19,University of Essex,98982958,41900.72,Research Grant Expenditure
BEIS,UKRI - AHRC,17/06/2021,Research Grant Expenditure,COVID-19 (AHRC funded),University of Leeds,98982959,61011.97,Research Grant Expenditure
BEIS,UKRI - AHRC,17/06/2021,Research Grant Expenditure,Funds for International Collaboration (FIC 20 US),University of Leicester,98982960,33592.89,Research Grant Expenditure
BEIS,UKRI - AHRC,17/06/2021,Research Grant Expenditure,Funds for International Collaboration (FIC 20 US),University of York,98982961,34594.37,Research Grant Expenditure
BEIS,UKRI - AHRC,17/06/2021,Research Grant Expenditure,Funds for International Collaboration (FIC 20 US),University of Oxford,98982962,24328.77,Research Grant Expenditure
BEIS,UKRI - AHRC,17/06/2021,Research Grant Expenditure,Funds for International Collaboration (FIC 20 US),Goldsmiths College University of London,98982963,11086.78,Research Grant Expenditure
BEIS,UKRI - AHRC,17/06/2021,Research Grant Expenditure,Funds for International Collaboration (FIC 20 US),Goldsmiths College University of London,98982963,11086.78,Research Grant Expenditure
BEIS,UKRI - AHRC,17/06/2021,Research Grant Expenditure,Funds for International Collaboration (FIC 20 US),Science Museum Group,98982964,21611.53,Research Grant Expenditure
BEIS,UKRI - AHRC,17/06/2021,Research Grant Expenditure,Funds for International Collaboration (FIC 20 US),Loughborough University,98982965,6047.06,Research Grant Expenditure
BEIS,UKRI - AHRC,17/06/2021,Research Grant Expenditure,COVID-19 (AHRC funded),University of the Arts London,98982966,44761.41,Research Grant Expenditure
BEIS,UKRI - AHRC,17/06/2021,Research Grant Expenditure,COVID-19 (AHRC funded),University of Liverpool,98982967,18091.05,Research Grant Expenditure
BEIS,UKRI - AHRC,17/06/2021,Research Grant Expenditure,Networks & Workshops,University of Glasgow,98982968,4129.18,Research Grant Expenditure
BEIS,UKRI - AHRC,17/06/2021,Research Grant Expenditure,Networks & Workshops,King's College London,98982969,5824.22,Research Grant Expenditure
BEIS,UKRI - AHRC,17/06/2021,Research Grant Expenditure,Global Challenges Research Fund (GCRF),London School of Hygiene & Tropical Medicine,98982970,33617.25,Research Grant Expenditure
BEIS,UKRI - AHRC,17/06/2021,Research Grant Expenditure,Global Challenges Research Fund (GCRF),Heriot Watt University,98982971,31314.88,Research Grant Expenditure
BEIS,UKRI - AHRC,17/06/2021,Research Grant Expenditure,Networks & Workshops,Goldsmiths College University of London,98982972,4018.96,Research Grant Expenditure
BEIS,UKRI - AHRC,17/06/2021,Research Grant Expenditure,Global Challenges Research Fund (GCRF),Queen's University Belfast GRANT,98982973,17178.92,Research Grant Expenditure
BEIS,UKRI - AHRC,17/06/2021,Research Grant Expenditure,Global Challenges Research Fund (GCRF),Queen Mary University of London,98982974,37028.52,Research Grant Expenditure
BEIS,UKRI - AHRC,17/06/2021,Research Grant Expenditure,Global Challenges Research Fund (GCRF),Nottingham Trent University,98982976,25363.63,Research Grant Expenditure
BEIS,UKRI - AHRC,17/06/2021,Research Grant Expenditure,Global Challenges Research Fund (GCRF),University of Durham,98982977,15458.49,Research Grant Expenditure
BEIS,UKRI - AHRC,17/06/2021,Research Grant Expenditure,Global Challenges Research Fund (GCRF),University of Durham,98982978,12766.40,Research Grant Expenditure
BEIS,UKRI - AHRC,17/06/2021,Research Grant Expenditure,Commissioned Research,"Royal Holloway, University of London",98982979,20138.76,Research Grant Expenditure
BEIS,UKRI - AHRC,17/06/2021,Research Grant Expenditure,Commissioned Research,Roehampton University (University of Roehampton),98982980,12476.24,Research Grant Expenditure
BEIS,UKRI - AHRC,17/06/2021,Research Grant Expenditure,Commissioned Research,Royal College of Art,98982981,20338.62,Research Grant Expenditure
BEIS,UKRI - AHRC,17/06/2021,Research Grant Expenditure,Global Challenges Research Fund (GCRF),Coventry University,98982982,33671.12,Research Grant Expenditure
BEIS,UKRI - AHRC,17/06/2021,Research Grant Expenditure,Research Grants,University of Leeds,98982983,19841.33,Research Grant Expenditure
BEIS,UKRI - AHRC,17/06/2021,Research Grant Expenditure,Follow-on Fund,University of Cambridge,98982984,23521.24,Research Grant Expenditure
BEIS,UKRI - AHRC,17/06/2021,Research Grant Expenditure,Follow-on Fund,University of Cambridge,98982984,16801.25,Research Grant Expenditure
BEIS,UKRI - AHRC,17/06/2021,Research Grant Expenditure,Follow-on Fund,University of Cambridge,98982984,16801.25,Research Grant Expenditure
BEIS,UKRI - AHRC,17/06/2021,Research Grant Expenditure,The Newton Fund Impact Scheme (NFIS),Coventry University,98982985,12434.65,Research Grant Expenditure
BEIS,UKRI - AHRC,17/06/2021,Research Grant Expenditure,Climate Resilience (SPF w1),University of Hull,98982986,44853.82,Research Grant Expenditure
BEIS,UKRI - AHRC,17/06/2021,Research Grant Expenditure,JPI Cultural Heritage,University College London,98982987,22449.36,Research Grant Expenditure
BEIS,UKRI - AHRC,17/06/2021,Research Grant Expenditure,Climate Resilience (SPF w1),The University of Manchester,98982988,42221.27,Research Grant Expenditure
BEIS,UKRI - AHRC,17/06/2021,Research Grant Expenditure,Research Grants,University of Exeter,98982989,54204.38,Research Grant Expenditure
BEIS,UKRI - AHRC,17/06/2021,Research Grant Expenditure,JPI Cultural Heritage,University of Durham,98982990,10741.72,Research Grant Expenditure
BEIS,UKRI - AHRC,17/06/2021,Research Grant Expenditure,Networks & Workshops,University of the Arts London,98982991,5995.30,Research Grant Expenditure
BEIS,UKRI - AHRC,17/06/2021,Research Grant Expenditure,Follow-on Fund,Glasgow School of Art,98982992,26527.22,Research Grant Expenditure
BEIS,UKRI - AHRC,17/06/2021,Research Grant Expenditure,Research Grants,University of Birmingham GRANT,98982993,64534.38,Research Grant Expenditure
BEIS,UKRI - AHRC,17/06/2021,Research Grant Expenditure,Research Grants,University of Edinburgh,98982994,88594.68,Research Grant Expenditure
BEIS,UKRI - AHRC,17/06/2021,Research Grant Expenditure,Networks & Workshops,University of York,98982995,3985.14,Research Grant Expenditure
BEIS,UKRI - AHRC,17/06/2021,Research Grant Expenditure,Research Grants,University of York,98982996,22429.81,Research Grant Expenditure
BEIS,UKRI - AHRC,17/06/2021,Research Grant Expenditure,Research Grants,University of Wolverhampton,98982997,39838.31,Research Grant Expenditure
BEIS,UKRI - AHRC,17/06/2021,Research Grant Expenditure,RCUK Global Challenges Research Fund (RCUK GCRF),University of Stirling,98982998,30793.62,Research Grant Expenditure
BEIS,UKRI - AHRC,17/06/2021,Research Grant Expenditure,Research Grants,University of Oxford,98982999,67390.61,Research Grant Expenditure
BEIS,UKRI - AHRC,17/06/2021,Research Grant Expenditure,Research Grants,University of Birmingham GRANT,98983000,19611.78,Research Grant Expenditure
BEIS,UKRI - AHRC,17/06/2021,Research Grant Expenditure,Research Grants,University of Birmingham GRANT,98983000,19611.78,Research Grant Expenditure
BEIS,UKRI - AHRC,17/06/2021,Research Grant Expenditure,Follow-on Fund,The University of Manchester,98983001,20142.76,Research Grant Expenditure
BEIS,UKRI - AHRC,17/06/2021,Research Grant Expenditure,Research Grants,The University of Manchester,98983002,65805.78,Research Grant Expenditure
BEIS,UKRI - AHRC,17/06/2021,Research Grant Expenditure,Research Grants,The University of Manchester,98983002,56519.72,Research Grant Expenditure
BEIS,UKRI - AHRC,17/06/2021,Research Grant Expenditure,Research Grants,The University of Manchester,98983003,28841.51,Research Grant Expenditure
BEIS,UKRI - AHRC,17/06/2021,Research Grant Expenditure,Research Grants,The University of Manchester,98983003,28841.51,Research Grant Expenditure
BEIS,UKRI - AHRC,17/06/2021,Research Grant Expenditure,Landscape Decisions (SPF),Manchester Metropolitan University,98983004,28286.54,Research Grant Expenditure
BEIS,UKRI - AHRC,17/06/2021,Research Grant Expenditure,Landscape Decisions (SPF),Keele University,98983005,26693.48,Research Grant Expenditure
BEIS,UKRI - AHRC,17/06/2021,Research Grant Expenditure,Networks & Workshops,Coventry University,98983006,5355.20,Research Grant Expenditure
BEIS,UKRI - AHRC,17/06/2021,Research Grant Expenditure,Commissioned Research,University of Newcastle Upon Tyne,98983007,60929.42,Research Grant Expenditure
BEIS,UKRI - AHRC,17/06/2021,Research Grant Expenditure,Global Challenges Research Fund (GCRF),University of Sheffield,98983008,22793.10,Research Grant Expenditure
BEIS,UKRI - AHRC,17/06/2021,Research Grant Expenditure,Funds for International Collaboration (FIC 20 US),University College London,98983009,36234.42,Research Grant Expenditure
BEIS,UKRI - AHRC,17/06/2021,Research Grant Expenditure,Towards a National Collection (SPF),Victoria and Albert Museum,98983010,54003.91,Research Grant Expenditure
BEIS,UKRI - AHRC,17/06/2021,Research Grant Expenditure,Towards a National Collection (SPF),The National Archives,98983011,21990.38,Research Grant Expenditure
BEIS,UKRI - AHRC,17/06/2021,Research Grant Expenditure,Towards a National Collection (SPF),The National Gallery,98983012,25208.80,Research Grant Expenditure
BEIS,UKRI - AHRC,17/06/2021,Research Grant Expenditure,Towards a National Collection (SPF),Science Museum Group,98983013,20137.70,Research Grant Expenditure
BEIS,UKRI - AHRC,17/06/2021,Research Grant Expenditure,Networks & Workshops,"Royal Holloway, University of London",98983014,5694.75,Research Grant Expenditure
BEIS,UKRI - AHRC,17/06/2021,Research Grant Expenditure,Research Grants,University of Newcastle Upon Tyne,98983015,52669.79,Research Grant Expenditure
BEIS,UKRI - AHRC,17/06/2021,Research Grant Expenditure,Networks & Workshops,University of Leicester,98983016,8254.46,Research Grant Expenditure
BEIS,UKRI - AHRC,17/06/2021,Research Grant Expenditure,Research Grants,University of Salford,98983017,17356.65,Research Grant Expenditure
BEIS,UKRI - AHRC,17/06/2021,Research Grant Expenditure,RCUK Global Challenges Research Fund (RCUK GCRF),University of Exeter,98983018,117628.67,Research Grant Expenditure
BEIS,UKRI - AHRC,17/06/2021,Research Grant Expenditure,RCUK Global Challenges Research Fund (RCUK GCRF),University of Birmingham GRANT,98983019,116252.13,Research Grant Expenditure
BEIS,UKRI - AHRC,17/06/2021,Research Grant Expenditure,RCUK Global Challenges Research Fund (RCUK GCRF),University of Bath,98983020,114602.14,Research Grant Expenditure
BEIS,UKRI - AHRC,17/06/2021,Research Grant Expenditure,RCUK Global Challenges Research Fund (RCUK GCRF),Keele University,98983021,116504.07,Research Grant Expenditure
BEIS,UKRI - AHRC,17/06/2021,Research Grant Expenditure,RCUK Global Challenges Research Fund (RCUK GCRF),University of Bristol GRANT,98983022,115555.04,Research Grant Expenditure
BEIS,UKRI - AHRC,17/06/2021,Research Grant Expenditure,Research Grants,University of Oxford,98983023,60462.72,Research Grant Expenditure
BEIS,UKRI - AHRC,17/06/2021,Research Grant Expenditure,DFID Collaborative Humanitarian Protection Research Programme (CHPRP),Queen's University Belfast GRANT,98983024,56271.45,Research Grant Expenditure
BEIS,UKRI - AHRC,17/06/2021,Research Grant Expenditure,DFID Collaborative Humanitarian Protection Research Programme (CHPRP),University of Warwick,98983025,61340.04,Research Grant Expenditure
BEIS,UKRI - AHRC,17/06/2021,Research Grant Expenditure,DFID Collaborative Humanitarian Protection Research Programme (CHPRP),Institute of Development Studies,98983026,65049.55,Research Grant Expenditure
BEIS,UKRI - AHRC,17/06/2021,Research Grant Expenditure,DFID Collaborative Humanitarian Protection Research Programme (CHPRP),University of Oxford,98983027,73917.63,Research Grant Expenditure
BEIS,UKRI - AHRC,17/06/2021,Research Grant Expenditure,Research Grants,Oxford Brookes University,98983031,75274.94,Research Grant Expenditure
BEIS,UKRI - AHRC,17/06/2021,Research Grant Expenditure,Research Grants,Bangor University,98983032,24853.11,Research Grant Expenditure
BEIS,UKRI - AHRC,17/06/2021,Research Grant Expenditure,Research Grants,Birmingham City University,98983033,55746.54,Research Grant Expenditure
BEIS,UKRI - AHRC,17/06/2021,Research Grant Expenditure,Networks & Workshops,De Montfort University,98983034,6031.90,Research Grant Expenditure
BEIS,UKRI - AHRC,17/06/2021,Research Grant Expenditure,Research Grants,Cardiff University,98983035,15670.35,Research Grant Expenditure
BEIS,UKRI - AHRC,17/06/2021,Research Grant Expenditure,Research Grants,University of East Anglia,98983036,35798.94,Research Grant Expenditure
BEIS,UKRI - AHRC,17/06/2021,Research Grant Expenditure,Follow-on Fund,Victoria and Albert Museum,98983037,20865.32,Research Grant Expenditure
BEIS,UKRI - AHRC,17/06/2021,Research Grant Expenditure,Landscape Decisions (SPF),Edge Hill University College,98983038,12671.60,Research Grant Expenditure
BEIS,UKRI - AHRC,17/06/2021,Research Grant Expenditure,Landscape Decisions (SPF),Lancaster University,98983039,8310.47,Research Grant Expenditure
BEIS,UKRI - AHRC,17/06/2021,Research Grant Expenditure,Landscape Decisions (SPF),Manchester Metropolitan University,98983040,12718.98,Research Grant Expenditure
BEIS,UKRI - AHRC,17/06/2021,Research Grant Expenditure,Landscape Decisions (SPF),University of Aberdeen,98983041,12407.84,Research Grant Expenditure
BEIS,UKRI - AHRC,17/06/2021,Research Grant Expenditure,Landscape Decisions (SPF),University of Newcastle Upon Tyne,98983042,12923.18,Research Grant Expenditure
BEIS,UKRI - AHRC,17/06/2021,Research Grant Expenditure,Landscape Decisions (SPF),Sheffield Hallam University,98983043,12693.91,Research Grant Expenditure
BEIS,UKRI - AHRC,17/06/2021,Research Grant Expenditure,Landscape Decisions (SPF),University of Newcastle Upon Tyne,98983044,9456.41,Research Grant Expenditure
BEIS,UKRI - AHRC,17/06/2021,Research Grant Expenditure,Networks & Workshops,University of Exeter,98983045,3993.63,Research Grant Expenditure
BEIS,UKRI - AHRC,17/06/2021,Research Grant Expenditure,Networks & Workshops,University of Hull,98983046,4478.46,Research Grant Expenditure
BEIS,UKRI - AHRC,17/06/2021,Research Grant Expenditure,Follow-on Fund,University College London,98983047,39996.91,Research Grant Expenditure
BEIS,UKRI - AHRC,17/06/2021,Research Grant Expenditure,Research Grants,University of Southampton GRANT,98983048,38285.74,Research Grant Expenditure
BEIS,UKRI - AHRC,17/06/2021,Research Grant Expenditure,Research Grants,University of Birmingham GRANT,98983049,24417.47,Research Grant Expenditure
BEIS,UKRI - AHRC,17/06/2021,Research Grant Expenditure,Research Grants,The University of Manchester,98983050,62764.72,Research Grant Expenditure
BEIS,UKRI - AHRC,17/06/2021,Research Grant Expenditure,RCUK Global Challenges Research Fund (RCUK GCRF),University of Sheffield,98983051,333.21,Research Grant Expenditure
BEIS,UKRI - AHRC,17/06/2021,Research Grant Expenditure,Research Grants,University of Sussex,98983052,66119.60,Research Grant Expenditure
BEIS,UKRI - AHRC,17/06/2021,Research Grant Expenditure,Networks & Workshops,University of Birmingham GRANT,98983053,5191.87,Research Grant Expenditure
BEIS,UKRI - AHRC,17/06/2021,Research Grant Expenditure,Research Grants,University of Stirling,98983054,68324.53,Research Grant Expenditure
BEIS,UKRI - AHRC,17/06/2021,Research Grant Expenditure,Commissioned Research,University of Nottingham,98983055,83714.76,Research Grant Expenditure
BEIS,UKRI - AHRC,17/06/2021,Research Grant Expenditure,Networks & Workshops,Oxford Brookes University,98983056,5396.79,Research Grant Expenditure
BEIS,UKRI - AHRC,17/06/2021,Research Grant Expenditure,Research Grants,University of Kent,98983057,22046.37,Research Grant Expenditure
BEIS,UKRI - AHRC,17/06/2021,Research Grant Expenditure,Research Grants,University of Sheffield,98983058,65645.90,Research Grant Expenditure
BEIS,UKRI - AHRC,17/06/2021,Research Grant Expenditure,Research Grants,University of Stirling,98983059,60982.99,Research Grant Expenditure
BEIS,UKRI - AHRC,17/06/2021,Research Grant Expenditure,Research Grants,University of Leeds,98983060,41947.59,Research Grant Expenditure
BEIS,UKRI - AHRC,17/06/2021,Research Grant Expenditure,Research Grants,Manchester Metropolitan University,98983061,63108.29,Research Grant Expenditure
BEIS,UKRI - AHRC,17/06/2021,Research Grant Expenditure,Research Grants,The Open University,98983062,13850.19,Research Grant Expenditure
BEIS,UKRI - AHRC,17/06/2021,Research Grant Expenditure,Research Grants,Cardiff University,98983063,25399.49,Research Grant Expenditure
BEIS,UKRI - AHRC,17/06/2021,Research Grant Expenditure,Research Grants,University of Newcastle Upon Tyne,98983064,70267.36,Research Grant Expenditure
BEIS,UKRI - AHRC,17/06/2021,Research Grant Expenditure,Research Grants,University of York,98983065,55350.38,Research Grant Expenditure
BEIS,UKRI - AHRC,17/06/2021,Research Grant Expenditure,Research Grants,University of Birmingham GRANT,98983066,29408.22,Research Grant Expenditure
BEIS,UKRI - AHRC,17/06/2021,Research Grant Expenditure,Research Grants,Royal College of Music,98983067,63369.27,Research Grant Expenditure
BEIS,UKRI - AHRC,17/06/2021,Research Grant Expenditure,Research Grants,Cardiff University,98983068,58860.39,Research Grant Expenditure
BEIS,UKRI - AHRC,17/06/2021,Research Grant Expenditure,Networks & Workshops,Nottingham Trent University,98983069,4570.63,Research Grant Expenditure
BEIS,UKRI - AHRC,17/06/2021,Research Grant Expenditure,Research Grants,The University of Manchester,98983070,16792.03,Research Grant Expenditure
BEIS,UKRI - AHRC,17/06/2021,Research Grant Expenditure,Living with Machines (SPF),The Alan Turing Institute,98983071,447890.94,Research Grant Expenditure
BEIS,UKRI - AHRC,17/06/2021,Research Grant Expenditure,Research Grants,University of Reading,98983072,64759.36,Research Grant Expenditure
BEIS,UKRI - AHRC,17/06/2021,Research Grant Expenditure,Research Grants,The Open University,98983073,34009.85,Research Grant Expenditure
BEIS,UKRI - AHRC,17/06/2021,Research Grant Expenditure,RCUK Global Challenges Research Fund (RCUK GCRF),University of Sussex,98983074,63492.17,Research Grant Expenditure
BEIS,UKRI - AHRC,17/06/2021,Research Grant Expenditure,Research Grants,University of Oxford,98983075,45453.12,Research Grant Expenditure
BEIS,UKRI - AHRC,17/06/2021,Research Grant Expenditure,Research Grants,University of Newcastle Upon Tyne,98983076,66587.34,Research Grant Expenditure
BEIS,UKRI - AHRC,17/06/2021,Research Grant Expenditure,JPI Cultural Heritage,University of Leeds,98983077,13945.59,Research Grant Expenditure
BEIS,UKRI - AHRC,17/06/2021,Research Grant Expenditure,Networks & Workshops,Nottingham Trent University,98983078,5649.09,Research Grant Expenditure
BEIS,UKRI - AHRC,17/06/2021,Research Grant Expenditure,Research Grants,University of Liverpool,98983079,70224.18,Research Grant Expenditure
BEIS,UKRI - AHRC,17/06/2021,Research Grant Expenditure,Research Grants,King's College London,98983080,67071.64,Research Grant Expenditure
BEIS,UKRI - AHRC,17/06/2021,Research Grant Expenditure,Networks & Workshops,University of Exeter,98983081,3806.41,Research Grant Expenditure
BEIS,UKRI - AHRC,17/06/2021,Research Grant Expenditure,Research Grants,University of Exeter,98983082,30928.90,Research Grant Expenditure
BEIS,UKRI - AHRC,17/06/2021,Research Grant Expenditure,JPI Cultural Heritage,University of Hull,98983083,11373.95,Research Grant Expenditure
BEIS,UKRI - AHRC,17/06/2021,Research Grant Expenditure,Research Grants,Lancaster University,98983084,51662.00,Research Grant Expenditure
BEIS,UKRI - AHRC,17/06/2021,Research Grant Expenditure,Research Grants,Manchester Metropolitan University,98983085,52403.31,Research Grant Expenditure
BEIS,UKRI - AHRC,17/06/2021,Research Grant Expenditure,Research Grants,University of Oxford,98983086,72573.90,Research Grant Expenditure
BEIS,UKRI - AHRC,17/06/2021,Research Grant Expenditure,Research Grants,Guildhall School of Music & Drama,98983087,69990.93,Research Grant Expenditure
BEIS,UKRI - AHRC,17/06/2021,Research Grant Expenditure,Research Grants,The University of Manchester,98983088,78150.66,Research Grant Expenditure
BEIS,UKRI - AHRC,17/06/2021,Research Grant Expenditure,Research Grants,University of the Arts London,98983089,52101.27,Research Grant Expenditure
BEIS,UKRI - AHRC,17/06/2021,Research Grant Expenditure,Research Grants,University of Kent,98983090,43334.43,Research Grant Expenditure
BEIS,UKRI - AHRC,17/06/2021,Research Grant Expenditure,Newton Programme,Liverpool John Moores University,98983091,16753.57,Research Grant Expenditure
BEIS,UKRI - AHRC,17/06/2021,Research Grant Expenditure,Newton Programme,Lancaster University,98983092,16711.67,Research Grant Expenditure
BEIS,UKRI - AHRC,17/06/2021,Research Grant Expenditure,Newton Programme,University of Leeds,98983093,16815.19,Research Grant Expenditure
BEIS,UKRI - AHRC,17/06/2021,Research Grant Expenditure,Industrial Strategy Challenge Fund (ISCF) - Creative Clusters,University of the West of England,98983094,421321.24,Research Grant Expenditure
BEIS,UKRI - AHRC,17/06/2021,Research Grant Expenditure,Industrial Strategy Challenge Fund (ISCF) - Creative Clusters,UNIVERSITY OF ULSTER,98983095,420149.81,Research Grant Expenditure
BEIS,UKRI - AHRC,17/06/2021,Research Grant Expenditure,Industrial Strategy Challenge Fund (ISCF) - Creative Clusters,University of Leeds,98983096,412598.62,Research Grant Expenditure
BEIS,UKRI - AHRC,17/06/2021,Research Grant Expenditure,Industrial Strategy Challenge Fund (ISCF) - Creative Clusters,Cardiff University,98983097,402834.25,Research Grant Expenditure
BEIS,UKRI - AHRC,17/06/2021,Research Grant Expenditure,Industrial Strategy Challenge Fund (ISCF) - Creative Clusters,"Royal Holloway, University of London",98983098,419979.02,Research Grant Expenditure
BEIS,UKRI - AHRC,17/06/2021,Research Grant Expenditure,Research Grants,University of Oxford,98983099,50852.86,Research Grant Expenditure
BEIS,UKRI - AHRC,17/06/2021,Research Grant Expenditure,Research Grants,University of Newcastle Upon Tyne,98983100,57232.54,Research Grant Expenditure
BEIS,UKRI - AHRC,17/06/2021,Research Grant Expenditure,Research Grants,University of Oxford,98983101,57753.01,Research Grant Expenditure
BEIS,UKRI - AHRC,17/06/2021,Research Grant Expenditure,Research Grants,University of York,98983102,75496.47,Research Grant Expenditure
BEIS,UKRI - AHRC,17/06/2021,Research Grant Expenditure,Industrial Strategy Challenge Fund (ISCF) - Creative Clusters,NESTA,98983103,339796.10,Research Grant Expenditure
BEIS,UKRI - AHRC,17/06/2021,Research Grant Expenditure,Research Grants,University of the Arts London,98983104,32447.25,Research Grant Expenditure
BEIS,UKRI - AHRC,17/06/2021,Research Grant Expenditure,JPI Cultural Heritage,University College London,98983105,8195.87,Research Grant Expenditure
BEIS,UKRI - AHRC,17/06/2021,Research Grant Expenditure,JPI Cultural Heritage,University of Oxford,98983106,11182.81,Research Grant Expenditure
BEIS,UKRI - AHRC,17/06/2021,Research Grant Expenditure,JPI Cultural Heritage,De Montfort University,98983107,13437.05,Research Grant Expenditure
BEIS,UKRI - AHRC,17/06/2021,Research Grant Expenditure,Research Grants,University of Chester,98983108,38228.23,Research Grant Expenditure
BEIS,UKRI - AHRC,17/06/2021,Research Grant Expenditure,Research Grants,University of Reading,98983109,47905.23,Research Grant Expenditure
BEIS,UKRI - AHRC,17/06/2021,Research Grant Expenditure,Care for the Future,University of Exeter,98983110,23676.32,Research Grant Expenditure
BEIS,UKRI - AHRC,17/06/2021,Research Grant Expenditure,Research Grants,Birkbeck College,98983111,67433.77,Research Grant Expenditure
BEIS,UKRI - AHRC,17/06/2021,Research Grant Expenditure,Research Grants,King's College London,98983112,66335.93,Research Grant Expenditure
BEIS,UKRI - AHRC,17/06/2021,Research Grant Expenditure,Newton Programme,Nottingham Trent University,98983113,15030.01,Research Grant Expenditure
BEIS,UKRI - AHRC,17/06/2021,Research Grant Expenditure,Newton Programme,Imperial College London,98983114,17010.71,Research Grant Expenditure
BEIS,UKRI - AHRC,17/06/2021,Research Grant Expenditure,Research Grants,University of Warwick,98983115,57990.53,Research Grant Expenditure
BEIS,UKRI - AHRC,17/06/2021,Research Grant Expenditure,Research Grants,University of Strathclyde,98983116,55428.87,Research Grant Expenditure
BEIS,UKRI - AHRC,17/06/2021,Research Grant Expenditure,Research Grants,University of Derby,98983117,25516.63,Research Grant Expenditure
BEIS,UKRI - AHRC,17/06/2021,Research Grant Expenditure,Research Grants,University of Derby,98983117,25516.62,Research Grant Expenditure
BEIS,UKRI - AHRC,17/06/2021,Research Grant Expenditure,Research Grants,University of Wales Trinity St David,98983118,63841.32,Research Grant Expenditure
BEIS,UKRI - AHRC,17/06/2021,Research Grant Expenditure,Global Challenges Research Fund (GCRF),University of Leeds,98983119,170865.48,Research Grant Expenditure
BEIS,UKRI - AHRC,17/06/2021,Research Grant Expenditure,Research Grants,University College London,98983120,34375.74,Research Grant Expenditure
BEIS,UKRI - AHRC,17/06/2021,Research Grant Expenditure,Research Grants,University of Glasgow,98983121,34505.57,Research Grant Expenditure
BEIS,UKRI - AHRC,17/06/2021,Research Grant Expenditure,Research Grants,Birmingham City University,98983122,43250.52,Research Grant Expenditure
BEIS,UKRI - AHRC,17/06/2021,Research Grant Expenditure,Research Grants,University of Sussex,98983123,44214.09,Research Grant Expenditure
BEIS,UKRI - AHRC,17/06/2021,Research Grant Expenditure,Research Grants,University of Southampton GRANT,98983124,27609.97,Research Grant Expenditure
BEIS,UKRI - AHRC,17/06/2021,Fellowships,Public and Stakeholder Engagement,Royal Northern College of Music,98983125,1260.12,Fellowships
BEIS,UKRI - AHRC,17/06/2021,Fellowships,Public and Stakeholder Engagement,Royal Northern College of Music,98983125,1260.12,Fellowships
BEIS,UKRI - AHRC,17/06/2021,Fellowships,Public and Stakeholder Engagement,University of West London,98983126,1260.12,Fellowships
BEIS,UKRI - AHRC,17/06/2021,Fellowships,Public and Stakeholder Engagement,Royal College of Music,98983127,1260.12,Fellowships
BEIS,UKRI - AHRC,17/06/2021,Fellowships,Public and Stakeholder Engagement,University of Oxford,98983128,1260.12,Fellowships
BEIS,UKRI - AHRC,17/06/2021,Fellowships,Commissioned Research,Manchester Metropolitan University,98983129,25152.35,Fellowships
BEIS,UKRI - AHRC,17/06/2021,Fellowships,Commissioned Research,Manchester Metropolitan University,98983129,25152.35,Fellowships
BEIS,UKRI - AHRC,17/06/2021,Fellowships,Commissioned Research,"Royal Holloway, University of London",98983130,25167.19,Fellowships
BEIS,UKRI - AHRC,17/06/2021,Fellowships,Commissioned Research,"Royal Holloway, University of London",98983130,25167.19,Fellowships
BEIS,UKRI - AHRC,17/06/2021,Fellowships,Commissioned Research,University of Exeter,98983131,25033.64,Fellowships
BEIS,UKRI - AHRC,17/06/2021,Fellowships,Commissioned Research,University of Birmingham GRANT,98983132,25194.89,Fellowships
BEIS,UKRI - AHRC,17/06/2021,Fellowships,Commissioned Research,Keele University,98983133,15363.44,Fellowships
BEIS,UKRI - AHRC,17/06/2021,Fellowships,Research Fellowships,University of Greenwich,98983134,29075.83,Fellowships
BEIS,UKRI - AHRC,17/06/2021,Fellowships,Research Fellowships,Middlesex University,98983135,24024.90,Fellowships
BEIS,UKRI - AHRC,17/06/2021,Fellowships,Research Fellowships,University of Southampton GRANT,98983136,28784.74,Fellowships
BEIS,UKRI - AHRC,17/06/2021,Fellowships,Research Fellowships,University of Bristol GRANT,98983137,43785.61,Fellowships
BEIS,UKRI - AHRC,17/06/2021,Fellowships,Research Fellowships,University of South Wales,98983138,22204.61,Fellowships
BEIS,UKRI - AHRC,17/06/2021,Fellowships,Research Fellowships,The University of Manchester,98983139,42413.69,Fellowships
BEIS,UKRI - AHRC,17/06/2021,Fellowships,Research Fellowships,The University of Manchester,98983139,42413.69,Fellowships
BEIS,UKRI - AHRC,17/06/2021,Fellowships,Commissioned Research,University of Newcastle Upon Tyne,98983140,24813.98,Fellowships
BEIS,UKRI - AHRC,17/06/2021,Fellowships,Commissioned Research,University of Leicester,98983141,33375.88,Fellowships
BEIS,UKRI - AHRC,17/06/2021,Fellowships,Commissioned Research,University of Leicester,98983141,33375.88,Fellowships
BEIS,UKRI - AHRC,17/06/2021,Fellowships,Research Fellowships,University of Edinburgh,98983142,27202.16,Fellowships
BEIS,UKRI - AHRC,17/06/2021,Fellowships,Research Fellowships,Goldsmiths College University of London,98983143,24294.21,Fellowships
BEIS,UKRI - AHRC,17/06/2021,Fellowships,Research Fellowships,University of Warwick,98983144,32170.42,Fellowships
BEIS,UKRI - AHRC,17/06/2021,Fellowships,Research Fellowships,University of Leeds,98983145,30814.91,Fellowships
BEIS,UKRI - AHRC,17/06/2021,Fellowships,Research Fellowships,University of Leeds,98983146,22142.56,Fellowships
BEIS,UKRI - AHRC,17/06/2021,Fellowships,Research Fellowships,University of Newcastle Upon Tyne,98983147,23686.05,Fellowships
BEIS,UKRI - AHRC,17/06/2021,Fellowships,Research Fellowships,Edge Hill University College,98983148,29802.36,Fellowships
BEIS,UKRI - AHRC,17/06/2021,Fellowships,Research Fellowships,University of Sheffield,98983150,24956.27,Fellowships
BEIS,UKRI - AHRC,17/06/2021,Fellowships,Research Fellowships,University of Birmingham GRANT,98983151,19833.74,Fellowships
BEIS,UKRI - AHRC,17/06/2021,Fellowships,Research Fellowships,Queen Mary University of London,98983152,25405.13,Fellowships
BEIS,UKRI - AHRC,17/06/2021,Fellowships,Research Fellowships,University of Durham,98983153,28185.07,Fellowships
BEIS,UKRI - AHRC,17/06/2021,Fellowships,Commissioned Research,University of Liverpool,98983154,26831.06,Fellowships
BEIS,UKRI - AHRC,17/06/2021,Fellowships,Research Fellowships,University of Leeds,98983155,27666.75,Fellowships
BEIS,UKRI - AHRC,17/06/2021,Fellowships,Research Fellowships,University of Cambridge,98983156,25026.81,Fellowships
BEIS,UKRI - AHRC,17/06/2021,Fellowships,Research Fellowships,Queen Mary University of London,98983157,26500.29,Fellowships
BEIS,UKRI - AHRC,17/06/2021,Fellowships,NPIF Research Talent (RCUK Innovation Fellowships),University of Edinburgh,98983158,30782.68,Fellowships
BEIS,UKRI - AHRC,17/06/2021,Fellowships,Research Fellowships,University of Brighton,98983159,10895.73,Fellowships
BEIS,UKRI - AHRC,17/06/2021,Research Grant Expenditure,Research Grants,University of Stirling,98983160,35518.15,Research Grant Expenditure
BEIS,UKRI - AHRC,17/06/2021,Research Grant Expenditure,Industrial Strategy Challenge Fund (ISCF) - Creative Clusters,Abertay University,98983161,392132.42,Research Grant Expenditure
BEIS,UKRI - AHRC,17/06/2021,Research Grant Expenditure,Industrial Strategy Challenge Fund (ISCF) - Creative Clusters,University of York,98983162,413964.22,Research Grant Expenditure
BEIS,UKRI - AHRC,17/06/2021,Research Grant Expenditure,Industrial Strategy Challenge Fund (ISCF) - Creative Clusters,University of the Arts London,98983163,416344.41,Research Grant Expenditure
BEIS,UKRI - AHRC,17/06/2021,Research Grant Expenditure,Industrial Strategy Challenge Fund (ISCF) - Creative Clusters,University of Edinburgh,98983164,419514.01,Research Grant Expenditure
BEIS,UKRI - AHRC,17/06/2021,Research Grant Expenditure,Research Grants,Museum of London Archaeology,98983165,18778.12,Research Grant Expenditure
BEIS,UKRI - AHRC,17/06/2021,Research Grant Expenditure,Research Grants,University of Leeds,98983166,68684.16,Research Grant Expenditure
BEIS,UKRI - AHRC,17/06/2021,Research Grant Expenditure,Research Grants,University of Newcastle Upon Tyne,98983167,50972.03,Research Grant Expenditure
BEIS,UKRI - AHRC,17/06/2021,Research Grant Expenditure,Research Grants,University of Reading,98983168,66583.86,Research Grant Expenditure
BEIS,UKRI - AHRC,17/06/2021,Research Grant Expenditure,Research Grants,The University of Manchester,98983169,49639.04,Research Grant Expenditure
BEIS,UKRI - AHRC,17/06/2021,Research Grant Expenditure,Research Grants,University of Kent,98983170,56979.82,Research Grant Expenditure
BEIS,UKRI - AHRC,17/06/2021,Research Grant Expenditure,Research Grants,University of Exeter,98983171,44099.78,Research Grant Expenditure
BEIS,UKRI - AHRC,17/06/2021,Research Grant Expenditure,JPI Cultural Heritage,University of Warwick,98983172,8957.40,Research Grant Expenditure
BEIS,UKRI - AHRC,17/06/2021,Research Grant Expenditure,Research Grants,University of East Anglia,98983173,35008.05,Research Grant Expenditure
BEIS,UKRI - AHRC,17/06/2021,Research Grant Expenditure,Research Grants,The University of Manchester,98983174,28487.92,Research Grant Expenditure
BEIS,UKRI - AHRC,17/06/2021,Research Grant Expenditure,Research Grants,University of Sussex,98983175,39969.86,Research Grant Expenditure
BEIS,UKRI - AHRC,17/06/2021,Research Grant Expenditure,Research Grants,University of Southampton GRANT,98983176,67352.67,Research Grant Expenditure
BEIS,UKRI - AHRC,17/06/2021,Research Grant Expenditure,Research Grants,The University of Manchester,98983177,67947.16,Research Grant Expenditure
BEIS,UKRI - AHRC,17/06/2021,Research Grant Expenditure,Newton Programme,University of Bedfordshire,98983178,17458.81,Research Grant Expenditure
BEIS,UKRI - AHRC,17/06/2021,Research Grant Expenditure,Research Grants,University of Reading,98983179,59163.18,Research Grant Expenditure
BEIS,UKRI - AHRC,17/06/2021,Research Grant Expenditure,Research Grants,University of Newcastle Upon Tyne,98983180,54871.28,Research Grant Expenditure
BEIS,UKRI - AHRC,17/06/2021,Research Grant Expenditure,Research Grants,University of Newcastle Upon Tyne,98983181,71727.09,Research Grant Expenditure
BEIS,UKRI - AHRC,17/06/2021,Research Grant Expenditure,Research Grants,University of Westminster,98983182,40662.11,Research Grant Expenditure
BEIS,UKRI - AHRC,17/06/2021,Research Grant Expenditure,Global Challenges Research Fund (GCRF),University of Liverpool,98983183,116222.88,Research Grant Expenditure
BEIS,UKRI - AHRC,17/06/2021,Research Grant Expenditure,Research Grants,Cardiff University,98983184,24457.18,Research Grant Expenditure
BEIS,UKRI - AHRC,17/06/2021,Research Grant Expenditure,Science and Heritage Programme,University College London,98983185,24994.80,Research Grant Expenditure
BEIS,UKRI - AHRC,17/06/2021,Research Grant Expenditure,Science and Heritage Programme,University College London,98983185,74984.40,Research Grant Expenditure
BEIS,UKRI - AHRC,17/06/2021,Research Grant Expenditure,Science and Heritage Programme,University College London,98983185,97375.20,Research Grant Expenditure
BEIS,UKRI - AHRC,17/06/2021,Research Grant Expenditure,Research Grants,University of Glasgow,98983186,41406.86,Research Grant Expenditure
BEIS,UKRI - AHRC,17/06/2021,Research Grant Expenditure,Research Grants,University of Durham,98983187,28214.80,Research Grant Expenditure
BEIS,UKRI - AHRC,17/06/2021,Research Grant Expenditure,Research Grants,Historic Environment Scotland (GRANT),98983188,36485.41,Research Grant Expenditure
BEIS,UKRI - AHRC,17/06/2021,Fellowships,Public and Stakeholder Engagement,Bath Spa University,98983189,1260.12,Fellowships
BEIS,UKRI - AHRC,17/06/2021,Fellowships,Public and Stakeholder Engagement,University of Edinburgh,98983190,1260.12,Fellowships
BEIS,UKRI - AHRC,17/06/2021,Fellowships,Public and Stakeholder Engagement,University of Edinburgh,98983190,1260.12,Fellowships
BEIS,UKRI - AHRC,17/06/2021,Fellowships,Public and Stakeholder Engagement,Birmingham City University,98983191,1260.12,Fellowships
BEIS,UKRI - AHRC,17/06/2021,Fellowships,Commissioned Research,University of the West of England,98983192,35272.06,Fellowships
BEIS,UKRI - AHRC,17/06/2021,Fellowships,Commissioned Research,University of the West of England,98983192,35272.06,Fellowships
BEIS,UKRI - AHRC,17/06/2021,Fellowships,Commissioned Research,University of Liverpool,98983193,25132.46,Fellowships
BEIS,UKRI - AHRC,17/06/2021,Fellowships,Commissioned Research,University of Liverpool,98983193,25132.46,Fellowships
BEIS,UKRI - AHRC,17/06/2021,Fellowships,Commissioned Research,University for the Creative Arts,98983194,25107.49,Fellowships
BEIS,UKRI - AHRC,17/06/2021,Fellowships,Commissioned Research,University of Strathclyde,98983195,24785.60,Fellowships
BEIS,UKRI - AHRC,17/06/2021,Fellowships,Commissioned Research,University of Edinburgh,98983196,15121.75,Fellowships
BEIS,UKRI - AHRC,17/06/2021,Fellowships,Commissioned Research,University of Edinburgh,98983196,15121.75,Fellowships
BEIS,UKRI - AHRC,17/06/2021,Fellowships,Research Fellowships,University of Southampton GRANT,98983197,36828.24,Fellowships
BEIS,UKRI - AHRC,17/06/2021,Fellowships,Research Fellowships,University of Southampton GRANT,98983198,25197.86,Fellowships
BEIS,UKRI - AHRC,17/06/2021,Fellowships,Research Fellowships,University of Glasgow,98983199,26700.13,Fellowships
BEIS,UKRI - AHRC,17/06/2021,Fellowships,Research Fellowships,University of Glasgow,98983199,26700.13,Fellowships
BEIS,UKRI - AHRC,17/06/2021,Fellowships,Research Fellowships,University of St Andrews,98983200,22502.96,Fellowships
BEIS,UKRI - AHRC,17/06/2021,Fellowships,Research Fellowships,Cardiff University,98983201,33485.33,Fellowships
BEIS,UKRI - AHRC,17/06/2021,Fellowships,Research Fellowships,University of Sheffield,98983202,26349.07,Fellowships
BEIS,UKRI - AHRC,17/06/2021,Fellowships,Commissioned Research,University of Bristol GRANT,98983203,26624.69,Fellowships
BEIS,UKRI - AHRC,17/06/2021,Fellowships,Commissioned Research,University of Bristol GRANT,98983203,26624.69,Fellowships
BEIS,UKRI - AHRC,17/06/2021,Fellowships,Commissioned Research,Aston University,98983204,18274.63,Fellowships
BEIS,UKRI - AHRC,17/06/2021,Fellowships,Research Fellowships,University of Liverpool,98983205,18504.09,Fellowships
BEIS,UKRI - AHRC,17/06/2021,Fellowships,Research Fellowships,University of Liverpool,98983205,18504.09,Fellowships
BEIS,UKRI - AHRC,17/06/2021,Fellowships,Research Fellowships,University of Liverpool,98983205,18504.09,Fellowships
BEIS,UKRI - AHRC,17/06/2021,Fellowships,Research Fellowships,Bangor University,98983206,28257.44,Fellowships
BEIS,UKRI - AHRC,17/06/2021,Fellowships,Research Fellowships,University of Durham,98983207,32661.91,Fellowships
BEIS,UKRI - AHRC,17/06/2021,Fellowships,Research Fellowships,University of the Arts London,98983208,26337.48,Fellowships
BEIS,UKRI - AHRC,17/06/2021,Fellowships,Research Fellowships,University of Central Lancashire,98983209,11543.35,Fellowships
BEIS,UKRI - AHRC,17/06/2021,Fellowships,Research Fellowships,University of East Anglia,98983210,32979.66,Fellowships
BEIS,UKRI - AHRC,17/06/2021,Fellowships,Research Fellowships,University of Leeds,98983211,42331.92,Fellowships
BEIS,UKRI - AHRC,17/06/2021,Fellowships,Research Fellowships,University of Nottingham,98983212,27864.88,Fellowships
BEIS,UKRI - AHRC,17/06/2021,Fellowships,Research Fellowships,Royal Conservatoire of Scotland,98983213,28142.77,Fellowships
BEIS,UKRI - AHRC,17/06/2021,Fellowships,Research Fellowships,Royal Conservatoire of Scotland,98983213,27916.65,Fellowships
BEIS,UKRI - AHRC,17/06/2021,Fellowships,Research Fellowships,University of Exeter,98983214,25156.50,Fellowships
BEIS,UKRI - AHRC,17/06/2021,Fellowships,Research Fellowships,University of Birmingham GRANT,98983215,31469.25,Fellowships
BEIS,UKRI - AHRC,17/06/2021,Fellowships,Research Fellowships,University of Edinburgh,98983216,23224.01,Fellowships
BEIS,UKRI - AHRC,17/06/2021,Fellowships,Research Fellowships,University of Nottingham,98983217,22186.90,Fellowships
BEIS,UKRI - AHRC,17/06/2021,Fellowships,Research Fellowships,The University of Manchester,98983218,22577.52,Fellowships
BEIS,UKRI - AHRC,17/06/2021,Fellowships,Research Fellowships,University of Leicester,98983219,21314.91,Fellowships
BEIS,UKRI - AHRC,17/06/2021,Fellowships,Commissioned Research,University of St Andrews,98983220,26075.25,Fellowships
BEIS,UKRI - AHRC,17/06/2021,Fellowships,Research Fellowships,University of Birmingham GRANT,98983221,22995.55,Fellowships
BEIS,UKRI - AHRC,17/06/2021,Fellowships,Research Fellowships,University of Leicester,98983222,24093.77,Fellowships
BEIS,UKRI - AHRC,17/06/2021,Fellowships,Research Fellowships,University of Durham,98983223,23470.25,Fellowships
BEIS,UKRI - AHRC,17/06/2021,Fellowships,Research Fellowships,University of St Andrews,98983224,25298.51,Fellowships
BEIS,UKRI - AHRC,17/06/2021,Fellowships,Research Fellowships,University of Leeds,98983255,35899.35,Fellowships
BEIS,UKRI - AHRC,17/06/2021,Fellowships,Research Fellowships,University of Leeds,98983256,11852.35,Fellowships
BEIS,UKRI - AHRC,17/06/2021,Fellowships,NPIF Research Talent (RCUK Innovation Fellowships),University of Southampton GRANT,98983257,19315.53,Fellowships
BEIS,UKRI - AHRC,17/06/2021,Fellowships,Research Fellowships,"Royal Holloway, University of London",98983258,30463.56,Fellowships
BEIS,UKRI - AHRC,17/06/2021,Fellowships,Research Fellowships,Nottingham Trent University,98983259,21934.58,Fellowships
BEIS,UKRI - AHRC,17/06/2021,Fellowships,Research Fellowships,University of Glasgow,98983260,20378.00,Fellowships
BEIS,UKRI - AHRC,17/06/2021,Fellowships,NPIF Research Talent (RCUK Innovation Fellowships),University College London,98983261,18676.00,Fellowships
BEIS,UKRI - AHRC,17/06/2021,Fellowships,Research Fellowships,Swansea University,98983262,23146.17,Fellowships
BEIS,UKRI - AHRC,17/06/2021,Fellowships,Research Fellowships,University of Exeter,98983263,20919.77,Fellowships
BEIS,UKRI - AHRC,17/06/2021,Fellowships,Research Fellowships,University of Bristol GRANT,98983264,36270.85,Fellowships
BEIS,UKRI - AHRC,17/06/2021,Fellowships,Research Fellowships,Cardiff University,98983265,20414.07,Fellowships
BEIS,UKRI - AHRC,17/06/2021,Fellowships,Research Fellowships,University of Sheffield,98983266,8509.99,Fellowships
BEIS,UKRI - AHRC,17/06/2021,Non-staff travel and subsistance,SMT,Unspecified,98988597,15.00,Non-staff travel and subsistance
BEIS,UKRI - AHRC,17/06/2021,Conferences & Seminars,Skills Strategy,Unspecified,98989908,125.00,Conferences & Seminars
BEIS,UKRI - AHRC,18/06/2021,Unspecified,SMT,University of St Andrews,98957466,135891.42,Secondments
BEIS,UKRI - AHRC,18/06/2021,Capital Grants & Equipment to HEIs,DEDEFI Capital Grants,Historic Buildings and Monuments Commission for England T/A Historic England,98982161,108637.20,Capital Grants & Equipment to HEIs
BEIS,UKRI - AHRC,18/06/2021,Research Grant Expenditure,DFID Collaborative Humanitarian Protection Research Programme (CHPRP),SIPRI,98982872,69726.53,Research Grant Expenditure
BEIS,UKRI - AHRC,18/06/2021,Research Grant Expenditure,DFID Collaborative Humanitarian Protection Research Programme (CHPRP),American University of Beirut,98982873,60449.66,Research Grant Expenditure
BEIS,UKRI - AHRC,18/06/2021,Research Grant Expenditure,Landscape Decisions (SPF),NERC - British Geological Survey,98982883,12958.86,Research Grant Expenditure
BEIS,UKRI - AHRC,18/06/2021,Research Grant Expenditure,Global Challenges Research Fund (GCRF),Marondera University of Agricultural Sciences and Technology,98982975,36054.01,Research Grant Expenditure
BEIS,UKRI - AHRC,18/06/2021,Research Grant Expenditure,Global Challenges Research Fund (GCRF),Marondera University of Agricultural Sciences and Technology,98982975,36054.01,Research Grant Expenditure
BEIS,UKRI - AHRC,18/06/2021,Research Grant Expenditure,DFID Collaborative Humanitarian Protection Research Programme (CHPRP),Global Public Policy Institute,98983028,72929.18,Research Grant Expenditure
BEIS,UKRI - AHRC,18/06/2021,Research Grant Expenditure,DFID Collaborative Humanitarian Protection Research Programme (CHPRP),Geneva Academy of International Humanitarian Law and Human Rights,98983029,60887.21,Research Grant Expenditure
BEIS,UKRI - AHRC,18/06/2021,Research Grant Expenditure,DFID Collaborative Humanitarian Protection Research Programme (CHPRP),"National University of Ireland, Galway",98983030,84114.76,Research Grant Expenditure
BEIS,UKRI - AHRC,18/06/2021,Fellowships,Research Fellowships,Historic Buildings and Monuments Commission for England T/A Historic England,98983149,18591.42,Fellowships
BEIS,UKRI - AHRC,18/06/2021,International Subscriptions,SMT,Arma (UK) Ltd,98988760,255.00,International Subscriptions
BEIS,UKRI - AHRC,18/06/2021,Unspecified,Infrastruture Roadmap,Alexander Mann Solutions Ltd,98989139,3465.30,Contract Staff
BEIS,UKRI - AHRC,18/06/2021,Unspecified,Balance Sheet,Unspecified,98989199,460.00,Ees Pension Deductions - JSS
BEIS,UKRI - AHRC,21/06/2021,Research Grant Expenditure,Skills Strategy,Clore Leadership Programme,98989426,50.00,Research Grant Expenditure
BEIS,UKRI - AHRC,22/06/2021,Research Grant Expenditure,Anti-microbial Resistance (AMR),UKRI - Economic & Social Research Council,98988761,19752.43,Research Grant Expenditure
BEIS,UKRI - AHRC,22/06/2021,Research Grant Expenditure,Urban Living,UKRI - Economic & Social Research Council,98988768,2747.22,Research Grant Expenditure
BEIS,UKRI - AHRC,22/06/2021,Research Grant Expenditure,Digital Transformations,UKRI - Economic & Social Research Council,98988775,5735.68,Research Grant Expenditure
BEIS,UKRI - AHRC,22/06/2021,Research Grant Expenditure,Cross Council Responsive Mode Awards,UKRI - Economic & Social Research Council,98988777,22810.67,Research Grant Expenditure
BEIS,UKRI - AHRC,22/06/2021,Research Grant Expenditure,Digital Economy,UKRI - Engineering & Physical Sciences Research Council,98989015,30880.04,Research Grant Expenditure
BEIS,UKRI - AHRC,22/06/2021,Other Programme Costs,Commissioned Research,UKRI - Engineering & Physical Sciences Research Council,98989018,149891.00,Other Programme Costs
BEIS,UKRI - AHRC,22/06/2021,Research Grant Expenditure,NPIF Research Talent (RCUK Innovation Fellowships),UKRI - Engineering & Physical Sciences Research Council,98989099,7435.24,Research Grant Expenditure
BEIS,UKRI - AHRC,22/06/2021,Research Grant Expenditure,NPIF Research Talent (RCUK Innovation Fellowships),UKRI - Engineering & Physical Sciences Research Council,98989099,14050.88,Research Grant Expenditure
BEIS,UKRI - AHRC,22/06/2021,Research Grant Expenditure,NPIF Research Talent (RCUK Innovation Fellowships),UKRI - Engineering & Physical Sciences Research Council,98989099,14953.97,Research Grant Expenditure
BEIS,UKRI - AHRC,22/06/2021,Research Grant Expenditure,NPIF Research Talent (RCUK Innovation Fellowships),UKRI - Engineering & Physical Sciences Research Council,98989099,5149.42,Research Grant Expenditure
BEIS,UKRI - AHRC,22/06/2021,Research Grant Expenditure,Commissioned Research,UKRI - Economic & Social Research Council,98989781,95344.96,Research Grant Expenditure
BEIS,UKRI - AHRC,22/06/2021,Research Grant Expenditure,Urban Living,UKRI - Economic & Social Research Council,98989786,26374.63,Research Grant Expenditure
BEIS,UKRI - AHRC,22/06/2021,Research Grant Expenditure,Global Uncertainties Programme,UKRI - Economic & Social Research Council,98989788,2041.70,Research Grant Expenditure
BEIS,UKRI - AHRC,22/06/2021,T&S UK - Other Charges,Operations,Unspecified,98991059,140.48,T&S UK - Other Charges
BEIS,UKRI - AHRC,23/06/2021,Non-staff travel and subsistance,Board and Committee,Unspecified,98991167,767.38,Non-staff travel and subsistance
BEIS,UKRI - AHRC,23/06/2021,Fees (Including College Members),Executive Office,Unspecified,98992144,500.00,Fees (Including College Members)
BEIS,UKRI - AHRC,24/06/2021,Unspecified,SMT,"Keble College, University of Oxford",98969171,27291.49,Secondments
BEIS,UKRI - AHRC,24/06/2021,Fees (Including College Members),New Programme Development,Unspecified,98991547,170.00,Fees (Including College Members)
BEIS,UKRI - AHRC,28/06/2021,T&S UK - Other Charges,Operations,Unspecified,98994172,189.12,T&S UK - Other Charges
BEIS,UKRI - AHRC,29/06/2021,Research Grant Expenditure,GCRF - Programme Delivery,UKRI - Economic & Social Research Council,98991554,27856.00,Research Grant Expenditure
BEIS,UKRI - AHRC,30/06/2021,Health & Safety (inc. Medicals & Opticians),AHRC - Creative Industries,Unspecified,98996108,126.25,Health & Safety (inc. Medicals & Opticians)
BEIS,UKRI - AHRC,30/06/2021,Conferences & Seminars,Health and Environmental Humanities,Unspecified,98996109,200.00,Conferences & Seminars
BEIS,UKRI - BBSRC,03/06/2021,T&S UK - Vehicle Hire,FG - Estates,Enterprise Rent-A-Car UK Ltd,98974067,62.86,T&S UK - Vehicle Hire
BEIS,UKRI - BBSRC,03/06/2021,T&S UK - Vehicle Hire,FG - Estates,Enterprise Rent-A-Car UK Ltd,98974067,12.57,T&S UK - Vehicle Hire
BEIS,UKRI - BBSRC,03/06/2021,Research Institutes - Competitive Strategic Grant,Rothamsted Research,Rothamsted Research Ltd,98974971,6463.87,Research Institutes - Competitive Strategic Grant
BEIS,UKRI - BBSRC,03/06/2021,Research Institutes - Competitive Strategic Grant,Rothamsted Research,Rothamsted Research Ltd,98974971,27171.64,Research Institutes - Competitive Strategic Grant
BEIS,UKRI - BBSRC,03/06/2021,Research Institutes - Competitive Strategic Grant,Rothamsted Research,Rothamsted Research Ltd,98974971,3757.16,Research Institutes - Competitive Strategic Grant
BEIS,UKRI - BBSRC,03/06/2021,Research Institutes - Competitive Strategic Grant,Rothamsted Research,Rothamsted Research Ltd,98974971,11445.79,Research Institutes - Competitive Strategic Grant
BEIS,UKRI - BBSRC,03/06/2021,Research Institutes - Competitive Strategic Grant,Rothamsted Research,Rothamsted Research Ltd,98974971,411.54,Research Institutes - Competitive Strategic Grant
BEIS,UKRI - BBSRC,07/06/2021,Research Institutes - Capital Grants: Minor Works,Rothamsted Research,Rothamsted Research Ltd,98970686,83656.31,Research Institutes - Capital Grants: Minor Works
BEIS,UKRI - BBSRC,07/06/2021,Recruitment Costs,PDG - Director,Agenda Resource Management Ltd,98977860,153.91,Recruitment Costs
BEIS,UKRI - BBSRC,07/06/2021,Fees (Including College Members),Innovation and Skills Group CDSU,Unspecified,98977993,170.00,Fees (Including College Members)
BEIS,UKRI - BBSRC,07/06/2021,T&S UK - Other Charges,CIMG - Information Management,Unspecified,98980250,29.99,T&S UK - Other Charges
BEIS,UKRI - BBSRC,08/06/2021,Research Institutes - Capital Grants: Minor Works,Rothamsted Research,Rothamsted Research Ltd,98970684,49435.20,Research Institutes - Capital Grants: Minor Works
BEIS,UKRI - BBSRC,10/06/2021,Fees (Including College Members),Innovation and Skills Group CDSU,Unspecified,98983570,170.00,Fees (Including College Members)
BEIS,UKRI - BBSRC,10/06/2021,Fees (Including College Members),Science Group – Admin Function,Unspecified,98983571,340.00,Fees (Including College Members)
BEIS,UKRI - BBSRC,10/06/2021,Fees (Including College Members),Science Group – Admin Function,Unspecified,98983572,340.00,Fees (Including College Members)
BEIS,UKRI - BBSRC,10/06/2021,Fees (Including College Members),Science Group – Admin Function,Unspecified,98983573,460.00,Fees (Including College Members)
BEIS,UKRI - BBSRC,10/06/2021,Fees (Including College Members),Science Group – Admin Function,Unspecified,98983574,340.00,Fees (Including College Members)
BEIS,UKRI - BBSRC,10/06/2021,Fees (Including College Members),Science Group – Admin Function,Unspecified,98983575,340.00,Fees (Including College Members)
BEIS,UKRI - BBSRC,10/06/2021,Fees (Including College Members),Science Group – Admin Function,Unspecified,98983576,340.00,Fees (Including College Members)
BEIS,UKRI - BBSRC,10/06/2021,Fees (Including College Members),Science Group – Admin Function,Unspecified,98983577,170.00,Fees (Including College Members)
BEIS,UKRI - BBSRC,10/06/2021,Fees (Including College Members),Science Group – Admin Function,Unspecified,98983578,340.00,Fees (Including College Members)
BEIS,UKRI - BBSRC,10/06/2021,Fees (Including College Members),Science Group – Admin Function,Unspecified,98983579,340.00,Fees (Including College Members)
BEIS,UKRI - BBSRC,11/06/2021,T&S UK - Other Charges,Science Group,Unspecified,98987238,19.00,T&S UK - Other Charges
BEIS,UKRI - BBSRC,11/06/2021,T&S UK - Other Charges,Innovation and Skills Group,Unspecified,98987239,35.00,T&S UK - Other Charges
BEIS,UKRI - BBSRC,14/06/2021,Unspecified,Balance Sheet,HM Revenue & Customs,98969322,74756.33,PAYE Payable Salaries
BEIS,UKRI - BBSRC,14/06/2021,Unspecified,Balance Sheet,HM Revenue & Customs,98969323,5778.00,Student Loans
BEIS,UKRI - BBSRC,14/06/2021,Unspecified,Balance Sheet,HM Revenue & Customs,98969324,100793.61,NI Payable Salaries
BEIS,UKRI - BBSRC,14/06/2021,Unspecified,FG - Accounts & Business Planning,HM Revenue & Customs,98971325,2616.00,Apprenticeship Levy
BEIS,UKRI - BBSRC,14/06/2021,Research Institutes - Capital Grants: Major Works,Pirbright,The Pirbright Institute,98986572,22442.20,Research Institutes - Capital Grants: Major Works
BEIS,UKRI - BBSRC,14/06/2021,Research Institutes - Capital Grants: Major Works,Pirbright,The Pirbright Institute,98986574,214492.72,Research Institutes - Capital Grants: Major Works
BEIS,UKRI - BBSRC,14/06/2021,Research Institutes - Capital Grants: Minor Works,Pirbright,The Pirbright Institute,98986577,52252.94,Research Institutes - Capital Grants: Minor Works
BEIS,UKRI - BBSRC,14/06/2021,Research Institutes - Capital Grants: Minor Works,Pirbright,The Pirbright Institute,98986578,835.20,Research Institutes - Capital Grants: Minor Works
BEIS,UKRI - BBSRC,14/06/2021,Research Institutes - Capital Grants: Minor Works,Pirbright,The Pirbright Institute,98986581,73799.06,Research Institutes - Capital Grants: Minor Works
BEIS,UKRI - BBSRC,14/06/2021,Research Institutes - Capital Grants: Minor Works,Pirbright,The Pirbright Institute,98986583,2294.40,Research Institutes - Capital Grants: Minor Works
BEIS,UKRI - BBSRC,14/06/2021,Research Institutes - Capital Grants: Minor Works,Pirbright,The Pirbright Institute,98986601,1386.00,Research Institutes - Capital Grants: Minor Works
BEIS,UKRI - BBSRC,15/06/2021,Union Deductions,Balance Sheet,PCS Union,98971326,45.21,Union Deductions
BEIS,UKRI - BBSRC,15/06/2021,Voluntary Deductions,Balance Sheet,Swindon Office Sports and Social Club,98971327,48.00,Voluntary Deductions
BEIS,UKRI - BBSRC,15/06/2021,Unspecified,Balance Sheet,Unspecified,98971328,21843.24,Ees Pension Deductions - JSS
BEIS,UKRI - BBSRC,15/06/2021,Unspecified,Balance Sheet,Unspecified,98971329,89216.82,Ers Pension Deductions - JSS
BEIS,UKRI - BBSRC,15/06/2021,Unspecified,Balance Sheet,Scottish Widows Life Assurance,98971331,10.00,Other Pension Deductions
BEIS,UKRI - BBSRC,15/06/2021,Unspecified,Balance Sheet,Cabinet Office RM Shared Services,98971332,27.28,Ers Pension Deductions - JSS
BEIS,UKRI - BBSRC,15/06/2021,Unspecified,Balance Sheet,Cabinet Office RM Shared Services,98971333,10875.44,Ees Pension Deductions - MyCSP
BEIS,UKRI - BBSRC,15/06/2021,Unspecified,Balance Sheet,Cabinet Office RM Shared Services,98971334,52469.93,Ers Pension Deductions - MyCSP
BEIS,UKRI - BBSRC,15/06/2021,Nursery Deductions,Balance Sheet,UKRI - Engineering & Physical Sciences Research Council,98971337,1364.00,Nursery Deductions
BEIS,UKRI - BBSRC,15/06/2021,Research Grant Expenditure,FG - Accounts & Business Planning,University of Kent,98979175,-227.68,Research Grant Expenditure
BEIS,UKRI - BBSRC,15/06/2021,Research Grant Expenditure,FG - Accounts & Business Planning,University of Nottingham,98979176,3000.00,Research Grant Expenditure
BEIS,UKRI - BBSRC,15/06/2021,Research Grant Expenditure,FG - Accounts & Business Planning,Rothamsted Research Ltd,98979177,1919.05,Research Grant Expenditure
BEIS,UKRI - BBSRC,15/06/2021,Research Grant Expenditure,FG - Accounts & Business Planning,The Marine Biological Association of the United Kingdom,98979178,19787.72,Research Grant Expenditure
BEIS,UKRI - BBSRC,15/06/2021,Research Grant Expenditure,FG - Accounts & Business Planning,University of Nottingham,98979179,19491.70,Research Grant Expenditure
BEIS,UKRI - BBSRC,15/06/2021,Research Grant Expenditure,FG - Accounts & Business Planning,University College London,98979180,19916.36,Research Grant Expenditure
BEIS,UKRI - BBSRC,15/06/2021,Research Grant Expenditure,FG - Accounts & Business Planning,University of Exeter,98979181,20104.54,Research Grant Expenditure
BEIS,UKRI - BBSRC,15/06/2021,Capital Grants & Equipment to HEIs,FG - Accounts & Business Planning,University of Warwick,98979182,278812.00,Capital Grants & Equipment to HEIs
BEIS,UKRI - BBSRC,15/06/2021,Capital Grants & Equipment to HEIs,FG - Accounts & Business Planning,University of East Anglia,98979183,489999.89,Capital Grants & Equipment to HEIs
BEIS,UKRI - BBSRC,15/06/2021,Capital Grants & Equipment to HEIs,FG - Accounts & Business Planning,Imperial College London,98979184,8798.25,Capital Grants & Equipment to HEIs
BEIS,UKRI - BBSRC,15/06/2021,Research Grant Expenditure,FG - Accounts & Business Planning,Imperial College London,98979184,65393.75,Research Grant Expenditure
BEIS,UKRI - BBSRC,15/06/2021,Research Grant Expenditure,FG - Accounts & Business Planning,University of Surrey,98979185,-11648.14,Research Grant Expenditure
BEIS,UKRI - BBSRC,15/06/2021,Research Grant Expenditure,FG - Accounts & Business Planning,University of Cambridge,98979186,34891.05,Research Grant Expenditure
BEIS,UKRI - BBSRC,15/06/2021,Research Grant Expenditure,FG - Accounts & Business Planning,University of Cambridge,98979187,25406.11,Research Grant Expenditure
BEIS,UKRI - BBSRC,15/06/2021,Research Grant Expenditure,FG - Accounts & Business Planning,John Innes Centre,98979188,11794.52,Research Grant Expenditure
BEIS,UKRI - BBSRC,15/06/2021,Capital Grants & Equipment to HEIs,FG - Accounts & Business Planning,The Francis Crick Institute,98979189,94887.50,Capital Grants & Equipment to HEIs
BEIS,UKRI - BBSRC,15/06/2021,Capital Grants & Equipment to HEIs,FG - Accounts & Business Planning,University of Leeds,98979190,16186.46,Capital Grants & Equipment to HEIs
BEIS,UKRI - BBSRC,15/06/2021,Capital Grants & Equipment to HEIs,FG - Accounts & Business Planning,University of Edinburgh,98979191,150000.00,Capital Grants & Equipment to HEIs
BEIS,UKRI - BBSRC,15/06/2021,Capital Grants & Equipment to HEIs,FG - Accounts & Business Planning,University of Bristol GRANT,98979192,33665.07,Capital Grants & Equipment to HEIs
BEIS,UKRI - BBSRC,15/06/2021,Research Grant Expenditure,FG - Accounts & Business Planning,University of Greenwich,98979193,8842.83,Research Grant Expenditure
BEIS,UKRI - BBSRC,15/06/2021,Research Grant Expenditure,FG - Accounts & Business Planning,The University of Manchester,98979194,12237.60,Research Grant Expenditure
BEIS,UKRI - BBSRC,15/06/2021,Research Grant Expenditure,FG - Accounts & Business Planning,The Pirbright Institute,98979195,29519.57,Research Grant Expenditure
BEIS,UKRI - BBSRC,15/06/2021,Research Grant Expenditure,FG - Accounts & Business Planning,University of East Anglia,98979196,4643.40,Research Grant Expenditure
BEIS,UKRI - BBSRC,15/06/2021,Research Grant Expenditure,FG - Accounts & Business Planning,University of Leeds,98979197,37917.45,Research Grant Expenditure
BEIS,UKRI - BBSRC,15/06/2021,Research Grant Expenditure,FG - Accounts & Business Planning,University of Glasgow,98979198,-7536.57,Research Grant Expenditure
BEIS,UKRI - BBSRC,15/06/2021,Research Grant Expenditure,FG - Accounts & Business Planning,University of Liverpool,98979199,11417.02,Research Grant Expenditure
BEIS,UKRI - BBSRC,15/06/2021,Research Grant Expenditure,FG - Accounts & Business Planning,University of Essex,98979200,6672.39,Research Grant Expenditure
BEIS,UKRI - BBSRC,15/06/2021,Research Grant Expenditure,FG - Accounts & Business Planning,University of Glasgow,98979201,-77152.22,Research Grant Expenditure
BEIS,UKRI - BBSRC,15/06/2021,Research Grant Expenditure,FG - Accounts & Business Planning,University of Liverpool,98979202,26578.50,Research Grant Expenditure
BEIS,UKRI - BBSRC,15/06/2021,Research Grant Expenditure,FG - Accounts & Business Planning,University of Warwick,98979203,19489.14,Research Grant Expenditure
BEIS,UKRI - BBSRC,15/06/2021,Research Grant Expenditure,FG - Accounts & Business Planning,University of Edinburgh,98979204,29843.33,Research Grant Expenditure
BEIS,UKRI - BBSRC,15/06/2021,Research Grant Expenditure,FG - Accounts & Business Planning,University of Bristol GRANT,98979205,26038.20,Research Grant Expenditure
BEIS,UKRI - BBSRC,15/06/2021,Research Grant Expenditure,FG - Accounts & Business Planning,University of Warwick,98979206,26434.04,Research Grant Expenditure
BEIS,UKRI - BBSRC,15/06/2021,Research Grant Expenditure,FG - Accounts & Business Planning,University of Cambridge,98979207,16856.49,Research Grant Expenditure
BEIS,UKRI - BBSRC,15/06/2021,Research Grant Expenditure,FG - Accounts & Business Planning,University of Aberdeen,98979208,29372.87,Research Grant Expenditure
BEIS,UKRI - BBSRC,15/06/2021,Research Grant Expenditure,FG - Accounts & Business Planning,Cardiff University,98979209,26438.11,Research Grant Expenditure
BEIS,UKRI - BBSRC,15/06/2021,Research Grant Expenditure,FG - Accounts & Business Planning,The Francis Crick Institute,98979210,3363.71,Research Grant Expenditure
BEIS,UKRI - BBSRC,15/06/2021,Research Grant Expenditure,FG - Accounts & Business Planning,University of Newcastle Upon Tyne,98979211,-21054.51,Research Grant Expenditure
BEIS,UKRI - BBSRC,15/06/2021,Research Grant Expenditure,FG - Accounts & Business Planning,University of Newcastle Upon Tyne,98979212,51332.60,Research Grant Expenditure
BEIS,UKRI - BBSRC,15/06/2021,Research Grant Expenditure,FG - Accounts & Business Planning,London School of Hygiene & Tropical Medicine,98979213,39630.60,Research Grant Expenditure
BEIS,UKRI - BBSRC,15/06/2021,Research Grant Expenditure,FG - Accounts & Business Planning,University of Edinburgh,98979214,19984.77,Research Grant Expenditure
BEIS,UKRI - BBSRC,15/06/2021,Research Grant Expenditure,FG - Accounts & Business Planning,University of Sussex,98979215,21550.79,Research Grant Expenditure
BEIS,UKRI - BBSRC,15/06/2021,Research Grant Expenditure,FG - Accounts & Business Planning,University College London,98979216,31849.19,Research Grant Expenditure
BEIS,UKRI - BBSRC,15/06/2021,Research Grant Expenditure,FG - Accounts & Business Planning,University of East Anglia,98979217,32917.04,Research Grant Expenditure
BEIS,UKRI - BBSRC,15/06/2021,Research Grant Expenditure,FG - Accounts & Business Planning,University of Edinburgh,98979218,26730.80,Research Grant Expenditure
BEIS,UKRI - BBSRC,15/06/2021,Research Grant Expenditure,FG - Accounts & Business Planning,University of Nottingham,98979219,51535.03,Research Grant Expenditure
BEIS,UKRI - BBSRC,15/06/2021,Research Grant Expenditure,FG - Accounts & Business Planning,University College London,98979220,41796.87,Research Grant Expenditure
BEIS,UKRI - BBSRC,15/06/2021,Research Grant Expenditure,FG - Accounts & Business Planning,University of Edinburgh,98979221,-21026.75,Research Grant Expenditure
BEIS,UKRI - BBSRC,15/06/2021,Research Grant Expenditure,FG - Accounts & Business Planning,University of Edinburgh,98979222,15488.27,Research Grant Expenditure
BEIS,UKRI - BBSRC,15/06/2021,Research Grant Expenditure,FG - Accounts & Business Planning,Queen Mary University of London,98979223,34990.79,Research Grant Expenditure
BEIS,UKRI - BBSRC,15/06/2021,Research Grant Expenditure,FG - Accounts & Business Planning,University of Essex,98979224,3746.48,Research Grant Expenditure
BEIS,UKRI - BBSRC,15/06/2021,Research Grant Expenditure,FG - Accounts & Business Planning,University of Reading,98979225,27728.55,Research Grant Expenditure
BEIS,UKRI - BBSRC,15/06/2021,Research Grant Expenditure,FG - Accounts & Business Planning,University of Durham,98979226,27976.15,Research Grant Expenditure
BEIS,UKRI - BBSRC,15/06/2021,Research Grant Expenditure,FG - Accounts & Business Planning,Imperial College London,98979227,39235.14,Research Grant Expenditure
BEIS,UKRI - BBSRC,15/06/2021,Capital Grants & Equipment to HEIs,FG - Accounts & Business Planning,University of Cambridge,98979228,-2.00,Capital Grants & Equipment to HEIs
BEIS,UKRI - BBSRC,15/06/2021,Research Grant Expenditure,FG - Accounts & Business Planning,University of Cambridge,98979228,25885.17,Research Grant Expenditure
BEIS,UKRI - BBSRC,15/06/2021,Research Grant Expenditure,FG - Accounts & Business Planning,University of Cambridge,98979229,11435.43,Research Grant Expenditure
BEIS,UKRI - BBSRC,15/06/2021,Research Grant Expenditure,FG - Accounts & Business Planning,University of Newcastle Upon Tyne,98979230,29738.73,Research Grant Expenditure
BEIS,UKRI - BBSRC,15/06/2021,Research Grant Expenditure,FG - Accounts & Business Planning,University of Cambridge,98979231,-521.97,Research Grant Expenditure
BEIS,UKRI - BBSRC,15/06/2021,Research Grant Expenditure,FG - Accounts & Business Planning,University of York,98979232,40490.84,Research Grant Expenditure
BEIS,UKRI - BBSRC,15/06/2021,Research Grant Expenditure,FG - Accounts & Business Planning,King's College London,98979233,-987.12,Research Grant Expenditure
BEIS,UKRI - BBSRC,15/06/2021,Research Grant Expenditure,FG - Accounts & Business Planning,University of Oxford,98979234,18824.31,Research Grant Expenditure
BEIS,UKRI - BBSRC,15/06/2021,Research Grant Expenditure,FG - Accounts & Business Planning,Imperial College London,98979235,-32775.68,Research Grant Expenditure
BEIS,UKRI - BBSRC,15/06/2021,Research Grant Expenditure,FG - Accounts & Business Planning,University of East Anglia,98979236,-2550.17,Research Grant Expenditure
BEIS,UKRI - BBSRC,15/06/2021,Research Grant Expenditure,FG - Accounts & Business Planning,University of York,98979237,-56.12,Research Grant Expenditure
BEIS,UKRI - BBSRC,15/06/2021,Research Grant Expenditure,FG - Accounts & Business Planning,European Bioinformatics Institute,98979238,1787.38,Research Grant Expenditure
BEIS,UKRI - BBSRC,15/06/2021,Research Grant Expenditure,FG - Accounts & Business Planning,The University of Manchester,98979239,20072.41,Research Grant Expenditure
BEIS,UKRI - BBSRC,15/06/2021,Research Grant Expenditure,FG - Accounts & Business Planning,University of Cambridge,98979240,47753.57,Research Grant Expenditure
BEIS,UKRI - BBSRC,15/06/2021,Research Grant Expenditure,FG - Accounts & Business Planning,Quadram Institute Bioscience,98979241,71927.97,Research Grant Expenditure
BEIS,UKRI - BBSRC,15/06/2021,Research Grant Expenditure,FG - Accounts & Business Planning,University of Reading,98979242,35906.47,Research Grant Expenditure
BEIS,UKRI - BBSRC,15/06/2021,Research Grant Expenditure,FG - Accounts & Business Planning,University of Edinburgh,98979243,-342.68,Research Grant Expenditure
BEIS,UKRI - BBSRC,15/06/2021,Research Grant Expenditure,FG - Accounts & Business Planning,Lancaster University,98979244,47777.25,Research Grant Expenditure
BEIS,UKRI - BBSRC,15/06/2021,Research Grant Expenditure,FG - Accounts & Business Planning,University of Edinburgh,98979245,40432.88,Research Grant Expenditure
BEIS,UKRI - BBSRC,15/06/2021,Research Grant Expenditure,FG - Accounts & Business Planning,University of Cambridge,98979246,41817.62,Research Grant Expenditure
BEIS,UKRI - BBSRC,15/06/2021,Research Grant Expenditure,FG - Accounts & Business Planning,The University of Manchester,98979247,23197.35,Research Grant Expenditure
BEIS,UKRI - BBSRC,15/06/2021,Research Grant Expenditure,FG - Accounts & Business Planning,University of Edinburgh,98979248,23604.97,Research Grant Expenditure
BEIS,UKRI - BBSRC,15/06/2021,Research Grant Expenditure,FG - Accounts & Business Planning,John Innes Centre,98979249,54635.48,Research Grant Expenditure
BEIS,UKRI - BBSRC,15/06/2021,Research Grant Expenditure,FG - Accounts & Business Planning,University of Aberdeen,98979250,-12356.32,Research Grant Expenditure
BEIS,UKRI - BBSRC,15/06/2021,Research Grant Expenditure,FG - Accounts & Business Planning,National Institute For Agricultural Botany (NIAB),98979251,45338.28,Research Grant Expenditure
BEIS,UKRI - BBSRC,15/06/2021,Research Grant Expenditure,FG - Accounts & Business Planning,University of Dundee,98979252,33987.87,Research Grant Expenditure
BEIS,UKRI - BBSRC,15/06/2021,Research Grant Expenditure,FG - Accounts & Business Planning,University of Warwick,98979253,21409.76,Research Grant Expenditure
BEIS,UKRI - BBSRC,15/06/2021,Research Grant Expenditure,FG - Accounts & Business Planning,Rothamsted Research Ltd,98979254,5594.99,Research Grant Expenditure
BEIS,UKRI - BBSRC,15/06/2021,Research Grant Expenditure,FG - Accounts & Business Planning,University of Cambridge,98979255,32681.76,Research Grant Expenditure
BEIS,UKRI - BBSRC,15/06/2021,Research Grant Expenditure,FG - Accounts & Business Planning,The Pirbright Institute,98979256,-23386.02,Research Grant Expenditure
BEIS,UKRI - BBSRC,15/06/2021,Research Grant Expenditure,FG - Accounts & Business Planning,University of Cambridge,98979257,44294.47,Research Grant Expenditure
BEIS,UKRI - BBSRC,15/06/2021,Research Grant Expenditure,FG - Accounts & Business Planning,Babraham Institute,98979258,63152.86,Research Grant Expenditure
BEIS,UKRI - BBSRC,15/06/2021,Research Grant Expenditure,FG - Accounts & Business Planning,University College London,98979259,45794.83,Research Grant Expenditure
BEIS,UKRI - BBSRC,15/06/2021,Research Grant Expenditure,FG - Accounts & Business Planning,University of Cambridge,98979260,31715.47,Research Grant Expenditure
BEIS,UKRI - BBSRC,15/06/2021,Research Grant Expenditure,FG - Accounts & Business Planning,University of Newcastle Upon Tyne,98979261,27603.28,Research Grant Expenditure
BEIS,UKRI - BBSRC,15/06/2021,Research Grant Expenditure,FG - Accounts & Business Planning,John Innes Centre,98979262,33255.89,Research Grant Expenditure
BEIS,UKRI - BBSRC,15/06/2021,Research Grant Expenditure,FG - Accounts & Business Planning,The University of Manchester,98979263,4095.93,Research Grant Expenditure
BEIS,UKRI - BBSRC,15/06/2021,Research Grant Expenditure,FG - Accounts & Business Planning,University of Edinburgh,98979264,27063.51,Research Grant Expenditure
BEIS,UKRI - BBSRC,15/06/2021,Research Grant Expenditure,FG - Accounts & Business Planning,The University of Manchester,98979265,19885.95,Research Grant Expenditure
BEIS,UKRI - BBSRC,15/06/2021,Research Grant Expenditure,FG - Accounts & Business Planning,Imperial College London,98979266,-532.14,Research Grant Expenditure
BEIS,UKRI - BBSRC,15/06/2021,Research Grant Expenditure,FG - Accounts & Business Planning,University of Oxford,98979267,48240.92,Research Grant Expenditure
BEIS,UKRI - BBSRC,15/06/2021,Capital Grants & Equipment to HEIs,FG - Accounts & Business Planning,Cardiff University,98979268,-3000.00,Capital Grants & Equipment to HEIs
BEIS,UKRI - BBSRC,15/06/2021,Research Grant Expenditure,FG - Accounts & Business Planning,Cardiff University,98979268,-53973.39,Research Grant Expenditure
BEIS,UKRI - BBSRC,15/06/2021,Research Grant Expenditure,FG - Accounts & Business Planning,University of Oxford,98979269,42789.97,Research Grant Expenditure
BEIS,UKRI - BBSRC,15/06/2021,Research Grant Expenditure,FG - Accounts & Business Planning,University of Reading,98979270,38034.83,Research Grant Expenditure
BEIS,UKRI - BBSRC,15/06/2021,Research Grant Expenditure,FG - Accounts & Business Planning,University of Cambridge,98979271,55621.94,Research Grant Expenditure
BEIS,UKRI - BBSRC,15/06/2021,Capital Grants & Equipment to HEIs,FG - Accounts & Business Planning,University of Birmingham GRANT,98979272,2645.61,Capital Grants & Equipment to HEIs
BEIS,UKRI - BBSRC,15/06/2021,Research Grant Expenditure,FG - Accounts & Business Planning,University of Birmingham GRANT,98979272,34827.94,Research Grant Expenditure
BEIS,UKRI - BBSRC,15/06/2021,Research Grant Expenditure,FG - Accounts & Business Planning,University of Leicester,98979273,29198.39,Research Grant Expenditure
BEIS,UKRI - BBSRC,15/06/2021,Capital Grants & Equipment to HEIs,FG - Accounts & Business Planning,Imperial College London,98979274,-1822.80,Capital Grants & Equipment to HEIs
BEIS,UKRI - BBSRC,15/06/2021,Research Grant Expenditure,FG - Accounts & Business Planning,Imperial College London,98979274,41884.04,Research Grant Expenditure
BEIS,UKRI - BBSRC,15/06/2021,Research Grant Expenditure,FG - Accounts & Business Planning,Quadram Institute Bioscience,98979275,15306.03,Research Grant Expenditure
BEIS,UKRI - BBSRC,15/06/2021,Research Grant Expenditure,FG - Accounts & Business Planning,University of Edinburgh,98979276,40831.68,Research Grant Expenditure
BEIS,UKRI - BBSRC,15/06/2021,Research Grant Expenditure,FG - Accounts & Business Planning,University of Dundee,98979277,8213.76,Research Grant Expenditure
BEIS,UKRI - BBSRC,15/06/2021,Research Grant Expenditure,FG - Accounts & Business Planning,University of Bristol GRANT,98979278,34550.39,Research Grant Expenditure
BEIS,UKRI - BBSRC,15/06/2021,Research Grant Expenditure,FG - Accounts & Business Planning,University of Liverpool,98979279,23312.91,Research Grant Expenditure
BEIS,UKRI - BBSRC,15/06/2021,Research Grant Expenditure,FG - Accounts & Business Planning,University of Cambridge,98979280,32041.79,Research Grant Expenditure
BEIS,UKRI - BBSRC,15/06/2021,Research Grant Expenditure,FG - Accounts & Business Planning,Queen Mary University of London,98979281,35270.42,Research Grant Expenditure
BEIS,UKRI - BBSRC,15/06/2021,Research Grant Expenditure,FG - Accounts & Business Planning,University of York,98979282,42070.26,Research Grant Expenditure
BEIS,UKRI - BBSRC,15/06/2021,Research Grant Expenditure,FG - Accounts & Business Planning,The University of Manchester,98979283,31718.20,Research Grant Expenditure
BEIS,UKRI - BBSRC,15/06/2021,Capital Grants & Equipment to HEIs,FG - Accounts & Business Planning,Aberystwyth University,98979284,-29.40,Capital Grants & Equipment to HEIs
BEIS,UKRI - BBSRC,15/06/2021,Research Grant Expenditure,FG - Accounts & Business Planning,Aberystwyth University,98979284,34566.98,Research Grant Expenditure
BEIS,UKRI - BBSRC,15/06/2021,Research Grant Expenditure,FG - Accounts & Business Planning,University of East Anglia,98979285,46575.33,Research Grant Expenditure
BEIS,UKRI - BBSRC,15/06/2021,Research Grant Expenditure,FG - Accounts & Business Planning,National Institute For Agricultural Botany (NIAB),98979286,81243.03,Research Grant Expenditure
BEIS,UKRI - BBSRC,15/06/2021,Research Grant Expenditure,FG - Accounts & Business Planning,University of Hertfordshire,98979287,31509.50,Research Grant Expenditure
BEIS,UKRI - BBSRC,15/06/2021,Research Grant Expenditure,FG - Accounts & Business Planning,University of Edinburgh,98979288,6823.75,Research Grant Expenditure
BEIS,UKRI - BBSRC,15/06/2021,Research Grant Expenditure,FG - Accounts & Business Planning,Bangor University,98979289,12444.24,Research Grant Expenditure
BEIS,UKRI - BBSRC,15/06/2021,Research Grant Expenditure,FG - Accounts & Business Planning,University of Southampton GRANT,98979290,10816.30,Research Grant Expenditure
BEIS,UKRI - BBSRC,15/06/2021,Research Grant Expenditure,FG - Accounts & Business Planning,Queen's University Belfast GRANT,98979291,31783.81,Research Grant Expenditure
BEIS,UKRI - BBSRC,15/06/2021,Research Grant Expenditure,FG - Accounts & Business Planning,University College London,98979292,28896.88,Research Grant Expenditure
BEIS,UKRI - BBSRC,15/06/2021,Capital Grants & Equipment to HEIs,FG - Accounts & Business Planning,University of Aberdeen,98979293,-195.43,Capital Grants & Equipment to HEIs
BEIS,UKRI - BBSRC,15/06/2021,Research Grant Expenditure,FG - Accounts & Business Planning,University of Aberdeen,98979293,23894.61,Research Grant Expenditure
BEIS,UKRI - BBSRC,15/06/2021,Research Grant Expenditure,FG - Accounts & Business Planning,University of Edinburgh,98979294,19910.38,Research Grant Expenditure
BEIS,UKRI - BBSRC,15/06/2021,Research Grant Expenditure,FG - Accounts & Business Planning,University of Liverpool,98979295,46153.81,Research Grant Expenditure
BEIS,UKRI - BBSRC,15/06/2021,Research Grant Expenditure,FG - Accounts & Business Planning,Royal Veterinary College,98979296,17246.50,Research Grant Expenditure
BEIS,UKRI - BBSRC,15/06/2021,Research Grant Expenditure,FG - Accounts & Business Planning,"Royal Holloway, University of London",98979297,15601.38,Research Grant Expenditure
BEIS,UKRI - BBSRC,15/06/2021,Research Grant Expenditure,FG - Accounts & Business Planning,University of Bristol GRANT,98979298,46201.17,Research Grant Expenditure
BEIS,UKRI - BBSRC,15/06/2021,Research Grant Expenditure,FG - Accounts & Business Planning,University of Glasgow,98979299,21456.63,Research Grant Expenditure
BEIS,UKRI - BBSRC,15/06/2021,Research Grant Expenditure,FG - Accounts & Business Planning,University of Leicester,98979300,14271.21,Research Grant Expenditure
BEIS,UKRI - BBSRC,15/06/2021,Research Grant Expenditure,FG - Accounts & Business Planning,University of Cambridge,98979301,43869.54,Research Grant Expenditure
BEIS,UKRI - BBSRC,15/06/2021,Research Grant Expenditure,FG - Accounts & Business Planning,University of York,98979302,17158.21,Research Grant Expenditure
BEIS,UKRI - BBSRC,15/06/2021,Research Grant Expenditure,FG - Accounts & Business Planning,University of Sheffield,98979303,17264.22,Research Grant Expenditure
BEIS,UKRI - BBSRC,15/06/2021,Research Grant Expenditure,FG - Accounts & Business Planning,Queen Mary University of London,98979304,33678.31,Research Grant Expenditure
BEIS,UKRI - BBSRC,15/06/2021,Research Grant Expenditure,FG - Accounts & Business Planning,Quadram Institute Bioscience,98979305,-544.50,Research Grant Expenditure
BEIS,UKRI - BBSRC,15/06/2021,Research Grant Expenditure,FG - Accounts & Business Planning,University of Liverpool,98979306,20521.41,Research Grant Expenditure
BEIS,UKRI - BBSRC,15/06/2021,Research Grant Expenditure,FG - Accounts & Business Planning,Cranfield University,98979307,40219.89,Research Grant Expenditure
BEIS,UKRI - BBSRC,15/06/2021,Research Grant Expenditure,FG - Accounts & Business Planning,Babraham Institute,98979308,-6608.63,Research Grant Expenditure
BEIS,UKRI - BBSRC,15/06/2021,Research Grant Expenditure,FG - Accounts & Business Planning,University of Glasgow,98979309,33714.92,Research Grant Expenditure
BEIS,UKRI - BBSRC,15/06/2021,Research Grant Expenditure,FG - Accounts & Business Planning,Queen's University Belfast GRANT,98979310,21983.33,Research Grant Expenditure
BEIS,UKRI - BBSRC,15/06/2021,Research Grant Expenditure,FG - Accounts & Business Planning,University of Nottingham,98979311,28447.45,Research Grant Expenditure
BEIS,UKRI - BBSRC,15/06/2021,Research Grant Expenditure,FG - Accounts & Business Planning,University of Glasgow,98979312,33854.48,Research Grant Expenditure
BEIS,UKRI - BBSRC,15/06/2021,Research Grant Expenditure,FG - Accounts & Business Planning,University of Southampton GRANT,98979313,33185.00,Research Grant Expenditure
BEIS,UKRI - BBSRC,15/06/2021,Research Grant Expenditure,FG - Accounts & Business Planning,University of Glasgow,98979314,27419.80,Research Grant Expenditure
BEIS,UKRI - BBSRC,15/06/2021,Research Grant Expenditure,FG - Accounts & Business Planning,University of Leeds,98979315,-8539.51,Research Grant Expenditure
BEIS,UKRI - BBSRC,15/06/2021,Research Grant Expenditure,FG - Accounts & Business Planning,University College London,98979316,51672.28,Research Grant Expenditure
BEIS,UKRI - BBSRC,15/06/2021,Research Grant Expenditure,FG - Accounts & Business Planning,King's College London,98979317,31048.40,Research Grant Expenditure
BEIS,UKRI - BBSRC,15/06/2021,Research Grant Expenditure,FG - Accounts & Business Planning,University of Leeds,98979318,14681.97,Research Grant Expenditure
BEIS,UKRI - BBSRC,15/06/2021,Research Grant Expenditure,FG - Accounts & Business Planning,University of Cambridge,98979319,10705.14,Research Grant Expenditure
BEIS,UKRI - BBSRC,15/06/2021,Research Grant Expenditure,FG - Accounts & Business Planning,University of Nottingham,98979320,39122.75,Research Grant Expenditure
BEIS,UKRI - BBSRC,15/06/2021,Capital Grants & Equipment to HEIs,FG - Accounts & Business Planning,University College London,98979321,-5005.58,Capital Grants & Equipment to HEIs
BEIS,UKRI - BBSRC,15/06/2021,Research Grant Expenditure,FG - Accounts & Business Planning,University College London,98979321,37615.24,Research Grant Expenditure
BEIS,UKRI - BBSRC,15/06/2021,Research Grant Expenditure,FG - Accounts & Business Planning,King's College London,98979322,36132.27,Research Grant Expenditure
BEIS,UKRI - BBSRC,15/06/2021,Research Grant Expenditure,FG - Accounts & Business Planning,University of Cambridge,98979323,39145.59,Research Grant Expenditure
BEIS,UKRI - BBSRC,15/06/2021,Research Grant Expenditure,FG - Accounts & Business Planning,University of Oxford,98979324,64653.69,Research Grant Expenditure
BEIS,UKRI - BBSRC,15/06/2021,Research Grant Expenditure,FG - Accounts & Business Planning,Royal Veterinary College,98979325,43379.67,Research Grant Expenditure
BEIS,UKRI - BBSRC,15/06/2021,Research Grant Expenditure,FG - Accounts & Business Planning,University of Nottingham,98979326,5102.24,Research Grant Expenditure
BEIS,UKRI - BBSRC,15/06/2021,Research Grant Expenditure,FG - Accounts & Business Planning,Aberystwyth University,98979328,6250.44,Research Grant Expenditure
BEIS,UKRI - BBSRC,15/06/2021,Research Grant Expenditure,FG - Accounts & Business Planning,Rothamsted Research Ltd,98979329,25013.78,Research Grant Expenditure
BEIS,UKRI - BBSRC,15/06/2021,Capital Grants & Equipment to HEIs,FG - Accounts & Business Planning,Imperial College London,98979330,713.00,Capital Grants & Equipment to HEIs
BEIS,UKRI - BBSRC,15/06/2021,Research Grant Expenditure,FG - Accounts & Business Planning,Imperial College London,98979330,42702.94,Research Grant Expenditure
BEIS,UKRI - BBSRC,15/06/2021,Research Grant Expenditure,FG - Accounts & Business Planning,University of Bristol GRANT,98979331,146135.06,Research Grant Expenditure
BEIS,UKRI - BBSRC,15/06/2021,Research Grant Expenditure,FG - Accounts & Business Planning,Quadram Institute Bioscience,98979332,39788.70,Research Grant Expenditure
BEIS,UKRI - BBSRC,15/06/2021,Research Grant Expenditure,FG - Accounts & Business Planning,Imperial College London,98979333,5159.89,Research Grant Expenditure
BEIS,UKRI - BBSRC,15/06/2021,Research Grant Expenditure,FG - Accounts & Business Planning,University of York,98979334,13302.31,Research Grant Expenditure
BEIS,UKRI - BBSRC,15/06/2021,Research Grant Expenditure,FG - Accounts & Business Planning,University of Edinburgh,98979335,6997.64,Research Grant Expenditure
BEIS,UKRI - BBSRC,15/06/2021,Research Grant Expenditure,FG - Accounts & Business Planning,John Innes Centre,98979336,46845.96,Research Grant Expenditure
BEIS,UKRI - BBSRC,15/06/2021,Capital Grants & Equipment to HEIs,FG - Accounts & Business Planning,Imperial College London,98979337,-992.99,Capital Grants & Equipment to HEIs
BEIS,UKRI - BBSRC,15/06/2021,Research Grant Expenditure,FG - Accounts & Business Planning,Imperial College London,98979337,31458.84,Research Grant Expenditure
BEIS,UKRI - BBSRC,15/06/2021,Research Grant Expenditure,FG - Accounts & Business Planning,The University of Manchester,98979338,19444.53,Research Grant Expenditure
BEIS,UKRI - BBSRC,15/06/2021,Research Grant Expenditure,FG - Accounts & Business Planning,University of Kent,98979339,61111.49,Research Grant Expenditure
BEIS,UKRI - BBSRC,15/06/2021,Research Grant Expenditure,FG - Accounts & Business Planning,University of Southampton GRANT,98979340,27127.26,Research Grant Expenditure
BEIS,UKRI - BBSRC,15/06/2021,Research Grant Expenditure,FG - Accounts & Business Planning,University of Liverpool,98979341,-165154.79,Research Grant Expenditure
BEIS,UKRI - BBSRC,15/06/2021,Research Grant Expenditure,FG - Accounts & Business Planning,University of York,98979342,-584.42,Research Grant Expenditure
BEIS,UKRI - BBSRC,15/06/2021,Capital Grants & Equipment to HEIs,FG - Accounts & Business Planning,The Pirbright Institute,98979343,12926.88,Capital Grants & Equipment to HEIs
BEIS,UKRI - BBSRC,15/06/2021,Research Grant Expenditure,FG - Accounts & Business Planning,The Pirbright Institute,98979343,295873.96,Research Grant Expenditure
BEIS,UKRI - BBSRC,15/06/2021,Fellowships,FG - Accounts & Business Planning,John Innes Centre,98979345,25202.53,Fellowships
BEIS,UKRI - BBSRC,15/06/2021,Fellowships,FG - Accounts & Business Planning,University of Oxford,98979346,25202.47,Fellowships
BEIS,UKRI - BBSRC,15/06/2021,Fellowships,FG - Accounts & Business Planning,University of Exeter,98979347,45646.79,Fellowships
BEIS,UKRI - BBSRC,15/06/2021,Fellowships,FG - Accounts & Business Planning,University of Sheffield,98979348,25405.63,Fellowships
BEIS,UKRI - BBSRC,15/06/2021,Fellowships,FG - Accounts & Business Planning,Institute of Cancer Research,98979349,25394.71,Fellowships
BEIS,UKRI - BBSRC,15/06/2021,Fellowships,FG - Accounts & Business Planning,Cardiff University,98979350,25405.51,Fellowships
BEIS,UKRI - BBSRC,15/06/2021,Fellowships,FG - Accounts & Business Planning,University of Liverpool,98979351,54670.36,Fellowships
BEIS,UKRI - BBSRC,15/06/2021,Fellowships,FG - Accounts & Business Planning,University of Newcastle Upon Tyne,98979352,25199.02,Fellowships
BEIS,UKRI - BBSRC,15/06/2021,Fellowships,FG - Accounts & Business Planning,University of Liverpool,98979353,11337.57,Fellowships
BEIS,UKRI - BBSRC,15/06/2021,Fellowships,FG - Accounts & Business Planning,University of Cambridge,98979354,54432.40,Fellowships
BEIS,UKRI - BBSRC,15/06/2021,Fellowships,FG - Accounts & Business Planning,University of Durham,98979355,25194.73,Fellowships
BEIS,UKRI - BBSRC,15/06/2021,Fellowships,FG - Accounts & Business Planning,University of Sheffield,98979356,25364.24,Fellowships
BEIS,UKRI - BBSRC,15/06/2021,Fellowships,FG - Accounts & Business Planning,University of Cambridge,98979357,25202.44,Fellowships
BEIS,UKRI - BBSRC,15/06/2021,Fellowships,FG - Accounts & Business Planning,University of Oxford,98979358,25202.50,Fellowships
BEIS,UKRI - BBSRC,15/06/2021,Fellowships,FG - Accounts & Business Planning,University of Nottingham,98979359,25400.27,Fellowships
BEIS,UKRI - BBSRC,15/06/2021,Fellowships,FG - Accounts & Business Planning,The University of Manchester,98979360,12806.22,Fellowships
BEIS,UKRI - BBSRC,15/06/2021,Fellowships,FG - Accounts & Business Planning,University of Edinburgh,98979361,23319.93,Fellowships
BEIS,UKRI - BBSRC,15/06/2021,Fellowships,FG - Accounts & Business Planning,University College London,98979362,25177.45,Fellowships
BEIS,UKRI - BBSRC,15/06/2021,Fellowships,FG - Accounts & Business Planning,University College London,98979363,25608.67,Fellowships
BEIS,UKRI - BBSRC,15/06/2021,Fellowships,FG - Accounts & Business Planning,University of Liverpool,98979364,55326.19,Fellowships
BEIS,UKRI - BBSRC,15/06/2021,Fellowships,FG - Accounts & Business Planning,The University of Manchester,98979365,25538.65,Fellowships
BEIS,UKRI - BBSRC,15/06/2021,Fellowships,FG - Accounts & Business Planning,University College London,98979366,43981.51,Fellowships
BEIS,UKRI - BBSRC,15/06/2021,Fellowships,FG - Accounts & Business Planning,University of Edinburgh,98979367,18981.87,Fellowships
BEIS,UKRI - BBSRC,15/06/2021,Fellowships,FG - Accounts & Business Planning,University of St Andrews,98979368,24186.32,Fellowships
BEIS,UKRI - BBSRC,15/06/2021,Fellowships,FG - Accounts & Business Planning,University of Birmingham GRANT,98979369,45692.13,Fellowships
BEIS,UKRI - BBSRC,15/06/2021,Fellowships,FG - Accounts & Business Planning,University of Newcastle Upon Tyne,98979370,49884.46,Fellowships
BEIS,UKRI - BBSRC,15/06/2021,Fellowships,FG - Accounts & Business Planning,University of Oxford,98979371,10071.75,Fellowships
BEIS,UKRI - BBSRC,15/06/2021,Fellowships,FG - Accounts & Business Planning,University of Glasgow,98979372,25465.11,Fellowships
BEIS,UKRI - BBSRC,15/06/2021,Fellowships,FG - Accounts & Business Planning,University of Cambridge,98979373,34083.54,Fellowships
BEIS,UKRI - BBSRC,15/06/2021,Fellowships,FG - Accounts & Business Planning,Imperial College London,98979374,42545.10,Fellowships
BEIS,UKRI - BBSRC,15/06/2021,Fellowships,FG - Accounts & Business Planning,Imperial College London,98979375,54911.93,Fellowships
BEIS,UKRI - BBSRC,15/06/2021,Fellowships,FG - Accounts & Business Planning,University of Cambridge,98979376,29223.15,Fellowships
BEIS,UKRI - BBSRC,15/06/2021,Fellowships,FG - Accounts & Business Planning,University of Oxford,98979377,12806.15,Fellowships
BEIS,UKRI - BBSRC,15/06/2021,Fellowships,FG - Accounts & Business Planning,University of Exeter,98979378,19163.77,Fellowships
BEIS,UKRI - BBSRC,15/06/2021,Fellowships,FG - Accounts & Business Planning,University of Birmingham GRANT,98979379,54836.54,Fellowships
BEIS,UKRI - BBSRC,15/06/2021,Fellowships,FG - Accounts & Business Planning,Royal Veterinary College,98979380,7682.02,Fellowships
BEIS,UKRI - BBSRC,15/06/2021,Fellowships,FG - Accounts & Business Planning,John Innes Centre,98979381,44197.22,Fellowships
BEIS,UKRI - BBSRC,15/06/2021,Fellowships,FG - Accounts & Business Planning,University College London,98979382,40538.71,Fellowships
BEIS,UKRI - BBSRC,15/06/2021,Fellowships,FG - Accounts & Business Planning,University of Exeter,98979383,19727.30,Fellowships
BEIS,UKRI - BBSRC,15/06/2021,Fellowships,FG - Accounts & Business Planning,The University of Manchester,98979384,50617.88,Fellowships
BEIS,UKRI - BBSRC,15/06/2021,Fellowships,FG - Accounts & Business Planning,University of Leeds,98979385,52246.43,Fellowships
BEIS,UKRI - BBSRC,15/06/2021,Fellowships,FG - Accounts & Business Planning,University of Oxford,98979386,22388.23,Fellowships
BEIS,UKRI - BBSRC,15/06/2021,Fellowships,FG - Accounts & Business Planning,University of Oxford,98979387,44609.69,Fellowships
BEIS,UKRI - BBSRC,15/06/2021,Fellowships,FG - Accounts & Business Planning,The University of Manchester,98979388,25370.90,Fellowships
BEIS,UKRI - BBSRC,15/06/2021,Research Grant Expenditure,FG - Accounts & Business Planning,University of Southampton GRANT,98980281,91881.96,Research Grant Expenditure
BEIS,UKRI - BBSRC,15/06/2021,Research Grant Expenditure,FG - Accounts & Business Planning,University of Dundee,98980282,83630.76,Research Grant Expenditure
BEIS,UKRI - BBSRC,15/06/2021,Research Grant Expenditure,FG - Accounts & Business Planning,University of Glasgow,98980283,61647.73,Research Grant Expenditure
BEIS,UKRI - BBSRC,15/06/2021,Research Grant Expenditure,FG - Accounts & Business Planning,Moredun Research Institute,98980284,14727.72,Research Grant Expenditure
BEIS,UKRI - BBSRC,15/06/2021,Research Grant Expenditure,FG - Accounts & Business Planning,University of Edinburgh,98980285,25715.59,Research Grant Expenditure
BEIS,UKRI - BBSRC,15/06/2021,Research Grant Expenditure,FG - Accounts & Business Planning,University of Greenwich,98980286,37931.22,Research Grant Expenditure
BEIS,UKRI - BBSRC,15/06/2021,Research Grant Expenditure,FG - Accounts & Business Planning,University of Oxford,98980287,9961.71,Research Grant Expenditure
BEIS,UKRI - BBSRC,15/06/2021,Research Grant Expenditure,FG - Accounts & Business Planning,The Pirbright Institute,98980288,40855.49,Research Grant Expenditure
BEIS,UKRI - BBSRC,15/06/2021,Research Grant Expenditure,FG - Accounts & Business Planning,University of Southampton GRANT,98980289,25387.65,Research Grant Expenditure
BEIS,UKRI - BBSRC,15/06/2021,Capital Grants & Equipment to HEIs,FG - Accounts & Business Planning,University of Birmingham GRANT,98980290,4423.33,Capital Grants & Equipment to HEIs
BEIS,UKRI - BBSRC,15/06/2021,Research Grant Expenditure,FG - Accounts & Business Planning,University of Birmingham GRANT,98980290,36712.06,Research Grant Expenditure
BEIS,UKRI - BBSRC,15/06/2021,Research Grant Expenditure,FG - Accounts & Business Planning,University of Liverpool,98980291,22104.77,Research Grant Expenditure
BEIS,UKRI - BBSRC,15/06/2021,Research Grant Expenditure,FG - Accounts & Business Planning,Queen's University Belfast GRANT,98980292,26204.50,Research Grant Expenditure
BEIS,UKRI - BBSRC,15/06/2021,Research Grant Expenditure,FG - Accounts & Business Planning,University of Edinburgh,98980293,45537.72,Research Grant Expenditure
BEIS,UKRI - BBSRC,15/06/2021,Research Grant Expenditure,FG - Accounts & Business Planning,University of Leeds,98980294,15636.48,Research Grant Expenditure
BEIS,UKRI - BBSRC,15/06/2021,Research Grant Expenditure,FG - Accounts & Business Planning,University of Nottingham,98980295,41190.07,Research Grant Expenditure
BEIS,UKRI - BBSRC,15/06/2021,Research Grant Expenditure,FG - Accounts & Business Planning,Quadram Institute Bioscience,98980296,3053.62,Research Grant Expenditure
BEIS,UKRI - BBSRC,15/06/2021,Research Grant Expenditure,FG - Accounts & Business Planning,University of Birmingham GRANT,98980297,71124.19,Research Grant Expenditure
BEIS,UKRI - BBSRC,15/06/2021,Research Grant Expenditure,FG - Accounts & Business Planning,University of Cambridge,98980298,39135.10,Research Grant Expenditure
BEIS,UKRI - BBSRC,15/06/2021,Research Grant Expenditure,FG - Accounts & Business Planning,Liverpool School of Tropical Medicine,98980299,25872.95,Research Grant Expenditure
BEIS,UKRI - BBSRC,15/06/2021,Research Grant Expenditure,FG - Accounts & Business Planning,University of Edinburgh,98980300,121545.04,Research Grant Expenditure
BEIS,UKRI - BBSRC,15/06/2021,Research Grant Expenditure,FG - Accounts & Business Planning,University of Portsmouth,98980301,78910.68,Research Grant Expenditure
BEIS,UKRI - BBSRC,15/06/2021,Research Grant Expenditure,FG - Accounts & Business Planning,University of Leicester,98980302,52281.30,Research Grant Expenditure
BEIS,UKRI - BBSRC,15/06/2021,Research Grant Expenditure,FG - Accounts & Business Planning,Imperial College London,98980303,80094.54,Research Grant Expenditure
BEIS,UKRI - BBSRC,15/06/2021,Research Grant Expenditure,FG - Accounts & Business Planning,University of Leeds,98980304,40991.61,Research Grant Expenditure
BEIS,UKRI - BBSRC,15/06/2021,Research Grant Expenditure,FG - Accounts & Business Planning,Imperial College London,98980305,50557.13,Research Grant Expenditure
BEIS,UKRI - BBSRC,15/06/2021,Research Grant Expenditure,FG - Accounts & Business Planning,University of Nottingham,98980306,230338.41,Research Grant Expenditure
BEIS,UKRI - BBSRC,15/06/2021,Research Grant Expenditure,FG - Accounts & Business Planning,University of Exeter,98980307,234219.32,Research Grant Expenditure
BEIS,UKRI - BBSRC,15/06/2021,Capital Grants & Equipment to HEIs,FG - Accounts & Business Planning,UK Centre for Ecology and Hydrology (UKCEH),98980308,54159.10,Capital Grants & Equipment to HEIs
BEIS,UKRI - BBSRC,15/06/2021,Research Grant Expenditure,FG - Accounts & Business Planning,UK Centre for Ecology and Hydrology (UKCEH),98980308,225380.85,Research Grant Expenditure
BEIS,UKRI - BBSRC,15/06/2021,Capital Grants & Equipment to HEIs,FG - Accounts & Business Planning,The University of Manchester,98980309,13673.25,Capital Grants & Equipment to HEIs
BEIS,UKRI - BBSRC,15/06/2021,Research Grant Expenditure,FG - Accounts & Business Planning,The University of Manchester,98980309,293409.66,Research Grant Expenditure
BEIS,UKRI - BBSRC,15/06/2021,Research Grant Expenditure,FG - Accounts & Business Planning,European Bioinformatics Institute,98980310,46709.09,Research Grant Expenditure
BEIS,UKRI - BBSRC,15/06/2021,Capital Grants & Equipment to HEIs,FG - Accounts & Business Planning,University of Sheffield,98980311,19794.25,Capital Grants & Equipment to HEIs
BEIS,UKRI - BBSRC,15/06/2021,Research Grant Expenditure,FG - Accounts & Business Planning,University of Sheffield,98980311,221342.80,Research Grant Expenditure
BEIS,UKRI - BBSRC,15/06/2021,Research Grant Expenditure,FG - Accounts & Business Planning,University of Kent,98980312,83469.70,Research Grant Expenditure
BEIS,UKRI - BBSRC,15/06/2021,Research Grant Expenditure,FG - Accounts & Business Planning,University of Cambridge,98980313,79381.82,Research Grant Expenditure
BEIS,UKRI - BBSRC,15/06/2021,Research Grant Expenditure,FG - Accounts & Business Planning,University of Nottingham,98980314,24531.48,Research Grant Expenditure
BEIS,UKRI - BBSRC,15/06/2021,Research Grant Expenditure,FG - Accounts & Business Planning,University of Edinburgh,98980315,85739.82,Research Grant Expenditure
BEIS,UKRI - BBSRC,15/06/2021,Research Grant Expenditure,FG - Accounts & Business Planning,Liverpool School of Tropical Medicine,98980316,34760.32,Research Grant Expenditure
BEIS,UKRI - BBSRC,15/06/2021,Research Grant Expenditure,FG - Accounts & Business Planning,University of Newcastle Upon Tyne,98980317,32493.77,Research Grant Expenditure
BEIS,UKRI - BBSRC,15/06/2021,Research Grant Expenditure,FG - Accounts & Business Planning,University of Strathclyde,98980318,29277.67,Research Grant Expenditure
BEIS,UKRI - BBSRC,15/06/2021,Research Grant Expenditure,FG - Accounts & Business Planning,University of Oxford,98980319,54071.81,Research Grant Expenditure
BEIS,UKRI - BBSRC,15/06/2021,Research Grant Expenditure,FG - Accounts & Business Planning,University of Liverpool,98980320,50180.98,Research Grant Expenditure
BEIS,UKRI - BBSRC,15/06/2021,Research Grant Expenditure,FG - Accounts & Business Planning,John Innes Centre,98980321,46718.71,Research Grant Expenditure
BEIS,UKRI - BBSRC,15/06/2021,Research Grant Expenditure,FG - Accounts & Business Planning,Imperial College London,98980322,36817.30,Research Grant Expenditure
BEIS,UKRI - BBSRC,15/06/2021,Research Grant Expenditure,FG - Accounts & Business Planning,Cardiff University,98980323,47399.24,Research Grant Expenditure
BEIS,UKRI - BBSRC,15/06/2021,Research Grant Expenditure,FG - Accounts & Business Planning,The Pirbright Institute,98980324,35434.88,Research Grant Expenditure
BEIS,UKRI - BBSRC,15/06/2021,Research Grant Expenditure,FG - Accounts & Business Planning,University College London,98980325,39157.04,Research Grant Expenditure
BEIS,UKRI - BBSRC,15/06/2021,Research Grant Expenditure,FG - Accounts & Business Planning,University College London,98980326,91513.61,Research Grant Expenditure
BEIS,UKRI - BBSRC,15/06/2021,Research Grant Expenditure,FG - Accounts & Business Planning,London School of Hygiene & Tropical Medicine,98980327,63243.65,Research Grant Expenditure
BEIS,UKRI - BBSRC,15/06/2021,Research Grant Expenditure,FG - Accounts & Business Planning,Queen's University Belfast GRANT,98980328,80747.51,Research Grant Expenditure
BEIS,UKRI - BBSRC,15/06/2021,Capital Grants & Equipment to HEIs,FG - Accounts & Business Planning,Imperial College London,98980329,27132.50,Capital Grants & Equipment to HEIs
BEIS,UKRI - BBSRC,15/06/2021,Research Grant Expenditure,FG - Accounts & Business Planning,Imperial College London,98980329,37339.51,Research Grant Expenditure
BEIS,UKRI - BBSRC,15/06/2021,Research Grant Expenditure,FG - Accounts & Business Planning,University of Cambridge,98980330,20482.16,Research Grant Expenditure
BEIS,UKRI - BBSRC,15/06/2021,Capital Grants & Equipment to HEIs,FG - Accounts & Business Planning,University of Cambridge,98980331,5646.86,Capital Grants & Equipment to HEIs
BEIS,UKRI - BBSRC,15/06/2021,Research Grant Expenditure,FG - Accounts & Business Planning,University of Cambridge,98980331,59240.14,Research Grant Expenditure
BEIS,UKRI - BBSRC,15/06/2021,Research Grant Expenditure,FG - Accounts & Business Planning,University of Durham,98980332,42018.46,Research Grant Expenditure
BEIS,UKRI - BBSRC,15/06/2021,Capital Grants & Equipment to HEIs,FG - Accounts & Business Planning,University of Reading,98980333,1811.25,Capital Grants & Equipment to HEIs
BEIS,UKRI - BBSRC,15/06/2021,Capital Grants & Equipment to HEIs,FG - Accounts & Business Planning,University of Reading,98980333,1811.25,Capital Grants & Equipment to HEIs
BEIS,UKRI - BBSRC,15/06/2021,Research Grant Expenditure,FG - Accounts & Business Planning,University of Reading,98980333,294547.61,Research Grant Expenditure
BEIS,UKRI - BBSRC,15/06/2021,Research Grant Expenditure,FG - Accounts & Business Planning,University of Reading,98980333,246974.44,Research Grant Expenditure
BEIS,UKRI - BBSRC,15/06/2021,Research Grant Expenditure,FG - Accounts & Business Planning,University of Cambridge,98980334,210669.64,Research Grant Expenditure
BEIS,UKRI - BBSRC,15/06/2021,Capital Grants & Equipment to HEIs,FG - Accounts & Business Planning,University of Nottingham,98980335,8584.75,Capital Grants & Equipment to HEIs
BEIS,UKRI - BBSRC,15/06/2021,Research Grant Expenditure,FG - Accounts & Business Planning,University of Nottingham,98980335,42745.86,Research Grant Expenditure
BEIS,UKRI - BBSRC,15/06/2021,Research Grant Expenditure,FG - Accounts & Business Planning,University of Sheffield,98980336,280477.07,Research Grant Expenditure
BEIS,UKRI - BBSRC,15/06/2021,Capital Grants & Equipment to HEIs,FG - Accounts & Business Planning,University of Glasgow,98980337,3750.00,Capital Grants & Equipment to HEIs
BEIS,UKRI - BBSRC,15/06/2021,Research Grant Expenditure,FG - Accounts & Business Planning,University of Glasgow,98980337,60179.40,Research Grant Expenditure
BEIS,UKRI - BBSRC,15/06/2021,Research Grant Expenditure,FG - Accounts & Business Planning,University of York,98980338,277963.47,Research Grant Expenditure
BEIS,UKRI - BBSRC,15/06/2021,Research Grant Expenditure,FG - Accounts & Business Planning,European Bioinformatics Institute,98980339,31321.01,Research Grant Expenditure
BEIS,UKRI - BBSRC,15/06/2021,Research Grant Expenditure,FG - Accounts & Business Planning,University of Bristol GRANT,98980340,37729.34,Research Grant Expenditure
BEIS,UKRI - BBSRC,15/06/2021,Capital Grants & Equipment to HEIs,FG - Accounts & Business Planning,University of Exeter,98980341,3750.00,Capital Grants & Equipment to HEIs
BEIS,UKRI - BBSRC,15/06/2021,Research Grant Expenditure,FG - Accounts & Business Planning,University of Exeter,98980341,43666.78,Research Grant Expenditure
BEIS,UKRI - BBSRC,15/06/2021,Research Grant Expenditure,FG - Accounts & Business Planning,Forest Research GRANT,98980342,48775.52,Research Grant Expenditure
BEIS,UKRI - BBSRC,15/06/2021,Research Grant Expenditure,FG - Accounts & Business Planning,University of Glasgow,98980343,45802.69,Research Grant Expenditure
BEIS,UKRI - BBSRC,15/06/2021,Research Grant Expenditure,FG - Accounts & Business Planning,Heriot Watt University,98980344,10569.38,Research Grant Expenditure
BEIS,UKRI - BBSRC,15/06/2021,Research Grant Expenditure,FG - Accounts & Business Planning,University of Nottingham,98980345,3150.28,Research Grant Expenditure
BEIS,UKRI - BBSRC,15/06/2021,Research Grant Expenditure,FG - Accounts & Business Planning,University of Cambridge,98980346,40669.19,Research Grant Expenditure
BEIS,UKRI - BBSRC,15/06/2021,Research Grant Expenditure,FG - Accounts & Business Planning,University of Nottingham,98980347,60100.31,Research Grant Expenditure
BEIS,UKRI - BBSRC,15/06/2021,Research Grant Expenditure,FG - Accounts & Business Planning,University of York,98980348,12508.49,Research Grant Expenditure
BEIS,UKRI - BBSRC,15/06/2021,Capital Grants & Equipment to HEIs,FG - Accounts & Business Planning,University of Leeds,98980349,23580.25,Capital Grants & Equipment to HEIs
BEIS,UKRI - BBSRC,15/06/2021,Research Grant Expenditure,FG - Accounts & Business Planning,University of Leeds,98980349,191080.74,Research Grant Expenditure
BEIS,UKRI - BBSRC,15/06/2021,Capital Grants & Equipment to HEIs,FG - Accounts & Business Planning,University College London,98980350,7492.50,Capital Grants & Equipment to HEIs
BEIS,UKRI - BBSRC,15/06/2021,Research Grant Expenditure,FG - Accounts & Business Planning,University College London,98980350,117182.49,Research Grant Expenditure
BEIS,UKRI - BBSRC,15/06/2021,Research Grant Expenditure,FG - Accounts & Business Planning,University of Durham,98980351,157429.54,Research Grant Expenditure
BEIS,UKRI - BBSRC,15/06/2021,Research Grant Expenditure,FG - Accounts & Business Planning,University of Bristol GRANT,98980352,153344.61,Research Grant Expenditure
BEIS,UKRI - BBSRC,15/06/2021,Research Grant Expenditure,FG - Accounts & Business Planning,University of Edinburgh,98980353,31493.46,Research Grant Expenditure
BEIS,UKRI - BBSRC,15/06/2021,Research Grant Expenditure,FG - Accounts & Business Planning,University of Edinburgh,98980354,31501.84,Research Grant Expenditure
BEIS,UKRI - BBSRC,15/06/2021,Capital Grants & Equipment to HEIs,FG - Accounts & Business Planning,University of Oxford,98980355,3375.00,Capital Grants & Equipment to HEIs
BEIS,UKRI - BBSRC,15/06/2021,Research Grant Expenditure,FG - Accounts & Business Planning,University of Oxford,98980355,29600.19,Research Grant Expenditure
BEIS,UKRI - BBSRC,15/06/2021,Research Grant Expenditure,FG - Accounts & Business Planning,Rothamsted Research Ltd,98980356,25528.95,Research Grant Expenditure
BEIS,UKRI - BBSRC,15/06/2021,Research Grant Expenditure,FG - Accounts & Business Planning,The University of Manchester,98980357,32396.36,Research Grant Expenditure
BEIS,UKRI - BBSRC,15/06/2021,Research Grant Expenditure,FG - Accounts & Business Planning,University of Liverpool,98980358,41958.43,Research Grant Expenditure
BEIS,UKRI - BBSRC,15/06/2021,Research Grant Expenditure,FG - Accounts & Business Planning,University of Liverpool,98980359,26762.84,Research Grant Expenditure
BEIS,UKRI - BBSRC,15/06/2021,Research Grant Expenditure,FG - Accounts & Business Planning,University of East Anglia,98980360,31904.63,Research Grant Expenditure
BEIS,UKRI - BBSRC,15/06/2021,Research Grant Expenditure,FG - Accounts & Business Planning,University of Liverpool,98980361,36912.07,Research Grant Expenditure
BEIS,UKRI - BBSRC,15/06/2021,Research Grant Expenditure,FG - Accounts & Business Planning,University of St Andrews,98980362,34471.43,Research Grant Expenditure
BEIS,UKRI - BBSRC,15/06/2021,Research Grant Expenditure,FG - Accounts & Business Planning,University of Warwick,98980363,38342.01,Research Grant Expenditure
BEIS,UKRI - BBSRC,15/06/2021,Research Grant Expenditure,FG - Accounts & Business Planning,University of Warwick,98980363,38342.01,Research Grant Expenditure
BEIS,UKRI - BBSRC,15/06/2021,Research Grant Expenditure,FG - Accounts & Business Planning,University of Cambridge,98980364,33941.58,Research Grant Expenditure
BEIS,UKRI - BBSRC,15/06/2021,Capital Grants & Equipment to HEIs,FG - Accounts & Business Planning,University of Sheffield,98980365,3866.88,Capital Grants & Equipment to HEIs
BEIS,UKRI - BBSRC,15/06/2021,Research Grant Expenditure,FG - Accounts & Business Planning,University of Sheffield,98980365,38614.58,Research Grant Expenditure
BEIS,UKRI - BBSRC,15/06/2021,Research Grant Expenditure,FG - Accounts & Business Planning,University of Oxford,98980366,38205.62,Research Grant Expenditure
BEIS,UKRI - BBSRC,15/06/2021,Capital Grants & Equipment to HEIs,FG - Accounts & Business Planning,Imperial College London,98980367,4475.00,Capital Grants & Equipment to HEIs
BEIS,UKRI - BBSRC,15/06/2021,Research Grant Expenditure,FG - Accounts & Business Planning,Imperial College London,98980367,58309.58,Research Grant Expenditure
BEIS,UKRI - BBSRC,15/06/2021,Research Grant Expenditure,FG - Accounts & Business Planning,University of Bristol GRANT,98980368,40491.11,Research Grant Expenditure
BEIS,UKRI - BBSRC,15/06/2021,Research Grant Expenditure,FG - Accounts & Business Planning,University of Newcastle Upon Tyne,98980369,5360.63,Research Grant Expenditure
BEIS,UKRI - BBSRC,15/06/2021,Capital Grants & Equipment to HEIs,FG - Accounts & Business Planning,University of Bristol GRANT,98980370,5178.25,Capital Grants & Equipment to HEIs
BEIS,UKRI - BBSRC,15/06/2021,Research Grant Expenditure,FG - Accounts & Business Planning,University of Bristol GRANT,98980370,38592.63,Research Grant Expenditure
BEIS,UKRI - BBSRC,15/06/2021,Research Grant Expenditure,FG - Accounts & Business Planning,Liverpool School of Tropical Medicine,98980371,38017.95,Research Grant Expenditure
BEIS,UKRI - BBSRC,15/06/2021,Research Grant Expenditure,FG - Accounts & Business Planning,University of Nottingham,98980372,28616.37,Research Grant Expenditure
BEIS,UKRI - BBSRC,15/06/2021,Research Grant Expenditure,FG - Accounts & Business Planning,University of Bristol GRANT,98980373,35710.97,Research Grant Expenditure
BEIS,UKRI - BBSRC,15/06/2021,Research Grant Expenditure,FG - Accounts & Business Planning,University of Oxford,98980374,45483.44,Research Grant Expenditure
BEIS,UKRI - BBSRC,15/06/2021,Research Grant Expenditure,FG - Accounts & Business Planning,University of Glasgow,98980375,55123.47,Research Grant Expenditure
BEIS,UKRI - BBSRC,15/06/2021,Research Grant Expenditure,FG - Accounts & Business Planning,University of Glasgow,98980376,37490.13,Research Grant Expenditure
BEIS,UKRI - BBSRC,15/06/2021,Research Grant Expenditure,FG - Accounts & Business Planning,University of Strathclyde,98980377,6050.09,Research Grant Expenditure
BEIS,UKRI - BBSRC,15/06/2021,Research Grant Expenditure,FG - Accounts & Business Planning,The James Hutton Institute,98980378,31509.56,Research Grant Expenditure
BEIS,UKRI - BBSRC,15/06/2021,Research Grant Expenditure,FG - Accounts & Business Planning,Cardiff University,98980379,36265.32,Research Grant Expenditure
BEIS,UKRI - BBSRC,15/06/2021,Research Grant Expenditure,FG - Accounts & Business Planning,The University of Manchester,98980380,53064.73,Research Grant Expenditure
BEIS,UKRI - BBSRC,15/06/2021,Capital Grants & Equipment to HEIs,FG - Accounts & Business Planning,University of York,98980381,15260.21,Capital Grants & Equipment to HEIs
BEIS,UKRI - BBSRC,15/06/2021,Research Grant Expenditure,FG - Accounts & Business Planning,University of York,98980381,37878.58,Research Grant Expenditure
BEIS,UKRI - BBSRC,15/06/2021,Research Grant Expenditure,FG - Accounts & Business Planning,Imperial College London,98980382,46816.29,Research Grant Expenditure
BEIS,UKRI - BBSRC,15/06/2021,Research Grant Expenditure,FG - Accounts & Business Planning,University of Glasgow,98980383,18648.98,Research Grant Expenditure
BEIS,UKRI - BBSRC,15/06/2021,Research Grant Expenditure,FG - Accounts & Business Planning,Lancaster University,98980384,1890.19,Research Grant Expenditure
BEIS,UKRI - BBSRC,15/06/2021,Research Grant Expenditure,FG - Accounts & Business Planning,Queen's University Belfast GRANT,98980385,1890.19,Research Grant Expenditure
BEIS,UKRI - BBSRC,15/06/2021,Research Grant Expenditure,FG - Accounts & Business Planning,King's College London,98980386,1298.43,Research Grant Expenditure
BEIS,UKRI - BBSRC,15/06/2021,Research Grant Expenditure,FG - Accounts & Business Planning,King's College London,98980387,3148.47,Research Grant Expenditure
BEIS,UKRI - BBSRC,15/06/2021,Research Grant Expenditure,FG - Accounts & Business Planning,National Institute For Agricultural Botany (NIAB),98980388,2610.98,Research Grant Expenditure
BEIS,UKRI - BBSRC,15/06/2021,Research Grant Expenditure,FG - Accounts & Business Planning,University College London,98980389,2890.09,Research Grant Expenditure
BEIS,UKRI - BBSRC,15/06/2021,Research Grant Expenditure,FG - Accounts & Business Planning,The Pirbright Institute,98980390,2394.24,Research Grant Expenditure
BEIS,UKRI - BBSRC,15/06/2021,Research Grant Expenditure,FG - Accounts & Business Planning,John Innes Centre,98980391,10599.47,Research Grant Expenditure
BEIS,UKRI - BBSRC,15/06/2021,Research Grant Expenditure,FG - Accounts & Business Planning,Cambridge Crystallographic Data Centre,98980392,19391.01,Research Grant Expenditure
BEIS,UKRI - BBSRC,15/06/2021,Research Grant Expenditure,FG - Accounts & Business Planning,University of Leeds,98980393,4200.42,Research Grant Expenditure
BEIS,UKRI - BBSRC,15/06/2021,Capital Grants & Equipment to HEIs,FG - Accounts & Business Planning,Cabi (Cabi Publishing),98980394,5137.13,Capital Grants & Equipment to HEIs
BEIS,UKRI - BBSRC,15/06/2021,Research Grant Expenditure,FG - Accounts & Business Planning,Cabi (Cabi Publishing),98980394,20834.26,Research Grant Expenditure
BEIS,UKRI - BBSRC,15/06/2021,Research Grant Expenditure,FG - Accounts & Business Planning,National Institute For Agricultural Botany (NIAB),98980395,2835.28,Research Grant Expenditure
BEIS,UKRI - BBSRC,15/06/2021,Research Grant Expenditure,FG - Accounts & Business Planning,European Bioinformatics Institute,98980396,55532.56,Research Grant Expenditure
BEIS,UKRI - BBSRC,15/06/2021,Research Grant Expenditure,FG - Accounts & Business Planning,European Bioinformatics Institute,98980397,53076.15,Research Grant Expenditure
BEIS,UKRI - BBSRC,15/06/2021,Research Grant Expenditure,FG - Accounts & Business Planning,University of Liverpool,98980398,27143.83,Research Grant Expenditure
BEIS,UKRI - BBSRC,15/06/2021,Research Grant Expenditure,FG - Accounts & Business Planning,Rothamsted Research Ltd,98980399,26715.37,Research Grant Expenditure
BEIS,UKRI - BBSRC,15/06/2021,Research Grant Expenditure,FG - Accounts & Business Planning,SRUC,98980400,14708.16,Research Grant Expenditure
BEIS,UKRI - BBSRC,15/06/2021,Research Grant Expenditure,FG - Accounts & Business Planning,University of Edinburgh,98980401,51110.49,Research Grant Expenditure
BEIS,UKRI - BBSRC,15/06/2021,Research Grant Expenditure,FG - Accounts & Business Planning,University of Kent,98980402,3020.52,Research Grant Expenditure
BEIS,UKRI - BBSRC,15/06/2021,Research Grant Expenditure,FG - Accounts & Business Planning,University College London,98980403,30034.68,Research Grant Expenditure
BEIS,UKRI - BBSRC,15/06/2021,Research Grant Expenditure,FG - Accounts & Business Planning,Goldsmiths College University of London,98980404,5598.70,Research Grant Expenditure
BEIS,UKRI - BBSRC,15/06/2021,Research Grant Expenditure,FG - Accounts & Business Planning,University of Nottingham,98980405,3150.31,Research Grant Expenditure
BEIS,UKRI - BBSRC,15/06/2021,Research Grant Expenditure,FG - Accounts & Business Planning,University of Liverpool,98980406,3137.71,Research Grant Expenditure
BEIS,UKRI - BBSRC,15/06/2021,Research Grant Expenditure,FG - Accounts & Business Planning,University of Nottingham,98980407,3045.30,Research Grant Expenditure
BEIS,UKRI - BBSRC,15/06/2021,Research Grant Expenditure,FG - Accounts & Business Planning,Swansea University,98980408,35240.97,Research Grant Expenditure
BEIS,UKRI - BBSRC,15/06/2021,Research Grant Expenditure,FG - Accounts & Business Planning,University of Edinburgh,98980409,19367.82,Research Grant Expenditure
BEIS,UKRI - BBSRC,15/06/2021,Research Grant Expenditure,FG - Accounts & Business Planning,University of Reading,98980410,36007.96,Research Grant Expenditure
BEIS,UKRI - BBSRC,15/06/2021,Research Grant Expenditure,FG - Accounts & Business Planning,University of Bristol GRANT,98980411,5063.18,Research Grant Expenditure
BEIS,UKRI - BBSRC,15/06/2021,Capital Grants & Equipment to HEIs,FG - Accounts & Business Planning,University of Liverpool,98980412,107344.20,Capital Grants & Equipment to HEIs
BEIS,UKRI - BBSRC,15/06/2021,Capital Grants & Equipment to HEIs,FG - Accounts & Business Planning,University of Essex,98980413,92170.00,Capital Grants & Equipment to HEIs
BEIS,UKRI - BBSRC,15/06/2021,Capital Grants & Equipment to HEIs,FG - Accounts & Business Planning,University of Exeter,98980414,163459.25,Capital Grants & Equipment to HEIs
BEIS,UKRI - BBSRC,15/06/2021,Capital Grants & Equipment to HEIs,FG - Accounts & Business Planning,University of Warwick,98980415,110868.04,Capital Grants & Equipment to HEIs
BEIS,UKRI - BBSRC,15/06/2021,Capital Grants & Equipment to HEIs,FG - Accounts & Business Planning,University of York,98980416,187500.00,Capital Grants & Equipment to HEIs
BEIS,UKRI - BBSRC,15/06/2021,Capital Grants & Equipment to HEIs,FG - Accounts & Business Planning,University of St Andrews,98980417,88092.60,Capital Grants & Equipment to HEIs
BEIS,UKRI - BBSRC,15/06/2021,Capital Grants & Equipment to HEIs,FG - Accounts & Business Planning,Queen Mary University of London,98980418,92300.25,Capital Grants & Equipment to HEIs
BEIS,UKRI - BBSRC,15/06/2021,Capital Grants & Equipment to HEIs,FG - Accounts & Business Planning,University of Newcastle Upon Tyne,98980419,99388.62,Capital Grants & Equipment to HEIs
BEIS,UKRI - BBSRC,15/06/2021,Capital Grants & Equipment to HEIs,FG - Accounts & Business Planning,University of Nottingham,98980420,98946.50,Capital Grants & Equipment to HEIs
BEIS,UKRI - BBSRC,15/06/2021,Capital Grants & Equipment to HEIs,FG - Accounts & Business Planning,University of Bristol GRANT,98980421,142498.50,Capital Grants & Equipment to HEIs
BEIS,UKRI - BBSRC,15/06/2021,Capital Grants & Equipment to HEIs,FG - Accounts & Business Planning,King's College London,98980422,48424.50,Capital Grants & Equipment to HEIs
BEIS,UKRI - BBSRC,15/06/2021,Capital Grants & Equipment to HEIs,FG - Accounts & Business Planning,University of Liverpool,98980423,71750.00,Capital Grants & Equipment to HEIs
BEIS,UKRI - BBSRC,15/06/2021,Capital Grants & Equipment to HEIs,FG - Accounts & Business Planning,The University of Manchester,98980424,84626.75,Capital Grants & Equipment to HEIs
BEIS,UKRI - BBSRC,15/06/2021,Research Grant Expenditure,FG - Accounts & Business Planning,University of Edinburgh,98980425,28802.75,Research Grant Expenditure
BEIS,UKRI - BBSRC,15/06/2021,Research Grant Expenditure,FG - Accounts & Business Planning,University of Newcastle Upon Tyne,98980426,31647.69,Research Grant Expenditure
BEIS,UKRI - BBSRC,15/06/2021,Research Grant Expenditure,FG - Accounts & Business Planning,University of Nottingham,98980427,33577.77,Research Grant Expenditure
BEIS,UKRI - BBSRC,15/06/2021,Research Grant Expenditure,FG - Accounts & Business Planning,University of Warwick,98980428,33653.87,Research Grant Expenditure
BEIS,UKRI - BBSRC,15/06/2021,Research Grant Expenditure,FG - Accounts & Business Planning,University of Strathclyde,98980429,40262.11,Research Grant Expenditure
BEIS,UKRI - BBSRC,15/06/2021,Research Grant Expenditure,FG - Accounts & Business Planning,University of Bristol GRANT,98980430,38692.62,Research Grant Expenditure
BEIS,UKRI - BBSRC,15/06/2021,Research Grant Expenditure,FG - Accounts & Business Planning,University of St Andrews,98980431,32839.83,Research Grant Expenditure
BEIS,UKRI - BBSRC,15/06/2021,Research Grant Expenditure,FG - Accounts & Business Planning,University of Bristol GRANT,98980432,21829.04,Research Grant Expenditure
BEIS,UKRI - BBSRC,15/06/2021,Research Grant Expenditure,FG - Accounts & Business Planning,University of York,98980433,65752.75,Research Grant Expenditure
BEIS,UKRI - BBSRC,15/06/2021,Research Grant Expenditure,FG - Accounts & Business Planning,Rothamsted Research Ltd,98980434,41033.58,Research Grant Expenditure
BEIS,UKRI - BBSRC,15/06/2021,Research Grant Expenditure,FG - Accounts & Business Planning,University of Liverpool,98980435,43129.71,Research Grant Expenditure
BEIS,UKRI - BBSRC,15/06/2021,Research Grant Expenditure,FG - Accounts & Business Planning,University of York,98980436,33038.25,Research Grant Expenditure
BEIS,UKRI - BBSRC,15/06/2021,Capital Grants & Equipment to HEIs,FG - Accounts & Business Planning,University of Edinburgh,98980437,2859.20,Capital Grants & Equipment to HEIs
BEIS,UKRI - BBSRC,15/06/2021,Capital Grants & Equipment to HEIs,FG - Accounts & Business Planning,University of Edinburgh,98980437,2859.20,Capital Grants & Equipment to HEIs
BEIS,UKRI - BBSRC,15/06/2021,Capital Grants & Equipment to HEIs,FG - Accounts & Business Planning,University of Edinburgh,98980437,2859.20,Capital Grants & Equipment to HEIs
BEIS,UKRI - BBSRC,15/06/2021,Capital Grants & Equipment to HEIs,FG - Accounts & Business Planning,University of Edinburgh,98980437,2859.20,Capital Grants & Equipment to HEIs
BEIS,UKRI - BBSRC,15/06/2021,Research Grant Expenditure,FG - Accounts & Business Planning,University of Edinburgh,98980437,30892.41,Research Grant Expenditure
BEIS,UKRI - BBSRC,15/06/2021,Research Grant Expenditure,FG - Accounts & Business Planning,University of Edinburgh,98980437,30892.41,Research Grant Expenditure
BEIS,UKRI - BBSRC,15/06/2021,Research Grant Expenditure,FG - Accounts & Business Planning,University of Edinburgh,98980437,30892.41,Research Grant Expenditure
BEIS,UKRI - BBSRC,15/06/2021,Research Grant Expenditure,FG - Accounts & Business Planning,University of Edinburgh,98980437,30892.41,Research Grant Expenditure
BEIS,UKRI - BBSRC,15/06/2021,Research Grant Expenditure,FG - Accounts & Business Planning,University of Glasgow,98980438,40371.87,Research Grant Expenditure
BEIS,UKRI - BBSRC,15/06/2021,Capital Grants & Equipment to HEIs,FG - Accounts & Business Planning,Aston University,98980439,5907.50,Capital Grants & Equipment to HEIs
BEIS,UKRI - BBSRC,15/06/2021,Capital Grants & Equipment to HEIs,FG - Accounts & Business Planning,Aston University,98980439,5907.50,Capital Grants & Equipment to HEIs
BEIS,UKRI - BBSRC,15/06/2021,Research Grant Expenditure,FG - Accounts & Business Planning,Aston University,98980439,37134.16,Research Grant Expenditure
BEIS,UKRI - BBSRC,15/06/2021,Research Grant Expenditure,FG - Accounts & Business Planning,Aston University,98980439,37134.16,Research Grant Expenditure
BEIS,UKRI - BBSRC,15/06/2021,Research Grant Expenditure,FG - Accounts & Business Planning,University College London,98980440,31920.98,Research Grant Expenditure
BEIS,UKRI - BBSRC,15/06/2021,Research Grant Expenditure,FG - Accounts & Business Planning,University of Warwick,98980441,41982.38,Research Grant Expenditure
BEIS,UKRI - BBSRC,15/06/2021,Research Grant Expenditure,FG - Accounts & Business Planning,University of Oxford,98980442,67022.16,Research Grant Expenditure
BEIS,UKRI - BBSRC,15/06/2021,Research Grant Expenditure,FG - Accounts & Business Planning,Queen's University Belfast GRANT,98980443,37933.01,Research Grant Expenditure
BEIS,UKRI - BBSRC,15/06/2021,Research Grant Expenditure,FG - Accounts & Business Planning,University of Sussex,98980444,47379.92,Research Grant Expenditure
BEIS,UKRI - BBSRC,15/06/2021,Research Grant Expenditure,FG - Accounts & Business Planning,The Rosalind Franklin Institute,98980445,69295.05,Research Grant Expenditure
BEIS,UKRI - BBSRC,15/06/2021,Research Grant Expenditure,FG - Accounts & Business Planning,University of Glasgow,98980446,43015.97,Research Grant Expenditure
BEIS,UKRI - BBSRC,15/06/2021,Research Grant Expenditure,FG - Accounts & Business Planning,Rothamsted Research Ltd,98980447,36526.21,Research Grant Expenditure
BEIS,UKRI - BBSRC,15/06/2021,Research Grant Expenditure,FG - Accounts & Business Planning,University of Salford,98980448,26100.16,Research Grant Expenditure
BEIS,UKRI - BBSRC,15/06/2021,Research Grant Expenditure,FG - Accounts & Business Planning,University of Bristol GRANT,98980449,39033.41,Research Grant Expenditure
BEIS,UKRI - BBSRC,15/06/2021,Research Grant Expenditure,FG - Accounts & Business Planning,University of Worcester,98980450,33379.97,Research Grant Expenditure
BEIS,UKRI - BBSRC,15/06/2021,Research Grant Expenditure,FG - Accounts & Business Planning,National Institute For Agricultural Botany (NIAB),98980451,9800.31,Research Grant Expenditure
BEIS,UKRI - BBSRC,15/06/2021,Research Grant Expenditure,FG - Accounts & Business Planning,University of Exeter,98980453,37208.83,Research Grant Expenditure
BEIS,UKRI - BBSRC,15/06/2021,Capital Grants & Equipment to HEIs,FG - Accounts & Business Planning,University College London,98980454,4925.00,Capital Grants & Equipment to HEIs
BEIS,UKRI - BBSRC,15/06/2021,Research Grant Expenditure,FG - Accounts & Business Planning,University College London,98980454,39051.20,Research Grant Expenditure
BEIS,UKRI - BBSRC,15/06/2021,Research Grant Expenditure,FG - Accounts & Business Planning,Cardiff University,98980455,41595.36,Research Grant Expenditure
BEIS,UKRI - BBSRC,15/06/2021,Capital Grants & Equipment to HEIs,FG - Accounts & Business Planning,University of Leeds,98980456,13950.00,Capital Grants & Equipment to HEIs
BEIS,UKRI - BBSRC,15/06/2021,Research Grant Expenditure,FG - Accounts & Business Planning,University of Leeds,98980456,46990.84,Research Grant Expenditure
BEIS,UKRI - BBSRC,15/06/2021,Capital Grants & Equipment to HEIs,FG - Accounts & Business Planning,University of St Andrews,98980457,5073.50,Capital Grants & Equipment to HEIs
BEIS,UKRI - BBSRC,15/06/2021,Research Grant Expenditure,FG - Accounts & Business Planning,University of St Andrews,98980457,46580.70,Research Grant Expenditure
BEIS,UKRI - BBSRC,15/06/2021,Research Grant Expenditure,FG - Accounts & Business Planning,University of Liverpool,98980458,42451.73,Research Grant Expenditure
BEIS,UKRI - BBSRC,15/06/2021,Research Grant Expenditure,FG - Accounts & Business Planning,Queen Mary University of London,98980459,50261.33,Research Grant Expenditure
BEIS,UKRI - BBSRC,15/06/2021,Research Grant Expenditure,FG - Accounts & Business Planning,University of Birmingham GRANT,98980460,49945.11,Research Grant Expenditure
BEIS,UKRI - BBSRC,15/06/2021,Research Grant Expenditure,FG - Accounts & Business Planning,John Innes Centre,98980461,40978.24,Research Grant Expenditure
BEIS,UKRI - BBSRC,15/06/2021,Research Grant Expenditure,FG - Accounts & Business Planning,University of Liverpool,98980462,38857.92,Research Grant Expenditure
BEIS,UKRI - BBSRC,15/06/2021,Research Grant Expenditure,FG - Accounts & Business Planning,European Bioinformatics Institute,98980463,25999.56,Research Grant Expenditure
BEIS,UKRI - BBSRC,15/06/2021,Research Grant Expenditure,FG - Accounts & Business Planning,University of Edinburgh,98980464,42027.15,Research Grant Expenditure
BEIS,UKRI - BBSRC,15/06/2021,Research Grant Expenditure,FG - Accounts & Business Planning,University of Bristol GRANT,98980465,48133.79,Research Grant Expenditure
BEIS,UKRI - BBSRC,15/06/2021,Research Grant Expenditure,FG - Accounts & Business Planning,John Innes Centre,98980466,41547.96,Research Grant Expenditure
BEIS,UKRI - BBSRC,15/06/2021,Research Grant Expenditure,FG - Accounts & Business Planning,University of Cambridge,98980467,36853.32,Research Grant Expenditure
BEIS,UKRI - BBSRC,15/06/2021,Capital Grants & Equipment to HEIs,FG - Accounts & Business Planning,University of Warwick,98980468,4366.00,Capital Grants & Equipment to HEIs
BEIS,UKRI - BBSRC,15/06/2021,Research Grant Expenditure,FG - Accounts & Business Planning,University of Warwick,98980468,39893.84,Research Grant Expenditure
BEIS,UKRI - BBSRC,15/06/2021,Research Grant Expenditure,FG - Accounts & Business Planning,John Innes Centre,98980469,40753.45,Research Grant Expenditure
BEIS,UKRI - BBSRC,15/06/2021,Research Grant Expenditure,FG - Accounts & Business Planning,University of Oxford,98980470,42732.75,Research Grant Expenditure
BEIS,UKRI - BBSRC,15/06/2021,Capital Grants & Equipment to HEIs,FG - Accounts & Business Planning,University of Edinburgh,98980471,6064.25,Capital Grants & Equipment to HEIs
BEIS,UKRI - BBSRC,15/06/2021,Research Grant Expenditure,FG - Accounts & Business Planning,University of Edinburgh,98980471,50515.13,Research Grant Expenditure
BEIS,UKRI - BBSRC,15/06/2021,Research Grant Expenditure,FG - Accounts & Business Planning,University of Oxford,98980472,48512.03,Research Grant Expenditure
BEIS,UKRI - BBSRC,15/06/2021,Research Grant Expenditure,FG - Accounts & Business Planning,Imperial College London,98980473,82195.92,Research Grant Expenditure
BEIS,UKRI - BBSRC,15/06/2021,Research Grant Expenditure,FG - Accounts & Business Planning,John Innes Centre,98980474,37751.96,Research Grant Expenditure
BEIS,UKRI - BBSRC,15/06/2021,Research Grant Expenditure,FG - Accounts & Business Planning,University of Nottingham,98980475,36263.13,Research Grant Expenditure
BEIS,UKRI - BBSRC,15/06/2021,Research Grant Expenditure,FG - Accounts & Business Planning,University of Durham,98980476,47361.92,Research Grant Expenditure
BEIS,UKRI - BBSRC,15/06/2021,Research Grant Expenditure,FG - Accounts & Business Planning,Quadram Institute Bioscience,98980477,50471.73,Research Grant Expenditure
BEIS,UKRI - BBSRC,15/06/2021,Research Grant Expenditure,FG - Accounts & Business Planning,European Bioinformatics Institute,98980478,24805.11,Research Grant Expenditure
BEIS,UKRI - BBSRC,15/06/2021,Research Grant Expenditure,FG - Accounts & Business Planning,The Pirbright Institute,98980479,79934.44,Research Grant Expenditure
BEIS,UKRI - BBSRC,15/06/2021,Research Grant Expenditure,FG - Accounts & Business Planning,The Pirbright Institute,98980480,46276.13,Research Grant Expenditure
BEIS,UKRI - BBSRC,15/06/2021,Research Grant Expenditure,FG - Accounts & Business Planning,European Bioinformatics Institute,98980481,58648.43,Research Grant Expenditure
BEIS,UKRI - BBSRC,15/06/2021,Research Grant Expenditure,FG - Accounts & Business Planning,The Francis Crick Institute,98980482,23792.55,Research Grant Expenditure
BEIS,UKRI - BBSRC,15/06/2021,Research Grant Expenditure,FG - Accounts & Business Planning,University of Edinburgh,98980483,22895.35,Research Grant Expenditure
BEIS,UKRI - BBSRC,15/06/2021,Research Grant Expenditure,FG - Accounts & Business Planning,The University of Manchester,98980484,39871.96,Research Grant Expenditure
BEIS,UKRI - BBSRC,15/06/2021,Research Grant Expenditure,FG - Accounts & Business Planning,The University of Manchester,98980485,52855.34,Research Grant Expenditure
BEIS,UKRI - BBSRC,15/06/2021,Research Grant Expenditure,FG - Accounts & Business Planning,The University of Manchester,98980485,52855.34,Research Grant Expenditure
BEIS,UKRI - BBSRC,15/06/2021,Research Grant Expenditure,FG - Accounts & Business Planning,King's College London,98980486,55335.04,Research Grant Expenditure
BEIS,UKRI - BBSRC,15/06/2021,Research Grant Expenditure,FG - Accounts & Business Planning,John Innes Centre,98980487,6552.65,Research Grant Expenditure
BEIS,UKRI - BBSRC,15/06/2021,Capital Grants & Equipment to HEIs,FG - Accounts & Business Planning,Royal Botanic Gardens Kew,98980488,2310.00,Capital Grants & Equipment to HEIs
BEIS,UKRI - BBSRC,15/06/2021,Research Grant Expenditure,FG - Accounts & Business Planning,Royal Botanic Gardens Kew,98980488,25993.04,Research Grant Expenditure
BEIS,UKRI - BBSRC,15/06/2021,Research Grant Expenditure,FG - Accounts & Business Planning,University of Edinburgh,98980489,61704.54,Research Grant Expenditure
BEIS,UKRI - BBSRC,15/06/2021,Research Grant Expenditure,FG - Accounts & Business Planning,University of Cambridge,98980490,30087.40,Research Grant Expenditure
BEIS,UKRI - BBSRC,15/06/2021,Research Grant Expenditure,FG - Accounts & Business Planning,University of Nottingham,98980491,44599.39,Research Grant Expenditure
BEIS,UKRI - BBSRC,15/06/2021,Research Grant Expenditure,FG - Accounts & Business Planning,Rothamsted Research Ltd,98980492,7516.09,Research Grant Expenditure
BEIS,UKRI - BBSRC,15/06/2021,Research Grant Expenditure,FG - Accounts & Business Planning,The James Hutton Institute,98980493,1232.95,Research Grant Expenditure
BEIS,UKRI - BBSRC,15/06/2021,Research Grant Expenditure,FG - Accounts & Business Planning,University of Bristol GRANT,98980494,44517.33,Research Grant Expenditure
BEIS,UKRI - BBSRC,15/06/2021,Research Grant Expenditure,FG - Accounts & Business Planning,King's College London,98980495,51260.07,Research Grant Expenditure
BEIS,UKRI - BBSRC,15/06/2021,Research Grant Expenditure,FG - Accounts & Business Planning,King's College London,98980495,51260.07,Research Grant Expenditure
BEIS,UKRI - BBSRC,15/06/2021,Research Grant Expenditure,FG - Accounts & Business Planning,King's College London,98980496,40550.01,Research Grant Expenditure
BEIS,UKRI - BBSRC,15/06/2021,Research Grant Expenditure,FG - Accounts & Business Planning,King's College London,98980497,38642.39,Research Grant Expenditure
BEIS,UKRI - BBSRC,15/06/2021,Research Grant Expenditure,FG - Accounts & Business Planning,University of Bath,98980498,20908.64,Research Grant Expenditure
BEIS,UKRI - BBSRC,15/06/2021,Research Grant Expenditure,FG - Accounts & Business Planning,University of Leeds,98980499,38880.24,Research Grant Expenditure
BEIS,UKRI - BBSRC,15/06/2021,Research Grant Expenditure,FG - Accounts & Business Planning,University of Nottingham,98980500,47213.64,Research Grant Expenditure
BEIS,UKRI - BBSRC,15/06/2021,Research Grant Expenditure,FG - Accounts & Business Planning,University of Birmingham GRANT,98980501,47899.34,Research Grant Expenditure
BEIS,UKRI - BBSRC,15/06/2021,Research Grant Expenditure,FG - Accounts & Business Planning,The Pirbright Institute,98980502,58592.37,Research Grant Expenditure
BEIS,UKRI - BBSRC,15/06/2021,Research Grant Expenditure,FG - Accounts & Business Planning,University of Glasgow,98980503,58197.47,Research Grant Expenditure
BEIS,UKRI - BBSRC,15/06/2021,Research Grant Expenditure,FG - Accounts & Business Planning,University of Cambridge,98980504,62204.30,Research Grant Expenditure
BEIS,UKRI - BBSRC,15/06/2021,Research Grant Expenditure,FG - Accounts & Business Planning,University of Cambridge,98980505,32866.63,Research Grant Expenditure
BEIS,UKRI - BBSRC,15/06/2021,Research Grant Expenditure,FG - Accounts & Business Planning,University of Cambridge,98980505,32866.63,Research Grant Expenditure
BEIS,UKRI - BBSRC,15/06/2021,Research Grant Expenditure,FG - Accounts & Business Planning,University of Warwick,98980506,45197.41,Research Grant Expenditure
BEIS,UKRI - BBSRC,15/06/2021,Research Grant Expenditure,FG - Accounts & Business Planning,University College London,98980507,32969.70,Research Grant Expenditure
BEIS,UKRI - BBSRC,15/06/2021,Research Grant Expenditure,FG - Accounts & Business Planning,Imperial College London,98980508,43469.61,Research Grant Expenditure
BEIS,UKRI - BBSRC,15/06/2021,Research Grant Expenditure,FG - Accounts & Business Planning,Moredun Research Institute,98980509,47478.54,Research Grant Expenditure
BEIS,UKRI - BBSRC,15/06/2021,Research Grant Expenditure,FG - Accounts & Business Planning,University of Cambridge,98980510,61452.77,Research Grant Expenditure
BEIS,UKRI - BBSRC,15/06/2021,Research Grant Expenditure,FG - Accounts & Business Planning,University College London,98980511,42012.97,Research Grant Expenditure
BEIS,UKRI - BBSRC,15/06/2021,Capital Grants & Equipment to HEIs,FG - Accounts & Business Planning,University of Cambridge,98980512,4002.00,Capital Grants & Equipment to HEIs
BEIS,UKRI - BBSRC,15/06/2021,Research Grant Expenditure,FG - Accounts & Business Planning,University of Cambridge,98980512,49332.57,Research Grant Expenditure
BEIS,UKRI - BBSRC,15/06/2021,Research Grant Expenditure,FG - Accounts & Business Planning,University of Bath,98980513,44326.57,Research Grant Expenditure
BEIS,UKRI - BBSRC,15/06/2021,Research Grant Expenditure,FG - Accounts & Business Planning,University College London,98980514,23978.72,Research Grant Expenditure
BEIS,UKRI - BBSRC,15/06/2021,Research Grant Expenditure,FG - Accounts & Business Planning,University of York,98980515,26755.07,Research Grant Expenditure
BEIS,UKRI - BBSRC,15/06/2021,Research Grant Expenditure,FG - Accounts & Business Planning,Queen Mary University of London,98980516,10388.86,Research Grant Expenditure
BEIS,UKRI - BBSRC,15/06/2021,Capital Grants & Equipment to HEIs,FG - Accounts & Business Planning,Imperial College London,98980517,4747.75,Capital Grants & Equipment to HEIs
BEIS,UKRI - BBSRC,15/06/2021,Research Grant Expenditure,FG - Accounts & Business Planning,Imperial College London,98980517,68244.93,Research Grant Expenditure
BEIS,UKRI - BBSRC,15/06/2021,Research Grant Expenditure,FG - Accounts & Business Planning,Lancaster University,98980518,33503.28,Research Grant Expenditure
BEIS,UKRI - BBSRC,15/06/2021,Research Grant Expenditure,FG - Accounts & Business Planning,University of Bristol GRANT,98980519,3252.67,Research Grant Expenditure
BEIS,UKRI - BBSRC,15/06/2021,Research Grant Expenditure,FG - Accounts & Business Planning,University of Liverpool,98980520,37730.04,Research Grant Expenditure
BEIS,UKRI - BBSRC,15/06/2021,Research Grant Expenditure,FG - Accounts & Business Planning,National Institute For Agricultural Botany (NIAB),98980521,36521.80,Research Grant Expenditure
BEIS,UKRI - BBSRC,15/06/2021,Research Grant Expenditure,FG - Accounts & Business Planning,University of Exeter,98980522,36570.08,Research Grant Expenditure
BEIS,UKRI - BBSRC,15/06/2021,Research Grant Expenditure,FG - Accounts & Business Planning,University of Plymouth,98980523,31572.62,Research Grant Expenditure
BEIS,UKRI - BBSRC,15/06/2021,Research Grant Expenditure,FG - Accounts & Business Planning,University of Edinburgh,98980524,35967.84,Research Grant Expenditure
BEIS,UKRI - BBSRC,15/06/2021,Research Grant Expenditure,FG - Accounts & Business Planning,University of Glasgow,98980525,43377.78,Research Grant Expenditure
BEIS,UKRI - BBSRC,15/06/2021,Research Grant Expenditure,FG - Accounts & Business Planning,Queen's University Belfast GRANT,98980526,51340.05,Research Grant Expenditure
BEIS,UKRI - BBSRC,15/06/2021,Research Grant Expenditure,FG - Accounts & Business Planning,National Institute For Agricultural Botany (NIAB),98980527,31325.37,Research Grant Expenditure
BEIS,UKRI - BBSRC,15/06/2021,Research Grant Expenditure,FG - Accounts & Business Planning,University of Reading,98980528,35338.49,Research Grant Expenditure
BEIS,UKRI - BBSRC,15/06/2021,Research Grant Expenditure,FG - Accounts & Business Planning,University of Glasgow,98980529,17533.70,Research Grant Expenditure
BEIS,UKRI - BBSRC,15/06/2021,Research Grant Expenditure,FG - Accounts & Business Planning,University of Nottingham,98980530,25486.24,Research Grant Expenditure
BEIS,UKRI - BBSRC,15/06/2021,Research Grant Expenditure,FG - Accounts & Business Planning,University of Bristol GRANT,98980531,16388.61,Research Grant Expenditure
BEIS,UKRI - BBSRC,15/06/2021,Research Grant Expenditure,FG - Accounts & Business Planning,University of Nottingham,98980532,34962.78,Research Grant Expenditure
BEIS,UKRI - BBSRC,15/06/2021,Research Grant Expenditure,FG - Accounts & Business Planning,University of Strathclyde,98980533,36138.37,Research Grant Expenditure
BEIS,UKRI - BBSRC,15/06/2021,Research Grant Expenditure,FG - Accounts & Business Planning,Loughborough University,98980534,14303.98,Research Grant Expenditure
BEIS,UKRI - BBSRC,15/06/2021,Research Grant Expenditure,FG - Accounts & Business Planning,University of York,98980535,25757.75,Research Grant Expenditure
BEIS,UKRI - BBSRC,15/06/2021,Research Grant Expenditure,FG - Accounts & Business Planning,The University of Manchester,98980536,31488.13,Research Grant Expenditure
BEIS,UKRI - BBSRC,15/06/2021,Research Grant Expenditure,FG - Accounts & Business Planning,University of Warwick,98980537,25186.88,Research Grant Expenditure
BEIS,UKRI - BBSRC,15/06/2021,Research Grant Expenditure,FG - Accounts & Business Planning,The Scottish Association for Marine Science (SAMS Group),98980538,26661.25,Research Grant Expenditure
BEIS,UKRI - BBSRC,15/06/2021,Research Grant Expenditure,FG - Accounts & Business Planning,University of Strathclyde,98980539,27512.53,Research Grant Expenditure
BEIS,UKRI - BBSRC,15/06/2021,Research Grant Expenditure,FG - Accounts & Business Planning,King's College London,98980540,24592.72,Research Grant Expenditure
BEIS,UKRI - BBSRC,15/06/2021,Research Grant Expenditure,FG - Accounts & Business Planning,King's College London,98980540,24592.72,Research Grant Expenditure
BEIS,UKRI - BBSRC,15/06/2021,Research Grant Expenditure,FG - Accounts & Business Planning,Cardiff University,98980541,28424.16,Research Grant Expenditure
BEIS,UKRI - BBSRC,15/06/2021,Research Grant Expenditure,FG - Accounts & Business Planning,Cardiff University,98980542,37543.06,Research Grant Expenditure
BEIS,UKRI - BBSRC,15/06/2021,Research Grant Expenditure,FG - Accounts & Business Planning,Imperial College London,98980543,50926.06,Research Grant Expenditure
BEIS,UKRI - BBSRC,15/06/2021,Research Grant Expenditure,FG - Accounts & Business Planning,Imperial College London,98980544,38070.02,Research Grant Expenditure
BEIS,UKRI - BBSRC,15/06/2021,Research Grant Expenditure,FG - Accounts & Business Planning,Imperial College London,98980544,38069.91,Research Grant Expenditure
BEIS,UKRI - BBSRC,15/06/2021,Research Grant Expenditure,FG - Accounts & Business Planning,Imperial College London,98980544,38070.02,Research Grant Expenditure
BEIS,UKRI - BBSRC,15/06/2021,Research Grant Expenditure,FG - Accounts & Business Planning,Bangor University,98980545,40457.32,Research Grant Expenditure
BEIS,UKRI - BBSRC,15/06/2021,Research Grant Expenditure,FG - Accounts & Business Planning,National Institute For Agricultural Botany (NIAB),98980546,9624.82,Research Grant Expenditure
BEIS,UKRI - BBSRC,15/06/2021,Capital Grants & Equipment to HEIs,FG - Accounts & Business Planning,University of Warwick,98980547,3222.00,Capital Grants & Equipment to HEIs
BEIS,UKRI - BBSRC,15/06/2021,Research Grant Expenditure,FG - Accounts & Business Planning,University of Warwick,98980547,78289.82,Research Grant Expenditure
BEIS,UKRI - BBSRC,15/06/2021,Research Grant Expenditure,FG - Accounts & Business Planning,University of Exeter,98980548,31112.56,Research Grant Expenditure
BEIS,UKRI - BBSRC,15/06/2021,Research Grant Expenditure,FG - Accounts & Business Planning,FERA SCIENCE LTD (FERA),98980549,20069.55,Research Grant Expenditure
BEIS,UKRI - BBSRC,15/06/2021,Research Grant Expenditure,FG - Accounts & Business Planning,Forest Research GRANT,98980550,170605.40,Research Grant Expenditure
BEIS,UKRI - BBSRC,15/06/2021,Research Grant Expenditure,FG - Accounts & Business Planning,FERA SCIENCE LTD (FERA),98980551,148724.73,Research Grant Expenditure
BEIS,UKRI - BBSRC,15/06/2021,Research Grant Expenditure,FG - Accounts & Business Planning,University of Newcastle Upon Tyne,98980552,1754.57,Research Grant Expenditure
BEIS,UKRI - BBSRC,15/06/2021,Research Grant Expenditure,FG - Accounts & Business Planning,Cranfield University,98980553,31308.91,Research Grant Expenditure
BEIS,UKRI - BBSRC,15/06/2021,Research Grant Expenditure,FG - Accounts & Business Planning,University of Reading,98980554,10869.01,Research Grant Expenditure
BEIS,UKRI - BBSRC,15/06/2021,Research Grant Expenditure,FG - Accounts & Business Planning,University of Sheffield,98980555,134425.26,Research Grant Expenditure
BEIS,UKRI - BBSRC,15/06/2021,Research Grant Expenditure,FG - Accounts & Business Planning,National Institute For Agricultural Botany (NIAB),98980556,120579.88,Research Grant Expenditure
BEIS,UKRI - BBSRC,15/06/2021,Research Grant Expenditure,FG - Accounts & Business Planning,University of Strathclyde,98980557,4302.09,Research Grant Expenditure
BEIS,UKRI - BBSRC,15/06/2021,Research Grant Expenditure,FG - Accounts & Business Planning,Bangor University,98980558,115180.11,Research Grant Expenditure
BEIS,UKRI - BBSRC,15/06/2021,Research Grant Expenditure,FG - Accounts & Business Planning,The James Hutton Institute,98980559,75902.40,Research Grant Expenditure
BEIS,UKRI - BBSRC,15/06/2021,Research Grant Expenditure,FG - Accounts & Business Planning,University of Glasgow,98980560,32873.89,Research Grant Expenditure
BEIS,UKRI - BBSRC,15/06/2021,Research Grant Expenditure,FG - Accounts & Business Planning,University of Nottingham,98980561,31972.30,Research Grant Expenditure
BEIS,UKRI - BBSRC,15/06/2021,Research Grant Expenditure,FG - Accounts & Business Planning,University of Warwick,98980562,30774.15,Research Grant Expenditure
BEIS,UKRI - BBSRC,15/06/2021,Capital Grants & Equipment to HEIs,FG - Accounts & Business Planning,University of York,98980563,1750.00,Capital Grants & Equipment to HEIs
BEIS,UKRI - BBSRC,15/06/2021,Research Grant Expenditure,FG - Accounts & Business Planning,University of York,98980563,66386.28,Research Grant Expenditure
BEIS,UKRI - BBSRC,15/06/2021,Research Grant Expenditure,FG - Accounts & Business Planning,University of Birmingham GRANT,98980564,30905.26,Research Grant Expenditure
BEIS,UKRI - BBSRC,15/06/2021,Research Grant Expenditure,FG - Accounts & Business Planning,European Bioinformatics Institute,98980565,28719.03,Research Grant Expenditure
BEIS,UKRI - BBSRC,15/06/2021,Research Grant Expenditure,FG - Accounts & Business Planning,University of Durham,98980566,26376.32,Research Grant Expenditure
BEIS,UKRI - BBSRC,15/06/2021,Research Grant Expenditure,FG - Accounts & Business Planning,University of Cambridge,98980567,55183.40,Research Grant Expenditure
BEIS,UKRI - BBSRC,15/06/2021,Research Grant Expenditure,FG - Accounts & Business Planning,University of Edinburgh,98980568,48542.99,Research Grant Expenditure
BEIS,UKRI - BBSRC,15/06/2021,Research Grant Expenditure,FG - Accounts & Business Planning,Imperial College London,98980569,41652.54,Research Grant Expenditure
BEIS,UKRI - BBSRC,15/06/2021,Research Grant Expenditure,FG - Accounts & Business Planning,University of Warwick,98980570,51599.54,Research Grant Expenditure
BEIS,UKRI - BBSRC,15/06/2021,Research Grant Expenditure,FG - Accounts & Business Planning,Abertay University,98980571,76105.57,Research Grant Expenditure
BEIS,UKRI - BBSRC,15/06/2021,Research Grant Expenditure,FG - Accounts & Business Planning,Rothamsted Research Ltd,98980572,71969.71,Research Grant Expenditure
BEIS,UKRI - BBSRC,15/06/2021,Research Grant Expenditure,FG - Accounts & Business Planning,"City, University of London",98980573,62602.23,Research Grant Expenditure
BEIS,UKRI - BBSRC,15/06/2021,Research Grant Expenditure,FG - Accounts & Business Planning,Imperial College London,98980574,62445.40,Research Grant Expenditure
BEIS,UKRI - BBSRC,15/06/2021,Research Grant Expenditure,FG - Accounts & Business Planning,University of Leeds,98980575,83910.61,Research Grant Expenditure
BEIS,UKRI - BBSRC,15/06/2021,Research Grant Expenditure,FG - Accounts & Business Planning,"Royal Holloway, University of London",98980576,83047.85,Research Grant Expenditure
BEIS,UKRI - BBSRC,15/06/2021,Research Grant Expenditure,FG - Accounts & Business Planning,National Institute For Agricultural Botany (NIAB),98980577,98084.75,Research Grant Expenditure
BEIS,UKRI - BBSRC,15/06/2021,Research Grant Expenditure,FG - Accounts & Business Planning,The James Hutton Institute,98980578,88035.04,Research Grant Expenditure
BEIS,UKRI - BBSRC,15/06/2021,Research Grant Expenditure,FG - Accounts & Business Planning,University of Exeter,98980579,86681.76,Research Grant Expenditure
BEIS,UKRI - BBSRC,15/06/2021,Research Grant Expenditure,FG - Accounts & Business Planning,Queen's University Belfast GRANT,98980580,78891.27,Research Grant Expenditure
BEIS,UKRI - BBSRC,15/06/2021,Research Grant Expenditure,FG - Accounts & Business Planning,The Pirbright Institute,98980581,45984.05,Research Grant Expenditure
BEIS,UKRI - BBSRC,15/06/2021,Research Grant Expenditure,FG - Accounts & Business Planning,University of Edinburgh,98980582,54137.26,Research Grant Expenditure
BEIS,UKRI - BBSRC,15/06/2021,Research Grant Expenditure,FG - Accounts & Business Planning,The James Hutton Institute,98980583,36733.64,Research Grant Expenditure
BEIS,UKRI - BBSRC,15/06/2021,Research Grant Expenditure,FG - Accounts & Business Planning,University of Nottingham,98980584,51691.24,Research Grant Expenditure
BEIS,UKRI - BBSRC,15/06/2021,Research Grant Expenditure,FG - Accounts & Business Planning,Heriot Watt University,98980585,18856.67,Research Grant Expenditure
BEIS,UKRI - BBSRC,15/06/2021,Research Grant Expenditure,FG - Accounts & Business Planning,University of Reading,98980586,44062.76,Research Grant Expenditure
BEIS,UKRI - BBSRC,15/06/2021,Research Grant Expenditure,FG - Accounts & Business Planning,University of South Wales,98980587,33459.36,Research Grant Expenditure
BEIS,UKRI - BBSRC,15/06/2021,Research Grant Expenditure,FG - Accounts & Business Planning,University of Newcastle Upon Tyne,98980588,29581.23,Research Grant Expenditure
BEIS,UKRI - BBSRC,15/06/2021,Research Grant Expenditure,FG - Accounts & Business Planning,University of Dundee,98980589,54334.52,Research Grant Expenditure
BEIS,UKRI - BBSRC,15/06/2021,Research Grant Expenditure,FG - Accounts & Business Planning,University of Leeds,98980590,38915.67,Research Grant Expenditure
BEIS,UKRI - BBSRC,15/06/2021,Research Grant Expenditure,FG - Accounts & Business Planning,University of Leeds,98980591,37885.65,Research Grant Expenditure
BEIS,UKRI - BBSRC,15/06/2021,Capital Grants & Equipment to HEIs,FG - Accounts & Business Planning,University of Sheffield,98980592,10417.50,Capital Grants & Equipment to HEIs
BEIS,UKRI - BBSRC,15/06/2021,Research Grant Expenditure,FG - Accounts & Business Planning,University of Sheffield,98980592,38256.86,Research Grant Expenditure
BEIS,UKRI - BBSRC,15/06/2021,Research Grant Expenditure,FG - Accounts & Business Planning,University of Edinburgh,98980593,48893.83,Research Grant Expenditure
BEIS,UKRI - BBSRC,15/06/2021,Research Grant Expenditure,FG - Accounts & Business Planning,University of Birmingham GRANT,98980594,54985.05,Research Grant Expenditure
BEIS,UKRI - BBSRC,15/06/2021,Research Grant Expenditure,FG - Accounts & Business Planning,University of Surrey,98980595,40027.80,Research Grant Expenditure
BEIS,UKRI - BBSRC,15/06/2021,Research Grant Expenditure,FG - Accounts & Business Planning,University of Edinburgh,98980596,45866.17,Research Grant Expenditure
BEIS,UKRI - BBSRC,15/06/2021,Research Grant Expenditure,FG - Accounts & Business Planning,Diamond Light Source Ltd,98980597,1414.51,Research Grant Expenditure
BEIS,UKRI - BBSRC,15/06/2021,Research Grant Expenditure,FG - Accounts & Business Planning,University of Cambridge,98980598,51858.97,Research Grant Expenditure
BEIS,UKRI - BBSRC,15/06/2021,Research Grant Expenditure,FG - Accounts & Business Planning,University of Edinburgh,98980599,31444.21,Research Grant Expenditure
BEIS,UKRI - BBSRC,15/06/2021,Research Grant Expenditure,FG - Accounts & Business Planning,The University of Manchester,98980600,57806.65,Research Grant Expenditure
